Workbook

Sheet Orçamento Sintético 16 PÁTIOS
D1: Obra | E1: Bancos | G1: B.D.I. | I1: Encargos Sociais | K1: 16
D2: SRP Pátios de Múltiplos Usos | E2: SINAPI 08/24 PE ORSE 06/2024 | G2: =BDI!D25 -> 0.2254 | I2: Horista: 113,98% Mensalista: 70,00%
A3: Orçamento Sintético (Não Desonerado) - 16 PÁTIOS
A4: Item | B4: Código | C4: Banco | D4: Descrição | E4: Und | F4: Quant. | G4: Valor Unit | H4: Valor Unit com BDI | I4: Total
A5: 1 | D5: IMPLANTAÇÃO DA OBRA | I5: =SUM(I6:I8) -> 51316.96
A6: 1.1 | B6: 7 | C6: Próprio | D6: PLACA DE OBRA | E6: unid | F6: =$K$1*'Orçamento Sintético 1 PÁTIO'!F6 -> 16 | G6: =CPUs!J6 -> 1575.41 | H6: =G6*(1+G$2) -> 1930.51 | I6: =H6*F6 -> 30888.16
A7: 1.2 | B7: 2 | C7: Próprio | D7: MOBILIZAÇÃO - TRANSPORTE COMERCIAL COM CAMINHÃO CARROCERIA 9T, RODOVIA PAVIMENTADA | E7: TXKM | F7: =$K$1*'Orçamento Sintético 1 PÁTIO'!F7 -> 6720 | G7: =CPUs!J22 -> 1.24 | H7: =G7*(1+G$2) -> 1.52 | I7: 10214.4
A8: 1.3 | B8: 3 | C8: Próprio | D8: DESMOBILIZAÇÃO - TRANSPORTE COMERCIAL COM CAMINHÃO CARROCERIA 9T, RODOVIA PAVIMENTADA. | E8: TXKM | F8: =$K$1*'Orçamento Sintético 1 PÁTIO'!F8 -> 6720 | G8: =CPUs!J30 -> 1.24 | H8: =G8*(1+G$2) -> 1.52 | I8: 10214.4
A9: 2 | D9: ADMINISTRAÇÃO DA OBRA | I9: =SUM(I10:I11) -> 411647.2
A10: 2.1 | B10: 34 | C10: Próprio | D10: ADMINISTRAÇÃO LOCAL | E10: UNID | F10: =$K$1*'Orçamento Sintético 1 PÁTIO'!F10 -> 16 | G10: =CPUs!J39 -> 15064 | H10: =G10*(1+G$2) -> 18459.43 | I10: =H10*F10 -> 295350.88
A11: 2.2 | B11: 5 | C11: Próprio | D11: CANTEIROS DE OBRAS E ALMOXARIFADO | E11: mês | F11: =$K$1*'Orçamento Sintético 1 PÁTIO'!F11 -> 64 | G11: =CPUs!J50 -> 1482.89 | H11: =G11*(1+G$2) -> 1817.13 | I11: =H11*F11 -> 116296.32
A12: 3 | D12: EXECUÇÃO DAS OBRAS | I12: =SUM(I13:I35) -> 3137108.12
A13: 3.1 | B13: 98524 | C13: SINAPI | D13: LIMPEZA MANUAL DE VEGETAÇÃO EM TERRENO COM ENXADA | E13: m² | F13: =$K$1*'Orçamento Sintético 1 PÁTIO'!F13 -> 16064.16 | G13: =CPUs!J59 -> 4.48 | H13: =G13*(1+G$2) -> 5.49 | I13: =H13*F13 -> 88192.24
A14: 3.2a | B14: 10 | C14: Próprio | D14: LOCAÇÃO CONVENCIONAL DE OBRA, ATRAVÉS DE GABARITO DE TÁBUAS CORRIDAS PONTALETADAS, COM REAPROVEITAMENTO DE 10 VEZES | E14: M² | F14: =$K$1*'Orçamento Sintético 1 PÁTIO'!F14 -> 16064.16 | G14: =CPUs!J66 -> 6.2 | H14: =G14*(1+G$2) -> 7.6 | I14: 122087.62
A15: 3.2b | B15: 6 | C15: Próprio | D15: ESPALHAMENTO MECÂNICO DE SOLO, SEM COMPACTAÇÃO E SEM TRANSPORTE | E15: m³ | F15: =$K$1*'Orçamento Sintético 1 PÁTIO'!F15 -> 6132.48 | G15: =CPUs!J78 -> 9.22 | H15: =G15*(1+G$2) -> 11.3 | I15: 69297.02
A16: 3.3 | B16: 11 | C16: Próprio | D16: ESCAVAÇÃO MANUAL DE CAVAS (FUNDAÇÕES RASAS = 1,5 M) | E16: M² | F16: =$K$1*'Orçamento Sintético 1 PÁTIO'!F16 -> 524.48 | G16: =CPUs!J86 -> 45.67 | H16: =G16*(1+G$2) -> 55.96 | I16: 29349.9
A17: 3.4 | B17: 12 | C17: Próprio | D17: ATERRO INTERNO COMPACTADO MANUALMENTE. | E17: M² | F17: =$K$1*'Orçamento Sintético 1 PÁTIO'!F17 -> 1540 | G17: =CPUs!J93 -> 19.49 | H17: =G17*(1+G$2) -> 23.88 | I17: 36775.2
A18: 3.5 | B18: 13 | C18: Próprio | D18: REATERRO MANUAL DE CAVAS E VALA DE FUNDAÇÃO | E18: M² | F18: =$K$1*'Orçamento Sintético 1 PÁTIO'!F18 -> 255.52 | G18: =CPUs!J101 -> 16.55 | H18: =G18*(1+G$2) -> 20.28 | I18: 5181.95
A19: 3.6 | B19: 49 | C19: Próprio | D19: MURO DE ARRIMO DE ALVENARIA DE TIJOLOS | E19: m³ | F19: =$K$1*'Orçamento Sintético 1 PÁTIO'!F19 -> 120.96 | G19: =CPUs!J108 -> 664.49 | H19: =G19*(1+G$2) -> 814.27 | I19: 98494.1
A20: 3.7 | B20: 15 | C20: Próprio | D20: ALVENARIA DE 1/2 VEZ EM TIJOLO CERÂMICO FURADO DE 8 FUROS COM AS DIMENSÕES 9 CM X 19 CM X 29 CM, ASSENTADO COM ARGAMASSA DE CIMENTO E AREIA TRAÇO 1:7. | E20: M² | F20: =$K$1*'Orçamento Sintético 1 PÁTIO'!F20 -> 2668.8 | G20: =CPUs!J120 -> 58.81 | H20: =G20*(1+G$2) -> 72.07 | I20: 192340.42
A21: 3.8 | B21: 20 | C21: Próprio | D21: CHAPISCO EM PAREDES, COM ARGAMASSA DE CIMENTO E AREIA NO TRAÇO 1:3. | E21: M² | F21: =$K$1*'Orçamento Sintético 1 PÁTIO'!F21 -> 5256.32 | G21: =CPUs!J131 -> 7.66 | H21: =G21*(1+G$2) -> 9.39 | I21: 49356.84
A22: 3.9 | B22: 18 | C22: Próprio | D22: REBOCO EM ARGAMASSA DE CIMENTO, CAL E AREIA FINA PENEIRADA, PRODUZIDA NO TRAÇO 1:4,5, COM ESPESSURA DE 2,00 CM, PREPARO MECÂNICO. | E22: M² | F22: =$K$1*'Orçamento Sintético 1 PÁTIO'!F22 -> 5256.32 | G22: =CPUs!J140 -> 27.6 | H22: =G22*(1+G$2) -> 33.82 | I22: 177768.74
A23: 3.10 | B23: 19 | C23: Próprio | D23: LASTRO DE BRITA Nº 2 APILOADA MANUALMENTE COM MAÇO DE ATÉ 30 KG. | E23: M² | F23: =$K$1*'Orçamento Sintético 1 PÁTIO'!F23 -> 555.68 | G23: =CPUs!J151 -> 134.86 | H23: =G23*(1+G$2) -> 165.26 | I23: 91831.68
A24: 3.11 | B24: 21 | C24: Próprio | D24: FORNECIMENTO DE CONCRETO SIMPLES, PREPARADO EM BETONEIRA, PRODUZIDO NO TRAÇO 1:4:8 (CIMENTO, AREIA E BRITA), INCLUINDO PREPARO, LANÇAMENTO E ADENSAMENTO. | E24: M² | F24: =$K$1*'Orçamento Sintético 1 PÁTIO'!F24 -> 49.6 | G24: =CPUs!J160 -> 370.9 | H24: =G24*(1+G$2) -> 454.5 | I24: 22543.2
A25: 3.12 | B25: 22 | C25: Próprio | D25: PISO EM CONCRETO PARA PÁTIOS, CONCRETO PREPARO MECÂNICO FCK= 20MPA, ESPESSURA 8 CM, INCLUSO POLIMENTO E JUNTAS EM POLIURETANO 2 m x 2 m. | E25: m² | F25: =$K$1*'Orçamento Sintético 1 PÁTIO'!F25 -> 11112.8 | G25: =CPUs!J173 -> 63.52 | H25: =G25*(1+G$2) -> 77.84 | I25: 865020.35
A26: 3.13 | B26: 23 | C26: Próprio | D26: FORNECIMENTO DE MALHA POP REFORÇADA, COM TELA EM MALHA DE ESPAÇAMENTO 15 CM x 15 CM, EM FERRO DE DIÂMETRO DE 4,2 MM, INCUINDO FORNECIMENTO, TRANSPORTE, CORTE E COLOCAÇÃO. | E26: M² | F26: =$K$1*'Orçamento Sintético 1 PÁTIO'!F26 -> 11112.8 | G26: =CPUs!J185 -> 22.33 | H26: =G26*(1+G$2) -> 27.36 | I26: 304046.21
A27: 3.14 | B27: 24 | C27: Próprio | D27: FORNECIMENTO E APLICAÇÃO DE CONCRETO ARMADO FCK= 20 MPA, PREPARO EM BETONEIRA, INCLUSIVE PREPARO, LANÇAMENTO E ADENSAMENTO. | E27: M² | F27: =$K$1*'Orçamento Sintético 1 PÁTIO'!F27 -> 270.56 | G27: =CPUs!J194 -> 825.26 | H27: =G27*(1+G$2) -> 1011.27 | I27: 273609.21
A28: 3.15 | B28: 25 | C28: Próprio | D28: EXECUÇÃO DE CALÇADA EM CONCRETO CONVENCIONAL PREPARADO NO TRAÇO 1:4:8, PREPARO MECÂNCIO, ESPESSURA MÍNIMA DE 4 CM, COM ACABAMENTO DESEMPENADO. | E28: M³ | F28: =$K$1*'Orçamento Sintético 1 PÁTIO'!F28 -> 265.44 | G28: =CPUs!J213 -> 370.71 | H28: =G28*(1+G$2) -> 454.27 | I28: 120581.43
A29: 3.16 | B29: 26 | C29: Próprio | D29: LAJE PRÉ-MOLDADA, COM CAPACIDADE MÍNIMA DE 200kg/m², VÃOS ATE 3,50 m, e= 8,00 cm, NERVURAS E LAJOTAS EM CONCRETO ARMADO COM FCK=20MPA, RECOBRIMENTO MIN= 4 cm, DIST. INTER-EIXO DE 38 CM - ESCORAMENTO (REAPROV. 3X) E FERRAGEM NEGATIVA. | E29: M² | F29: =$K$1*'Orçamento Sintético 1 PÁTIO'!F29 -> 528 | G29: =CPUs!J225 -> 135.34 | H29: =G29*(1+G$2) -> 165.85 | I29: 87568.8
A30: 3.17 | B30: 27 | C30: Próprio | D30: APLICAÇÃO DE DUAS DEMÃOS DE PINTURA EM TINTA LÁTEX ACRÍLICA SOBRE AS PAREDES INTERNAS/EXTERNAS, PREVIAMENTE LIXADAS, SELADAS E EMASSADAS. | E30: m² | F30: =$K$1*'Orçamento Sintético 1 PÁTIO'!F30 -> 5269.12 | G30: =CPUs!J241 -> 15.43 | H30: =G30*(1+G$2) -> 18.91 | I30: 99639.06
A31: 3.18 | B31: 29 | C31: Próprio | D31: PINTURA DO PISO DO PÁTIO EM TINTA ACRÍLICA SOBRE SUPERFÍCIE PREVIAMENTE PREPARADA. | E31: m² | F31: =$K$1*'Orçamento Sintético 1 PÁTIO'!F31 -> 84.48 | G31: =CPUs!J251 -> 10.59 | H31: =G31*(1+G$2) -> 12.98 | I31: 1096.55
A32: 3.19 | B32: 102504 | C32: SINAPI | D32: PINTURA DE DEMARCAÇÃO DE QUADRA POLIESPORTIVA COM TINTA ACRÍLICA, E = 5 CM, APLICAÇÃO MANUAL. AF_05/2021 | E32: M | F32: =$K$1*'Orçamento Sintético 1 PÁTIO'!F32 -> 5891.68 | G32: =CPUs!J260 -> 9.66 | H32: =G32*(1+G$2) -> 11.84 | I32: 69757.49
A33: 3.20 | B33: 30 | C33: Próprio | D33: CORTE E DOBRA DE AÇO CA-60, DIÂMETRO DE 5,0 MM, UTILIZADO EM ESTRUTURAS DIVERSAS, EXCETO LAJES. AF_12/2015 | E33: UNID | F33: =$K$1*'Orçamento Sintético 1 PÁTIO'!F33 -> 4108.96 | G33: =CPUs!J270 -> 12.19 | H33: =G33*(1+G$2) -> 14.94 | I33: 61387.86
A34: 3.21 | B34: 31 | C34: Próprio | D34: CORTE E DOBRA DE AÇO CA-50, DIÂMETRO DE 8,0 MM, UTILIZADO EM ESTRUTURAS DIVERSAS, EXCETO LAJES. AF_12/2015 | E34: UNID | F34: =$K$1*'Orçamento Sintético 1 PÁTIO'!F34 -> 8569.76 | G34: =CPUs!J279 -> 15.02 | H34: =G34*(1+G$2) -> 18.41 | I34: 157769.28
A35: 3.22 | B35: 35 | C35: Próprio | D35: LIMPEZA FINAL DA OBRA | E35: M² | F35: =$K$1*'Orçamento Sintético 1 PÁTIO'!F35 -> 16064.16 | G35: =CPUs!J288 -> 5.76 | H35: =G35*(1+G$2) -> 7.06 | I35: 113412.97
A36: 4 | D36: ACESSÓRIOS | I36: =SUM(I37:I42) -> 1008511.76
A37: 4.1 | B37: 102363 | C37: SINAPI | D37: ALAMBRADO FABRICADO COM ESTRUTURADA EM TUBO DE AÇO GALV. C/ COSTURA DIÂMETRO 2440, DIÂMETRO 2", E TELA EM ARAME GALVANIZADO 12 BWG, MALHA QUADRADA COM ABERTURA DE 2". | E37: M² | F37: =$K$1*'Orçamento Sintético 1 PÁTIO'!F37 -> 3314.72 | G37: =CPUs!J298 -> 175.87 | H37: =G37*(1+G$2) -> 215.51 | I37: =H37*F37 -> 714355.31
A38: 4.2 | B38: 33 | C38: Próprio | D38: FORNECIMENTO, MONTAGEM E INSTALAÇÃO DE CORRIMÃO CONFECCIONADO EM TUBO DE AÇO GALVANIZADO DE 1 1/4"" COM BRAÇADEIRA. | E38: M | F38: =$K$1*'Orçamento Sintético 1 PÁTIO'!F38 -> 521.28 | G38: =CPUs!J312 -> 101.54 | H38: =G38*(1+G$2) -> 124.43 | I38: 64862.87
A39: 4.3 | B39: 36 | C39: Próprio | D39: APLICAÇÃO DE DUAS DEMÃOS DE TINTA ESMALTE SINTÉTICO ACETINADO, SOBRE SUPERFÍCIE DE FERRO PREVIAMENTE LIXADA E SELADA COM 1 DEMÃO DE ZARCÃO PRÓPRIO PARA ESQUADRIA DE FERRO GALVANIZADO. | E39: M² | F39: =$K$1*'Orçamento Sintético 1 PÁTIO'!F39 -> 260.64 | G39: =CPUs!J323 -> 40.07 | H39: =G39*(1+G$2) -> 49.1 | I39: 12797.42
A40: 4.4 | B40: 37 | C40: Próprio | D40: FORNECIMENTO, MONTAGEM E INSTALAÇÃO DE CONJUNTO DE TRAVES, PRODUZIDA EM TUBO DE AÇO GALVANIZADO DE 3" COM REQUADRO, CONFORME MODELO EM PLANTA, INCLUSIVE PINTURA E REDES. | E40: CJ | F40: =$K$1*'Orçamento Sintético 1 PÁTIO'!F40 -> 16 | G40: =CPUs!J335 -> 3553.31 | H40: =G40*(1+G$2) -> 4354.23 | I40: 69667.68
A41: 4.5 | B41: 38 | C41: Próprio | D41: FORNECIMENTO, MONTAGEM E INSTALAÇÃO DE CONJUNTO DE ESTRUTURAS PARA SUPORTE DA TABELA, EM TUBO DE AÇO GALVANIZADO DE 5", CONFECCIONADA CONFORME MODELO EM PLANTA ARQUITETÔNICA, INCLUINDO TABELAS CONFECCIONADA EM LAMINADO NAVAL, PINTURAS, AROS E REDES. | E41: CJ | F41: =$K$1*'Orçamento Sintético 1 PÁTIO'!F41 -> 16 | G41: =CPUs!J343 -> 6318 | H41: =G41*(1+G$2) -> 7742.08 | I41: 123873.28
A42: 4.6 | B42: 39 | C42: Próprio | D42: FORNECIMENTO, MONTAGEM E ASSENTAMENTO DE MASTROS PARA VÔLEI, MÓVEL, CONFECCIONADO EM TUBO DE FERRO GALVANIZADO DE 3", PINTADO COM TINTA ESMALTE SINTÉTICO, INCLUSIVE REDES, PADRÃO OFICIAL, COM 4 FAIXAS. | E42: PAR | F42: =$K$1*'Orçamento Sintético 1 PÁTIO'!F42 -> 16 | G42: =CPUs!J352 -> 1170.8 | H42: =G42*(1+G$2) -> 1434.7 | I42: 22955.2
A43: 5 | D43: Instalação Eletrica | I43: =SUM(I44:I51) -> 345439.68
A44: 5.1 | B44: 40 | C44: Próprio | D44: FORNECIMENTO, MONTAGEM, INSTALAÇÃO E TESTE DE REFLETOR RETANGULAR LED DE 400W DE POTÊNCIA, BRANCO FRIO, 6500K. | E44: UNID | F44: =$K$1*'Orçamento Sintético 1 PÁTIO'!F44 -> 128 | G44: =CPUs!J362 -> 359.18 | H44: =G44*(1+G$2) -> 440.14 | I44: =H44*F44 -> 56337.92
A45: 5.2 | B45: 41 | C45: Próprio | D45: FORNECIMENTO, MONTAGEM E INSTALAÇÃO DE CABO DE COBRE ISOLADO PVC RESISTENTE A CHAMA 450/750 V 4 MM² . | E45: M | F45: =$K$1*'Orçamento Sintético 1 PÁTIO'!F45 -> 8000 | G45: =CPUs!J371 -> 6.6 | H45: =G45*(1+G$2) -> 8.09 | I45: 64720
A46: 5.3 | B46: 42 | C46: Próprio | D46: FORNECIMENTO, MONTAGEM E INSTALAÇÃO DE ELETRODUTO DE PVC RÍGIDO DE 25MM (1 POL) | E46: M | F46: =$K$1*'Orçamento Sintético 1 PÁTIO'!F46 -> 2560 | G46: =CPUs!J380 -> 18.42 | H46: =G46*(1+G$2) -> 22.57 | I46: 57779.2
A47: 5.4 | B47: 43 | C47: Próprio | D47: FORNECIMENTO, MONTAGEM E INSTALAÇÃO DE ATERRAMENTO DO CIRCUITO ELÉTRICO CONFECCIONADO EM HASTE COPPERWELD 5/8 X 3,0M COM CABOS DE COBRE NU E CONECTORES. | E47: UNID | F47: =$K$1*'Orçamento Sintético 1 PÁTIO'!F47 -> 32 | G47: =CPUs!J389 -> 136.98 | H47: =G47*(1+G$2) -> 167.86 | I47: 5371.52
A48: 5.5 | B48: 45 | C48: Próprio | D48: FORNECIMENTO E INSTALAÇÃO DE QUADRO DE DISTRIBUIÇÃO DE ENERGIA, CONFECCIONADO EM CHAPA METÁLICA, PARA NO MÍNIMO 6 DISJUNTORES TERMOMAGNÉTICOS MONOPOLARES, DISPOSITIVO PARA CHAVE GERAL, COM PORTA, BARRAMENTOS FASES, BARRAMENTO NEUTRO E DISJUNTORES. | E48: unid | F48: =$K$1*'Orçamento Sintético 1 PÁTIO'!F48 -> 16 | G48: =CPUs!J398 -> 134.06 | H48: =G48*(1+G$2) -> 164.28 | I48: 2628.48
A49: 5.6 | B49: 46 | C49: Próprio | D49: FORNECIMENTO E INSTALAÇÃO DE CAIXA DE INSPEÇÃO EM CONCRETO PRÉ-MOLDADO DN 60MM COM TAMPA E PROFUNDIDADE DE 60 CM. | E49: unid | F49: =$K$1*'Orçamento Sintético 1 PÁTIO'!F49 -> 64 | G49: =CPUs!J407 -> 230.29 | H49: =G49*(1+G$2) -> 282.2 | I49: 18060.8
A50: 5.7 | B50: 47 | C50: Próprio | D50: FORNECIMENTO, MONTAGEM E INSTALAÇÃO DE POSTE DE CONCRETO ARMADO COM COMPRIMENTO DE 7,0 M, E CAPACIDADE DE CARGA NOMINAL TOPO DE 150KG. | E50: unid | F50: =$K$1*'Orçamento Sintético 1 PÁTIO'!F50 -> 64 | G50: =CPUs!J418 -> 1293.37 | H50: =G50*(1+G$2) -> 1584.9 | I50: 101433.6
A51: 5.8 | B51: 48 | C51: Próprio | D51: POSTE PADRÃO CELPE, 7X75, 50A, COM CABEAMENTO, CAIXA DE PROTEÇÃO PARA MEDIDOR E ATERRAMENTO | E51: unid | F51: =$K$1*'Orçamento Sintético 1 PÁTIO'!F51 -> 16 | G51: =CPUs!J430 -> 1994.66 | H51: =G51*(1+G$2) -> 2444.26 | I51: 39108.16
F52: PREÇO GLOBAL | H52: ='Orçamento Sintético 1 PÁTIO'!H52*$K$1 -> 4954023.68

Sheet Orçamento Sintético 1 PÁTIO
D1: Obra | E1: Bancos | G1: B.D.I. | I1: Encargos Sociais
D2: SRP Pátios de Múltiplos Usos | E2: SINAPI 08/24 PE ORSE 06/2024 | G2: =BDI!D25 -> 0.2254 | I2: Horista: 113,98% Mensalista: 70,00%
A3: Orçamento Sintético (Não Desonerado) - 01 PÁTIO
A4: Item | B4: Código | C4: Banco | D4: Descrição | E4: Und | F4: Quant. | G4: Valor Unit | H4: Valor Unit com BDI | I4: Total
A5: 1 | D5: IMPLANTAÇÃO DA OBRA | I5: =SUM(I6:I8) -> 3207.31 | L5: 103689 | M5: 462,54 m2
A6: 1.1 | B6: 7 | C6: Próprio | D6: PLACA DE OBRA | E6: unid | F6: 1 | G6: =CPUs!J6 -> 1575.41 | H6: =G6*(1+G$2) -> 1930.51 | I6: =H6*F6 -> 1930.51 | J6: =I6/$H$52 -> 0.0062
A7: 1.2 | B7: 2 | C7: Próprio | D7: MOBILIZAÇÃO - TRANSPORTE COMERCIAL COM CAMINHÃO CARROCERIA 9T, RODOVIA PAVIMENTADA | E7: TXKM | F7: ='MOB DESMOB'!C29 -> 420 | G7: =CPUs!J22 -> 1.24 | H7: =G7*(1+G$2) -> 1.52 | I7: =H7*F7 -> 638.4 | J7: 0.0021
A8: 1.3 | B8: 3 | C8: Próprio | D8: DESMOBILIZAÇÃO - TRANSPORTE COMERCIAL COM CAMINHÃO CARROCERIA 9T, RODOVIA PAVIMENTADA. | E8: TXKM | F8: ='MOB DESMOB'!C30 -> 420 | G8: =CPUs!J30 -> 1.24 | H8: =G8*(1+G$2) -> 1.52 | I8: =H8*F8 -> 638.4 | J8: 0.0021
A9: 2 | D9: ADMINISTRAÇÃO DA OBRA | I9: =SUM(I10:I11) -> 25727.95
A10: 2.1 | B10: 34 | C10: Próprio | D10: ADMINISTRAÇÃO LOCAL | E10: UNID | F10: 1 | G10: =CPUs!J39 -> 15064 | H10: =G10*(1+G$2) -> 18459.43 | I10: =H10*F10 -> 18459.43 | J10: =I10/$H$52 -> 0.0596 | L10: =I10/H52 -> 0.05962
A11: 2.2 | B11: 5 | C11: Próprio | D11: CANTEIROS DE OBRAS E ALMOXARIFADO | E11: mês | F11: 4 | G11: =CPUs!J50 -> 1482.89 | H11: =G11*(1+G$2) -> 1817.13 | I11: =H11*F11 -> 7268.52 | J11: 0.0235
A12: 3 | D12: EXECUÇÃO DAS OBRAS | I12: =SUM(I13:I35) -> 196069.25
A13: 3.1 | B13: 98524 | C13: SINAPI | D13: LIMPEZA MANUAL DE VEGETAÇÃO EM TERRENO COM ENXADA | E13: m² | F13: 1004.01 | G13: =CPUs!J59 -> 4.48 | H13: =G13*(1+G$2) -> 5.49 | I13: =H13*F13 -> 5512.01 | J13: 0.0178
A14: 3.2a | B14: 10 | C14: Próprio | D14: LOCAÇÃO CONVENCIONAL DE OBRA, ATRAVÉS DE GABARITO DE TÁBUAS CORRIDAS PONTALETADAS, COM REAPROVEITAMENTO DE 10 VEZES | E14: M² | F14: 1004.01 | G14: =CPUs!J66 -> 6.2 | H14: =G14*(1+G$2) -> 7.6 | I14: 7630.48 | J14: 0.0246
A15: 3.2b | B15: 6 | C15: Próprio | D15: ESPALHAMENTO MECÂNICO DE SOLO, SEM COMPACTAÇÃO E SEM TRANSPORTE | E15: m³ | F15: 383.28 | G15: =CPUs!J78 -> 9.22 | H15: =G15*(1+G$2) -> 11.3 | I15: 4331.06 | J15: 0.014
A16: 3.3 | B16: 11 | C16: Próprio | D16: ESCAVAÇÃO MANUAL DE CAVAS (FUNDAÇÕES RASAS = 1,5 M) | E16: m³ | F16: 32.78 | G16: =CPUs!J86 -> 45.67 | H16: =G16*(1+G$2) -> 55.96 | I16: 1834.37 | J16: 0.0059 | L16: 93358 | M16: 83,27 m3
A17: 3.4 | B17: 12 | C17: Próprio | D17: ATERRO INTERNO COMPACTADO MANUALMENTE. | E17: m³ | F17: 96.25 | G17: =CPUs!J93 -> 19.49 | H17: =G17*(1+G$2) -> 23.88 | I17: 2298.45 | J17: 0.0074 | L17: 94319 | N17: 104737
A18: 3.5 | B18: 13 | C18: Próprio | D18: REATERRO MANUAL DE CAVAS E VALA DE FUNDAÇÃO | E18: m³ | F18: 15.97 | G18: =CPUs!J101 -> 16.55 | H18: =G18*(1+G$2) -> 20.28 | I18: 323.87 | J18: 0.001 | L18: 94319
A19: 3.6 | B19: 49 | C19: Próprio | D19: MURO DE ARRIMO DE ALVENARIA DE TIJOLOS | E19: m³ | F19: 7.56 | G19: =CPUs!J108 -> 664.49 | H19: =G19*(1+G$2) -> 814.27 | I19: 6155.88 | J19: 0.0199
A20: 3.7 | B20: 15 | C20: Próprio | D20: ALVENARIA DE 1/2 VEZ EM TIJOLO CERÂMICO FURADO DE 8 FUROS COM AS DIMENSÕES 9 CM X 19 CM X 29 CM, ASSENTADO COM ARGAMASSA DE CIMENTO E AREIA TRAÇO 1:7. | E20: M² | F20: 166.8 | G20: =CPUs!J120 -> 58.81 | H20: =G20*(1+G$2) -> 72.07 | I20: 12021.28 | J20: 0.0388
A21: 3.8 | B21: 20 | C21: Próprio | D21: CHAPISCO EM PAREDES, COM ARGAMASSA DE CIMENTO E AREIA NO TRAÇO 1:3. | E21: M² | F21: 328.52 | G21: =CPUs!J131 -> 7.66 | H21: =G21*(1+G$2) -> 9.39 | I21: 3084.8 | J21: 0.01
A22: 3.9 | B22: 18 | C22: Próprio | D22: REBOCO EM ARGAMASSA DE CIMENTO, CAL E AREIA FINA PENEIRADA, PRODUZIDA NO TRAÇO 1:4,5, COM ESPESSURA DE 2,00 CM, PREPARO MECÂNICO. | E22: M² | F22: 328.52 | G22: =CPUs!J140 -> 27.6 | H22: =G22*(1+G$2) -> 33.82 | I22: 11110.55 | J22: 0.0359
A23: 3.10 | B23: 19 | C23: Próprio | D23: LASTRO DE BRITA Nº 2 APILOADA MANUALMENTE COM MAÇO DE ATÉ 30 KG. | E23: M² | F23: 34.73 | G23: =CPUs!J151 -> 134.86 | H23: =G23*(1+G$2) -> 165.26 | I23: 5739.48 | J23: 0.0185
A24: 3.11 | B24: 21 | C24: Próprio | D24: FORNECIMENTO DE CONCRETO SIMPLES, PREPARADO EM BETONEIRA, PRODUZIDO NO TRAÇO 1:4:8 (CIMENTO, AREIA E BRITA), INCLUINDO PREPARO, LANÇAMENTO E ADENSAMENTO. | E24: M² | F24: 3.1 | G24: =CPUs!J160 -> 370.9 | H24: =G24*(1+G$2) -> 454.5 | I24: 1408.95 | J24: 0.0046
A25: 3.12 | B25: 22 | C25: Próprio | D25: PISO EM CONCRETO PARA PÁTIOS, CONCRETO PREPARO MECÂNICO FCK= 20MPA, ESPESSURA 8 CM, INCLUSO POLIMENTO E JUNTAS EM POLIURETANO 2 m x 2 m. | E25: m² | F25: 694.55 | G25: =CPUs!J173 -> 63.52 | H25: =G25*(1+G$2) -> 77.84 | I25: 54063.77 | J25: 0.1746 | L25: 101747 | M25: 80,47 m2
A26: 3.13 | B26: 23 | C26: Próprio | D26: FORNECIMENTO DE MALHA POP REFORÇADA, COM TELA EM MALHA DE ESPAÇAMENTO 15 CM x 15 CM, EM FERRO DE DIÂMETRO DE 4,2 MM, INCUINDO FORNECIMENTO, TRANSPORTE, CORTE E COLOCAÇÃO. | E26: M² | F26: 694.55 | G26: =CPUs!J185 -> 22.33 | H26: =G26*(1+G$2) -> 27.36 | I26: 19002.89 | J26: 0.0614
A27: 3.14 | B27: 24 | C27: Próprio | D27: FORNECIMENTO E APLICAÇÃO DE CONCRETO ARMADO FCK= 20 MPA, PREPARO EM BETONEIRA, INCLUSIVE PREPARO, LANÇAMENTO E ADENSAMENTO. | E27: M² | F27: 16.91 | G27: =CPUs!J194 -> 825.26 | H27: =G27*(1+G$2) -> 1011.27 | I27: 17100.58 | J27: 0.0552
A28: 3.15 | B28: 25 | C28: Próprio | D28: EXECUÇÃO DE CALÇADA EM CONCRETO CONVENCIONAL PREPARADO NO TRAÇO 1:4:8, PREPARO MECÂNCIO, ESPESSURA MÍNIMA DE 4 CM, COM ACABAMENTO DESEMPENADO. | E28: M³ | F28: 16.59 | G28: =CPUs!J213 -> 370.71 | H28: =G28*(1+G$2) -> 454.27 | I28: 7536.34 | J28: 0.0243
A29: 3.16 | B29: 26 | C29: Próprio | D29: LAJE PRÉ-MOLDADA, COM CAPACIDADE MÍNIMA DE 200kg/m², VÃOS ATE 3,50 m, e= 8,00 cm, NERVURAS E LAJOTAS EM CONCRETO ARMADO COM FCK=20MPA, RECOBRIMENTO MIN= 4 cm, DIST. INTER-EIXO DE 38 CM - ESCORAMENTO (REAPROV. 3X) E FERRAGEM NEGATIVA. | E29: M² | F29: 33 | G29: =CPUs!J225 -> 135.34 | H29: =G29*(1+G$2) -> 165.85 | I29: 5473.05 | J29: 0.0177
A30: 3.17 | B30: 27 | C30: Próprio | D30: APLICAÇÃO DE DUAS DEMÃOS DE PINTURA EM TINTA LÁTEX ACRÍLICA SOBRE AS PAREDES INTERNAS/EXTERNAS, PREVIAMENTE LIXADAS, SELADAS E EMASSADAS. | E30: m² | F30: 329.32 | G30: =CPUs!J241 -> 15.43 | H30: =G30*(1+G$2) -> 18.91 | I30: 6227.44 | J30: 0.0201
A31: 3.18 | B31: 29 | C31: Próprio | D31: PINTURA DO PISO DO PÁTIO EM TINTA ACRÍLICA SOBRE SUPERFÍCIE PREVIAMENTE PREPARADA. | E31: m² | F31: 5.28 | G31: =CPUs!J251 -> 10.59 | H31: =G31*(1+G$2) -> 12.98 | I31: 68.53 | J31: 0.0002
A32: 3.19 | B32: 102504 | C32: SINAPI | D32: PINTURA DE DEMARCAÇÃO DE QUADRA POLIESPORTIVA COM TINTA ACRÍLICA, E = 5 CM, APLICAÇÃO MANUAL. AF_05/2021 | E32: M | F32: 368.23 | G32: =CPUs!J260 -> 9.66 | H32: =G32*(1+G$2) -> 11.84 | I32: 4359.84 | J32: 0.0141
A33: 3.20 | B33: 30 | C33: Próprio | D33: CORTE E DOBRA DE AÇO CA-60, DIÂMETRO DE 5,0 MM, UTILIZADO EM ESTRUTURAS DIVERSAS, EXCETO LAJES. AF_12/2015 | E33: UNID | F33: 256.81 | G33: =CPUs!J270 -> 12.19 | H33: =G33*(1+G$2) -> 14.94 | I33: 3836.74 | J33: 0.0124
A34: 3.21 | B34: 31 | C34: Próprio | D34: CORTE E DOBRA DE AÇO CA-50, DIÂMETRO DE 8,0 MM, UTILIZADO EM ESTRUTURAS DIVERSAS, EXCETO LAJES. AF_12/2015 | E34: UNID | F34: 535.61 | G34: =CPUs!J279 -> 15.02 | H34: =G34*(1+G$2) -> 18.41 | I34: 9860.58 | J34: 0.0318
A35: 3.22 | B35: 35 | C35: Próprio | D35: LIMPEZA FINAL DA OBRA | E35: M² | F35: 1004.01 | G35: =CPUs!J288 -> 5.76 | H35: =G35*(1+G$2) -> 7.06 | I35: 7088.31 | J35: 0.0229
A36: 4 | D36: ACESSÓRIOS | I36: =SUM(I37:I42) -> 63031.99
A37: 4.1 | B37: 102363 | C37: SINAPI | D37: ALAMBRADO PARA QUADRA POLIESPORTIVA, ESTRUTURADO POR TUBOS DE ACO GALVANIZADO, (MONTANTES COM DIAMETRO 2", TRAVESSAS E ESCORAS COM DIÂMETRO 1 ¼"), COM TELA DE ARAME GALVANIZADO, FIO 12 BWG E MALHA QUADRADA 5X5CM (EXCETO MURETA). AF_03/2021 | E37: M² | F37: 207.17 | G37: =CPUs!J298 -> 175.87 | H37: =G37*(1+G$2) -> 215.51 | I37: =H37*F37 -> 44647.21 | J37: =I37/$H$52 -> 0.1442 | L37: 102363 | M37: 175,87 m2
A38: 4.2 | B38: 33 | C38: Próprio | D38: FORNECIMENTO, MONTAGEM E INSTALAÇÃO DE CORRIMÃO CONFECCIONADO EM TUBO DE AÇO GALVANIZADO DE 1 1/4"" COM BRAÇADEIRA. | E38: M | F38: 32.58 | G38: =CPUs!J312 -> 101.54 | H38: =G38*(1+G$2) -> 124.43 | I38: 4053.93 | J38: 0.0131
A39: 4.3 | B39: 36 | C39: Próprio | D39: APLICAÇÃO DE DUAS DEMÃOS DE TINTA ESMALTE SINTÉTICO ACETINADO, SOBRE SUPERFÍCIE DE FERRO PREVIAMENTE LIXADA E SELADA COM 1 DEMÃO DE ZARCÃO PRÓPRIO PARA ESQUADRIA DE FERRO GALVANIZADO. | E39: M² | F39: 16.29 | G39: =CPUs!J323 -> 40.07 | H39: =G39*(1+G$2) -> 49.1 | I39: 799.84 | J39: 0.0026
A40: 4.4 | B40: 37 | C40: Próprio | D40: FORNECIMENTO, MONTAGEM E INSTALAÇÃO DE CONJUNTO DE TRAVES, PRODUZIDA EM TUBO DE AÇO GALVANIZADO DE 3" COM REQUADRO, CONFORME MODELO EM PLANTA, INCLUSIVE PINTURA E REDES. | E40: CJ | F40: 1 | G40: =CPUs!J335 -> 3553.31 | H40: =G40*(1+G$2) -> 4354.23 | I40: 4354.23 | J40: 0.0141
A41: 4.5 | B41: 38 | C41: Próprio | D41: FORNECIMENTO, MONTAGEM E INSTALAÇÃO DE CONJUNTO DE ESTRUTURAS PARA SUPORTE DA TABELA, EM TUBO DE AÇO GALVANIZADO DE 5", CONFECCIONADA CONFORME MODELO EM PLANTA ARQUITETÔNICA, INCLUINDO TABELAS CONFECCIONADA EM LAMINADO NAVAL, PINTURAS, AROS E REDES. | E41: CJ | F41: 1 | G41: =CPUs!J343 -> 6318 | H41: =G41*(1+G$2) -> 7742.08 | I41: 7742.08 | J41: 0.025
A42: 4.6 | B42: 39 | C42: Próprio | D42: FORNECIMENTO, MONTAGEM E ASSENTAMENTO DE MASTROS PARA VÔLEI, MÓVEL, CONFECCIONADO EM TUBO DE FERRO GALVANIZADO DE 3", PINTADO COM TINTA ESMALTE SINTÉTICO, INCLUSIVE REDES, PADRÃO OFICIAL, COM 4 FAIXAS. | E42: PAR | F42: 1 | G42: =CPUs!J352 -> 1170.8 | H42: =G42*(1+G$2) -> 1434.7 | I42: 1434.7 | J42: 0.0046
A43: 5 | D43: Instalação Eletrica | I43: =SUM(I44:I51) -> 21589.98
A44: 5.1 | B44: 40 | C44: Próprio | D44: FORNECIMENTO, MONTAGEM, INSTALAÇÃO E TESTE DE REFLETOR RETANGULAR LED DE 400W DE POTÊNCIA, BRANCO FRIO, 6500K. | E44: UNID | F44: 8 | G44: =CPUs!J362 -> 359.18 | H44: =G44*(1+G$2) -> 440.14 | I44: =H44*F44 -> 3521.12 | J44: =I44/$H$52 -> 0.0114
A45: 5.2 | B45: 41 | C45: Próprio | D45: FORNECIMENTO, MONTAGEM E INSTALAÇÃO DE CABO DE COBRE ISOLADO PVC RESISTENTE A CHAMA 450/750 V 4 MM² . | E45: M | F45: 500 | G45: =CPUs!J371 -> 6.6 | H45: =G45*(1+G$2) -> 8.09 | I45: 4045 | J45: 0.0131
A46: 5.3 | B46: 42 | C46: Próprio | D46: FORNECIMENTO, MONTAGEM E INSTALAÇÃO DE ELETRODUTO DE PVC RÍGIDO DE 25MM (1 POL) | E46: M | F46: 160 | G46: =CPUs!J380 -> 18.42 | H46: =G46*(1+G$2) -> 22.57 | I46: 3611.2 | J46: 0.0117
A47: 5.4 | B47: 43 | C47: Próprio | D47: FORNECIMENTO, MONTAGEM E INSTALAÇÃO DE ATERRAMENTO DO CIRCUITO ELÉTRICO CONFECCIONADO EM HASTE COPPERWELD 5/8 X 3,0M COM CABOS DE COBRE NU E CONECTORES. | E47: UNID | F47: 2 | G47: =CPUs!J389 -> 136.98 | H47: =G47*(1+G$2) -> 167.86 | I47: 335.72 | J47: 0.0011
A48: 5.5 | B48: 45 | C48: Próprio | D48: FORNECIMENTO E INSTALAÇÃO DE QUADRO DE DISTRIBUIÇÃO DE ENERGIA, CONFECCIONADO EM CHAPA METÁLICA, PARA NO MÍNIMO 6 DISJUNTORES TERMOMAGNÉTICOS MONOPOLARES, DISPOSITIVO PARA CHAVE GERAL, COM PORTA, BARRAMENTOS FASES, BARRAMENTO NEUTRO E DISJUNTORES. | E48: unid | F48: 1 | G48: =CPUs!J398 -> 134.06 | H48: =G48*(1+G$2) -> 164.28 | I48: 164.28 | J48: 0.0005
A49: 5.6 | B49: 46 | C49: Próprio | D49: FORNECIMENTO E INSTALAÇÃO DE CAIXA DE INSPEÇÃO EM CONCRETO PRÉ-MOLDADO DN 60MM COM TAMPA E PROFUNDIDADE DE 60 CM. | E49: unid | F49: 4 | G49: =CPUs!J407 -> 230.29 | H49: =G49*(1+G$2) -> 282.2 | I49: 1128.8 | J49: 0.0036
A50: 5.7 | B50: 47 | C50: Próprio | D50: FORNECIMENTO, MONTAGEM E INSTALAÇÃO DE POSTE DE CONCRETO ARMADO COM COMPRIMENTO DE 7,0 M, E CAPACIDADE DE CARGA NOMINAL TOPO DE 150KG. | E50: unid | F50: 4 | G50: =CPUs!J418 -> 1293.37 | H50: =G50*(1+G$2) -> 1584.9 | I50: 6339.6 | J50: 0.0205
A51: 5.8 | B51: 48 | C51: Próprio | D51: POSTE PADRÃO CELPE, 7X75, 50A, COM CABEAMENTO, CAIXA DE PROTEÇÃO PARA MEDIDOR E ATERRAMENTO | E51: unid | F51: 1 | G51: =CPUs!J430 -> 1994.66 | H51: =G51*(1+G$2) -> 2444.26 | I51: 2444.26 | J51: 0.0079
F52: PREÇO GLOBAL | H52: =SUM(I43,I36,I12,I9,I5) -> 309626.48 | J52: =SUM(J6:J51) -> 1

Sheet CPUs
D1: Obra | E1: Bancos | G1: B.D.I. | I1: Encargos Sociais
D2: SRP Pátios de Múltiplos Usos | E2: SINAPI 08/24 PE ORSE 06/2024 | G2: =BDI!D25 -> 0.2254 | I2: Horista: 113,98% Mensalista: 70,00%
A3: Composições de Preço Unitário (NÃO DESONERADA)
A4: 1 | D4: IMPLANTAÇÃO DA OBRA
A5: 1.1 | B5: Código | C5: Banco | D5: Descrição | E5: Tipo | G5: Und | H5: Quant. | I5: Valor Unit | J5: Total
A6: Composição | B6: 00000007 | C6: Próprio | D6: PLACA DE OBRA | E6: SERP - SERVIÇOS PRELIMINARES | G6: unid | H6: 1 | J6: =SUM(J7:J16) -> 1575.41
A7: Composição Auxiliar | B7: 87445 | C7: SINAPI | D7: BETONEIRA CAPACIDADE NOMINAL 400 L, CAPACIDADE DE MISTURA 310 L, MOTOR A DIESEL POTÊNCIA 5,0 HP, SEM CARREGADOR - CHP DIURNO. AF_06/2014 | E7: CHOR - CUSTOS HORÁRIOS DE MÁQUINAS E EQUIPAMENTOS | G7: CHP | H7: 0.039 | I7: =IF(A7="Insumo",VLOOKUP(B7,'ins sinapi nao des'!$A:$E,5,0),IF(A7="Composição Auxiliar",VLOOKUP(B7,'comp sinapi nao des'!$G:$K,5,0))) -> 5.51 | J7: =ROUNDDOWN(H7*I7,2) -> 0.21
A8: Composição Auxiliar | B8: 88262 | C8: SINAPI | D8: CARPINTEIRO DE FORMAS COM ENCARGOS COMPLEMENTARES | E8: SEDI - SERVIÇOS DIVERSOS | G8: H | H8: 6 | I8: =IF(A8="Insumo",VLOOKUP(B8,'ins sinapi nao des'!$A:$E,5,0),IF(A8="Composição Auxiliar",VLOOKUP(B8,'comp sinapi nao des'!$G:$K,5,0))) -> 26.12 | J8: 156.72
A9: Composição Auxiliar | B9: 88316 | C9: SINAPI | D9: SERVENTE COM ENCARGOS COMPLEMENTARES | E9: SEDI - SERVIÇOS DIVERSOS | G9: H | H9: 12.36 | I9: =IF(A9="Insumo",VLOOKUP(B9,'ins sinapi nao des'!$A:$E,5,0),IF(A9="Composição Auxiliar",VLOOKUP(B9,'comp sinapi nao des'!$G:$K,5,0))) -> 21.05 | J9: 260.17
A10: Insumo | B10: 5075 | C10: SINAPI | D10: PREGO DE ACO POLIDO COM CABECA 18 X 30 (2 3/4 X 10) | E10: Material | G10: KG | H10: 0.66 | I10: =IF(A10="Insumo",VLOOKUP(B10,'ins sinapi nao des'!$A:$E,5,0),IF(A10="Composição Auxiliar",VLOOKUP(B10,'comp sinapi nao des'!$G:$K,5,0))) -> 15.77 | J10: 10.4
A11: Insumo | B11: 4491 | C11: SINAPI | D11: PONTALETE *7,5 X 7,5* CM EM PINUS, MISTA OU EQUIVALENTE DA REGIAO - BRUTA | E11: Material | G11: M | H11: 24 | I11: =IF(A11="Insumo",VLOOKUP(B11,'ins sinapi nao des'!$A:$E,5,0),IF(A11="Composição Auxiliar",VLOOKUP(B11,'comp sinapi nao des'!$G:$K,5,0))) -> 10.66 | J11: 255.84
A12: Insumo | B12: 4417 | C12: SINAPI | D12: SARRAFO NAO APARELHADO *2,5 X 7* CM, EM MACARANDUBA, ANGELIM OU EQUIVALENTE DA REGIAO - BRUTA | E12: Material | G12: M | H12: 6 | I12: =IF(A12="Insumo",VLOOKUP(B12,'ins sinapi nao des'!$A:$E,5,0),IF(A12="Composição Auxiliar",VLOOKUP(B12,'comp sinapi nao des'!$G:$K,5,0))) -> 7.37 | J12: 44.22
A13: Insumo | B13: 4813 | C13: SINAPI | D13: PLACA DE OBRA (PARA CONSTRUCAO CIVIL) EM CHAPA GALVANIZADA *N. 22*, ADESIVADA, DE *2,4 X 1,2* M (SEM POSTES PARA FIXACAO) | E13: Material | G13: m² | H13: 2.08 | I13: =IF(A13="Insumo",VLOOKUP(B13,'ins sinapi nao des'!$A:$E,5,0),IF(A13="Composição Auxiliar",VLOOKUP(B13,'comp sinapi nao des'!$G:$K,5,0))) -> 400 | J13: 832
A14: Insumo | B14: 370 | C14: SINAPI | D14: AREIA MEDIA - POSTO JAZIDA/FORNECEDOR (RETIRADO NA JAZIDA, SEM TRANSPORTE) | E14: Material | G14: m³ | H14: 0.0294 | I14: =IF(A14="Insumo",VLOOKUP(B14,'ins sinapi nao des'!$A:$E,5,0),IF(A14="Composição Auxiliar",VLOOKUP(B14,'comp sinapi nao des'!$G:$K,5,0))) -> 129 | J14: 3.79
A15: Insumo | B15: 1379 | C15: SINAPI | D15: CIMENTO PORTLAND COMPOSTO CP II-32 | E15: Material | G15: KG | H15: 9 | I15: =IF(A15="Insumo",VLOOKUP(B15,'ins sinapi nao des'!$A:$E,5,0),IF(A15="Composição Auxiliar",VLOOKUP(B15,'comp sinapi nao des'!$G:$K,5,0))) -> 0.68 | J15: 6.12
A16: Insumo | B16: 4718 | C16: SINAPI | D16: PEDRA BRITADA N. 2 (19 A 38 MM) POSTO PEDREIRA/FORNECEDOR, SEM FRETE | E16: Material | G16: m³ | H16: 0.0588 | I16: =IF(A16="Insumo",VLOOKUP(B16,'ins sinapi nao des'!$A:$E,5,0),IF(A16="Composição Auxiliar",VLOOKUP(B16,'comp sinapi nao des'!$G:$K,5,0))) -> 101.14 | J16: 5.94
A21: 1.2 | B21: Código | C21: Banco | D21: Descrição | E21: Tipo | G21: Und | H21: Quant. | I21: Valor Unit | J21: Total
A22: Composição | B22: 2 | C22: Próprio | D22: MOBILIZAÇÃO - TRANSPORTE COMERCIAL COM CAMINHÃO CARROCERIA 9T, RODOVIA PAVIMENTADA | E22: SERP - SERVIÇOS PRELIMINARES | G22: TXKM | H22: 1 | J22: =SUM(J23:J24) -> 1.24
A23: Composição Auxiliar | B23: 88316 | C23: SINAPI | D23: SERVENTE COM ENCARGOS COMPLEMENTARES | E23: SEDI - SERVIÇOS DIVERSOS | G23: H | H23: 0.0131579 | I23: =IF(A23="Insumo",VLOOKUP(B23,'ins sinapi nao des'!$A:$E,5,0),IF(A23="Composição Auxiliar",VLOOKUP(B23,'comp sinapi nao des'!$G:$K,5,0))) -> 21.05 | J23: =ROUNDDOWN(H23*I23,2) -> 0.27
A24: Composição Auxiliar | B24: 5824 | C24: SINAPI | D24: CAMINHÃO TOCO, PBT 16.000 KG, CARGA ÚTIL MÁX. 10.685 KG, DIST. ENTRE EIXOS 4,8 M, POTÊNCIA 189 CV, INCLUSIVE CARROCERIA FIXA ABERTA DE MADEIRA P/ TRANSPORTE GERAL DE CARGA SECA, DIMEN. APROX. 2,5 X 7,00 X 0,50 M - CHP DIURNO. AF_06/2014 | E24: CHOR - CUSTOS HORÁRIOS DE MÁQUINAS E EQUIPAMENTOS | G24: CHP | H24: 0.0045 | I24: =IF(A24="Insumo",VLOOKUP(B24,'ins sinapi nao des'!$A:$E,5,0),IF(A24="Composição Auxiliar",VLOOKUP(B24,'comp sinapi nao des'!$G:$K,5,0))) -> 217.36 | J24: =ROUNDDOWN(H24*I24,2) -> 0.97
A29: 1.3 | B29: Código | C29: Banco | D29: Descrição | E29: Tipo | G29: Und | H29: Quant. | I29: Valor Unit | J29: Total
A30: Composição | B30: 3 | C30: Próprio | D30: DESMOBILIZAÇÃO - TRANSPORTE COMERCIAL COM CAMINHÃO CARROCERIA 9T, RODOVIA PAVIMENTADA. | E30: TRAN - TRANSPORTES, CARGAS E DESCARGAS | G30: TXKM | H30: 1 | J30: =SUM(J31:J32) -> 1.24
A31: Composição Auxiliar | B31: 88316 | C31: SINAPI | D31: SERVENTE COM ENCARGOS COMPLEMENTARES | E31: SEDI - SERVIÇOS DIVERSOS | G31: H | H31: 0.0131579 | I31: =IF(A31="Insumo",VLOOKUP(B31,'ins sinapi nao des'!$A:$E,5,0),IF(A31="Composição Auxiliar",VLOOKUP(B31,'comp sinapi nao des'!$G:$K,5,0))) -> 21.05 | J31: =ROUNDDOWN(H31*I31,2) -> 0.27
A32: Composição Auxiliar | B32: 5824 | C32: SINAPI | D32: CAMINHÃO TOCO, PBT 16.000 KG, CARGA ÚTIL MÁX. 10.685 KG, DIST. ENTRE EIXOS 4,8 M, POTÊNCIA 189 CV, INCLUSIVE CARROCERIA FIXA ABERTA DE MADEIRA P/ TRANSPORTE GERAL DE CARGA SECA, DIMEN. APROX. 2,5 X 7,00 X 0,50 M - CHP DIURNO. AF_06/2014 | E32: CHOR - CUSTOS HORÁRIOS DE MÁQUINAS E EQUIPAMENTOS | G32: CHP | H32: 0.0045 | I32: =IF(A32="Insumo",VLOOKUP(B32,'ins sinapi nao des'!$A:$E,5,0),IF(A32="Composição Auxiliar",VLOOKUP(B32,'comp sinapi nao des'!$G:$K,5,0))) -> 217.36 | J32: =ROUNDDOWN(H32*I32,2) -> 0.97
A37: 2 | D37: ADMINISTRAÇÃO DA OBRA
A38: 2.1 | B38: Código | C38: Banco | D38: Descrição | E38: Tipo | G38: Und | H38: Quant. | I38: Valor Unit | J38: Total
A39: Composição | B39: 34 | C39: Próprio | D39: ADMINISTRAÇÃO LOCAL | E39: SEDI - SERVIÇOS DIVERSOS | G39: UNID | H39: 1 | J39: =SUM(J40:J44) -> 15064
A40: Composição Auxiliar | B40: 90777 | C40: SINAPI | D40: ENGENHEIRO CIVIL DE OBRA JUNIOR COM ENCARGOS COMPLEMENTARES | E40: SEDI - SERVIÇOS DIVERSOS | G40: H | H40: 48 | I40: =IF(A40="Insumo",VLOOKUP(B40,'ins sinapi nao des'!$A:$E,5,0),IF(A40="Composição Auxiliar",VLOOKUP(B40,'comp sinapi nao des'!$G:$K,5,0))) -> 120.8 | J40: =ROUNDDOWN(H40*I40,2) -> 5798.4
A41: Composição Auxiliar | B41: 90776 | C41: SINAPI | D41: ENCARREGADO GERAL COM ENCARGOS COMPLEMENTARES | E41: SEDI - SERVIÇOS DIVERSOS | G41: H | H41: 120 | I41: =IF(A41="Insumo",VLOOKUP(B41,'ins sinapi nao des'!$A:$E,5,0),IF(A41="Composição Auxiliar",VLOOKUP(B41,'comp sinapi nao des'!$G:$K,5,0))) -> 36.14 | J41: 4336.8
A42: Composição Auxiliar | B42: 90772 | C42: SINAPI | D42: AUXILIAR DE ESCRITORIO COM ENCARGOS COMPLEMENTARES | E42: SEDI - SERVIÇOS DIVERSOS | G42: H | H42: 200 | I42: =IF(A42="Insumo",VLOOKUP(B42,'ins sinapi nao des'!$A:$E,5,0),IF(A42="Composição Auxiliar",VLOOKUP(B42,'comp sinapi nao des'!$G:$K,5,0))) -> 18.98 | J42: 3796
A43: Insumo | B43: 8978 | C43: ORSE | D43: Água - Consumo em volume m3 | E43: 0 | G43: m³ | H43: 80 | I43: 3.77 | J43: 301.6
A44: Insumo | B44: 2789 | C44: ORSE | D44: Veículo leve - pick up (97kw) h | E44: 0 | G44: h | H44: 80 | I44: 10.39 | J44: 831.2
A49: 2.2 | B49: Código | C49: Banco | D49: Descrição | E49: Tipo | G49: Und | H49: Quant. | I49: Valor Unit | J49: Total
A50: Composição | B50: 00000005 | C50: Próprio | D50: CANTEIROS DE OBRAS E ALMOXARIFADO | E50: CANT - CANTEIRO DE OBRAS | G50: mês | H50: 1 | J50: =SUM(J51:J52) -> 1482.89
A51: Insumo | B51: 10775 | C51: SINAPI | D51: LOCACAO DE CONTAINER 2,30 X 6,00 M, ALT. 2,50 M, COM 1 SANITARIO, PARA ESCRITORIO, COMPLETO, SEM DIVISORIAS INTERNAS (NAO INCLUI MOBILIZACAO/DESMOBILIZACAO) | E51: Equipamento | G51: MES | H51: 1 | I51: =IF(A51="Insumo",VLOOKUP(B51,'ins sinapi nao des'!$A:$E,5,0),IF(A51="Composição Auxiliar",VLOOKUP(B51,'comp sinapi nao des'!$G:$K,5,0))) -> 832.5 | J51: =ROUNDDOWN(H51*I51,2) -> 832.5
A52: Insumo | B52: 10776 | C52: SINAPI | D52: LOCACAO DE CONTAINER 2,30 X 6,00 M, ALT. 2,50 M, PARA ESCRITORIO, SEM DIVISORIAS INTERNAS E SEM SANITARIO (NAO INCLUI MOBILIZACAO/DESMOBILIZACAO) | E52: Equipamento | G52: MES | H52: 1 | I52: =IF(A52="Insumo",VLOOKUP(B52,'ins sinapi nao des'!$A:$E,5,0),IF(A52="Composição Auxiliar",VLOOKUP(B52,'comp sinapi nao des'!$G:$K,5,0))) -> 650.39 | J52: =ROUNDDOWN(H52*I52,2) -> 650.39
A57: 3 | D57: EXECUÇÃO DAS OBRAS
A58: 3.1 | B58: Código | C58: Banco | D58: Descrição | E58: Tipo | G58: Und | H58: Quant. | I58: Valor Unit | J58: Total
A59: Composição | B59: 98524 | C59: SINAPI | D59: LIMPEZA MANUAL DE VEGETAÇÃO EM TERRENO COM ENXADA | E59: SEDI - SERVIÇOS DIVERSOS | G59: m² | H59: 1 | J59: =J60 -> 4.48
A60: Composição Auxiliar | B60: 88316 | C60: SINAPI | D60: SERVENTE COM ENCARGOS COMPLEMENTARES | E60: SEDI - SERVIÇOS DIVERSOS | G60: H | H60: 0.2132 | I60: =IF(A60="Insumo",VLOOKUP(B60,'ins sinapi nao des'!$A:$E,5,0),IF(A60="Composição Auxiliar",VLOOKUP(B60,'comp sinapi nao des'!$G:$K,5,0))) -> 21.05 | J60: =ROUNDDOWN(H60*I60,2) -> 4.48
A65: 3.2a | B65: Código | C65: Banco | D65: Descrição | E65: Tipo | G65: Und | H65: Quant. | I65: Valor Unit | J65: Total
A66: Composição | B66: 10 | C66: Próprio | D66: LOCAÇÃO CONVENCIONAL DE OBRA, ATRAVÉS DE GABARITO DE TÁBUAS CORRIDAS PONTALETADAS, COM REAPROVEITAMENTO DE 10 VEZES | E66: SERP - SERVIÇOS PRELIMINARES | G66: M² | H66: 1 | J66: =SUM(J67:J72) -> 6.2
A67: Composição Auxiliar | B67: 88262 | C67: SINAPI | D67: CARPINTEIRO DE FORMAS COM ENCARGOS COMPLEMENTARES | E67: SEDI - SERVIÇOS DIVERSOS | G67: H | H67: 0.09 | I67: =IF(A67="Insumo",VLOOKUP(B67,'ins sinapi nao des'!$A:$E,5,0),IF(A67="Composição Auxiliar",VLOOKUP(B67,'comp sinapi nao des'!$G:$K,5,0))) -> 26.12 | J67: =ROUNDDOWN(H67*I67,2) -> 2.35
A68: Composição Auxiliar | B68: 88316 | C68: SINAPI | D68: SERVENTE COM ENCARGOS COMPLEMENTARES | E68: SEDI - SERVIÇOS DIVERSOS | G68: H | H68: 0.1 | I68: =IF(A68="Insumo",VLOOKUP(B68,'ins sinapi nao des'!$A:$E,5,0),IF(A68="Composição Auxiliar",VLOOKUP(B68,'comp sinapi nao des'!$G:$K,5,0))) -> 21.05 | J68: 2.1
A69: Insumo | B69: 43132 | C69: SINAPI | D69: ARAME RECOZIDO 16 BWG, D = 1,65 MM (0,016 KG/M) OU 18 BWG, D = 1,25 MM (0,01 KG/M) | E69: Material | G69: KG | H69: 0.018 | I69: =IF(A69="Insumo",VLOOKUP(B69,'ins sinapi nao des'!$A:$E,5,0),IF(A69="Composição Auxiliar",VLOOKUP(B69,'comp sinapi nao des'!$G:$K,5,0))) -> 22.56 | J69: 0.4
A70: Insumo | B70: 4433 | C70: SINAPI | D70: CAIBRO NAO APARELHADO *7,5 X 7,5* CM, EM MACARANDUBA, ANGELIM OU EQUIVALENTE DA REGIAO - BRUTA | E70: Material | G70: M | H70: 0.032 | I70: =IF(A70="Insumo",VLOOKUP(B70,'ins sinapi nao des'!$A:$E,5,0),IF(A70="Composição Auxiliar",VLOOKUP(B70,'comp sinapi nao des'!$G:$K,5,0))) -> 26.49 | J70: 0.84
A71: Insumo | B71: 10567 | C71: SINAPI | D71: TABUA *2,5 X 23* CM EM PINUS, MISTA OU EQUIVALENTE DA REGIAO - BRUTA | E71: Material | G71: M | H71: 0.03 | I71: =IF(A71="Insumo",VLOOKUP(B71,'ins sinapi nao des'!$A:$E,5,0),IF(A71="Composição Auxiliar",VLOOKUP(B71,'comp sinapi nao des'!$G:$K,5,0))) -> 12.04 | J71: 0.36
A72: Insumo | B72: 5061 | C72: SINAPI | D72: PREGO DE ACO POLIDO COM CABECA 18 X 27 (2 1/2 X 10) | E72: Material | G72: KG | H72: 0.01 | I72: =IF(A72="Insumo",VLOOKUP(B72,'ins sinapi nao des'!$A:$E,5,0),IF(A72="Composição Auxiliar",VLOOKUP(B72,'comp sinapi nao des'!$G:$K,5,0))) -> 15.5 | J72: 0.15
A77: 3.2b | B77: Código | C77: Banco | D77: Descrição | E77: Tipo | G77: Und | H77: Quant. | I77: Valor Unit | J77: Total
A78: Composição | B78: 6 | C78: Próprio | D78: ESPALHAMENTO MECÂNICO DE SOLO, SEM COMPACTAÇÃO E SEM TRANSPORTE | E78: Execução de Cortes e Aterros | G78: m³ | H78: 1 | J78: =SUM(J79:J80) -> 9.22
A79: Composição Auxiliar | B79: 88316 | C79: SINAPI | D79: SERVENTE COM ENCARGOS COMPLEMENTARES | E79: SEDI - SERVIÇOS DIVERSOS | G79: H | H79: 0.05 | I79: =IF(A79="Insumo",VLOOKUP(B79,'ins sinapi nao des'!$A:$E,5,0),IF(A79="Composição Auxiliar",VLOOKUP(B79,'comp sinapi nao des'!$G:$K,5,0))) -> 21.05 | J79: =ROUNDDOWN(H79*I79,2) -> 1.05
A80: Composição Auxiliar | B80: 5875 | C80: SINAPI | D80: RETROESCAVADEIRA SOBRE RODAS COM CARREGADEIRA, TRAÇÃO 4X4, POTÊNCIA LÍQ. 72 HP, CAÇAMBA CARREG. CAP. MÍN. 0,79 M3, CAÇAMBA RETRO CAP. 0,18 M3, PESO OPERACIONAL MÍN. 7.140 KG, PROFUNDIDADE ESCAVAÇÃO MÁX. 4,50 M - CHP DIURNO. AF_06/2014 | E80: Equipamento | G80: CHP | H80: 0.055 | I80: =IF(A80="Insumo",VLOOKUP(B80,'ins sinapi nao des'!$A:$E,5,0),IF(A80="Composição Auxiliar",VLOOKUP(B80,'comp sinapi nao des'!$G:$K,5,0))) -> 148.67 | J80: =ROUNDDOWN(H80*I80,2) -> 8.17
A85: 3.3 | B85: Código | C85: Banco | D85: Descrição | E85: Tipo | G85: Und | H85: Quant. | I85: Valor Unit | J85: Total
A86: Composição | B86: 11 | C86: Próprio | D86: ESCAVAÇÃO MANUAL DE CAVAS (FUNDAÇÕES RASAS = 1,5 M) | E86: SERP - SERVIÇOS PRELIMINARES | G86: m³ | H86: 1 | J86: =J87 -> 45.67
A87: Composição Auxiliar | B87: 88316 | C87: SINAPI | D87: SERVENTE COM ENCARGOS COMPLEMENTARES | E87: SEDI - SERVIÇOS DIVERSOS | G87: H | H87: 2.17 | I87: =IF(A87="Insumo",VLOOKUP(B87,'ins sinapi nao des'!$A:$E,5,0),IF(A87="Composição Auxiliar",VLOOKUP(B87,'comp sinapi nao des'!$G:$K,5,0))) -> 21.05 | J87: =ROUNDDOWN(H87*I87,2) -> 45.67
A92: 3.4 | B92: Código | C92: Banco | D92: Descrição | E92: Tipo | G92: Und | H92: Quant. | I92: Valor Unit | J92: Total
A93: Composição | B93: 12 | C93: Próprio | D93: ATERRO INTERNO COMPACTADO MANUALMENTE. | E93: MOVT - MOVIMENTO DE TERRA | G93: m³ | H93: 1 | J93: =SUM(J94:J95) -> 19.49
A94: Composição Auxiliar | B94: 88316 | C94: SINAPI | D94: SERVENTE COM ENCARGOS COMPLEMENTARES | E94: SEDI - SERVIÇOS DIVERSOS | G94: H | H94: 0.8809 | I94: =IF(A94="Insumo",VLOOKUP(B94,'ins sinapi nao des'!$A:$E,5,0),IF(A94="Composição Auxiliar",VLOOKUP(B94,'comp sinapi nao des'!$G:$K,5,0))) -> 21.05 | J94: =ROUNDDOWN(H94*I94,2) -> 18.54
A95: Composição Auxiliar | B95: 91277 | C95: SINAPI | D95: PLACA VIBRATÓRIA REVERSÍVEL COM MOTOR 4 TEMPOS A GASOLINA, FORÇA CENTRÍFUGA DE 25 KN (2500 KGF), POTÊNCIA 5,5 CV - CHP DIURNO. AF_08/2015 | E95: SEDI - SERVIÇOS DIVERSOS | G95: CHP | H95: 0,0942000 | I95: =IF(A95="Insumo",VLOOKUP(B95,'ins sinapi nao des'!$A:$E,5,0),IF(A95="Composição Auxiliar",VLOOKUP(B95,'comp sinapi nao des'!$G:$K,5,0))) -> 10.13 | J95: =ROUNDDOWN(H95*I95,2) -> 0.95
A100: 3.5 | B100: Código | C100: Banco | D100: Descrição | E100: Tipo | G100: Und | H100: Quant. | I100: Valor Unit | J100: Total
A101: Composição | B101: 13 | C101: Próprio | D101: REATERRO MANUAL DE CAVAS E VALA DE FUNDAÇÃO | E101: MOVT - MOVIMENTO DE TERRA | G101: m³ | H101: 1 | J101: =J102 -> 16.55
A102: Composição Auxiliar | B102: 88316 | C102: SINAPI | D102: SERVENTE COM ENCARGOS COMPLEMENTARES | E102: SEDI - SERVIÇOS DIVERSOS | G102: H | H102: 0.7866 | I102: =IF(A102="Insumo",VLOOKUP(B102,'ins sinapi nao des'!$A:$E,5,0),IF(A102="Composição Auxiliar",VLOOKUP(B102,'comp sinapi nao des'!$G:$K,5,0))) -> 21.05 | J102: =ROUNDDOWN(H102*I102,2) -> 16.55
A107: 3.6 | B107: Código | C107: Banco | D107: Descrição | E107: Tipo | G107: Und | H107: Quant. | I107: Valor Unit | J107: Total
A108: Composição | B108: 49 | C108: Próprio | D108: MURO DE ARRIMO DE ALVENARIA DE TIJOLOS | E108: DROP - DRENAGEM/OBRAS DE CONTENÇÃO / POÇOS DE VISITA E CAIXAS | G108: m³ | H108: 1 | J108: =SUM(J109:J114) -> 664.49
A109: Composição Auxiliar | B109: 88309 | C109: SINAPI | D109: PEDREIRO COM ENCARGOS COMPLEMENTARES | E109: SEDI - SERVIÇOS DIVERSOS | G109: H | H109: 6.8 | I109: =IF(A109="Insumo",VLOOKUP(B109,'ins sinapi nao des'!$A:$E,5,0),IF(A109="Composição Auxiliar",VLOOKUP(B109,'comp sinapi nao des'!$G:$K,5,0))) -> 26.5 | J109: =ROUNDDOWN(H109*I109,2) -> 180.2
A110: Composição Auxiliar | B110: 88316 | C110: SINAPI | D110: SERVENTE COM ENCARGOS COMPLEMENTARES | E110: SEDI - SERVIÇOS DIVERSOS | G110: H | H110: 7.3 | I110: =IF(A110="Insumo",VLOOKUP(B110,'ins sinapi nao des'!$A:$E,5,0),IF(A110="Composição Auxiliar",VLOOKUP(B110,'comp sinapi nao des'!$G:$K,5,0))) -> 21.05 | J110: 153.66
A111: Insumo | B111: 370 | C111: SINAPI | D111: AREIA MEDIA - POSTO JAZIDA/FORNECEDOR (RETIRADO NA JAZIDA, SEM TRANSPORTE) | E111: Material | G111: m³ | H111: 0.264 | I111: =IF(A111="Insumo",VLOOKUP(B111,'ins sinapi nao des'!$A:$E,5,0),IF(A111="Composição Auxiliar",VLOOKUP(B111,'comp sinapi nao des'!$G:$K,5,0))) -> 129 | J111: 34.05
A112: Insumo | B112: 1107 | C112: SINAPI | D112: CAL VIRGEM COMUM PARA ARGAMASSAS (NBR 6453) | E112: Material | G112: KG | H112: 28.14 | I112: =IF(A112="Insumo",VLOOKUP(B112,'ins sinapi nao des'!$A:$E,5,0),IF(A112="Composição Auxiliar",VLOOKUP(B112,'comp sinapi nao des'!$G:$K,5,0))) -> 1.27 | J112: 35.73
A113: Insumo | B113: 1379 | C113: SINAPI | D113: CIMENTO PORTLAND COMPOSTO CP II-32 | E113: Material | G113: KG | H113: 58.76 | I113: =IF(A113="Insumo",VLOOKUP(B113,'ins sinapi nao des'!$A:$E,5,0),IF(A113="Composição Auxiliar",VLOOKUP(B113,'comp sinapi nao des'!$G:$K,5,0))) -> 0.68 | J113: 39.95
A114: Insumo | B114: 7258 | C114: SINAPI | D114: TIJOLO CERAMICO MACICO COMUM *5 X 10 X 20* CM (L X A X C) | E114: Material | G114: UN | H114: 470 | I114: =IF(A114="Insumo",VLOOKUP(B114,'ins sinapi nao des'!$A:$E,5,0),IF(A114="Composição Auxiliar",VLOOKUP(B114,'comp sinapi nao des'!$G:$K,5,0))) -> 0.47 | J114: 220.9
A119: 3.7 | B119: Código | C119: Banco | D119: Descrição | E119: Tipo | G119: Und | H119: Quant. | I119: Valor Unit | J119: Total
A120: Composição | B120: 15 | C120: Próprio | D120: ALVENARIA DE 1/2 VEZ EM TIJOLO CERÂMICO FURADO DE 8 FUROS COM AS DIMENSÕES 9 CM X 19 CM X 29 CM, ASSENTADO COM ARGAMASSA DE CIMENTO E AREIA TRAÇO 1:7. | E120: PARE - PAREDES/PAINEIS | G120: M² | H120: 1 | J120: =SUM(J121:J125) -> 58.81
A121: Composição Auxiliar | B121: 88309 | C121: SINAPI | D121: PEDREIRO COM ENCARGOS COMPLEMENTARES | E121: SEDI - SERVIÇOS DIVERSOS | G121: H | H121: 0.65 | I121: =IF(A121="Insumo",VLOOKUP(B121,'ins sinapi nao des'!$A:$E,5,0),IF(A121="Composição Auxiliar",VLOOKUP(B121,'comp sinapi nao des'!$G:$K,5,0))) -> 26.5 | J121: =ROUNDDOWN(H121*I121,2) -> 17.22
A122: Composição Auxiliar | B122: 88316 | C122: SINAPI | D122: SERVENTE COM ENCARGOS COMPLEMENTARES | E122: SEDI - SERVIÇOS DIVERSOS | G122: H | H122: 0.746 | I122: =IF(A122="Insumo",VLOOKUP(B122,'ins sinapi nao des'!$A:$E,5,0),IF(A122="Composição Auxiliar",VLOOKUP(B122,'comp sinapi nao des'!$G:$K,5,0))) -> 21.05 | J122: 15.7
A123: Insumo | B123: 37592 | C123: SINAPI | D123: BLOCO CERAMICO / TIJOLO VAZADO PARA ALVENARIA DE VEDACAO, FUROS NA VERTICAL,, 9 X 19 X 39 CM (NBR 15270) | E123: Material | G123: UN | H123: 16 | I123: =IF(A123="Insumo",VLOOKUP(B123,'ins sinapi nao des'!$A:$E,5,0),IF(A123="Composição Auxiliar",VLOOKUP(B123,'comp sinapi nao des'!$G:$K,5,0))) -> 1.42 | J123: 22.72
A124: Insumo | B124: 370 | C124: SINAPI | D124: AREIA MEDIA - POSTO JAZIDA/FORNECEDOR (RETIRADO NA JAZIDA, SEM TRANSPORTE) | E124: Material | G124: m³ | H124: 0.012 | I124: =IF(A124="Insumo",VLOOKUP(B124,'ins sinapi nao des'!$A:$E,5,0),IF(A124="Composição Auxiliar",VLOOKUP(B124,'comp sinapi nao des'!$G:$K,5,0))) -> 129 | J124: 1.54
A125: Insumo | B125: 1379 | C125: SINAPI | D125: CIMENTO PORTLAND COMPOSTO CP II-32 | E125: Material | G125: KG | H125: 2.4 | I125: =IF(A125="Insumo",VLOOKUP(B125,'ins sinapi nao des'!$A:$E,5,0),IF(A125="Composição Auxiliar",VLOOKUP(B125,'comp sinapi nao des'!$G:$K,5,0))) -> 0.68 | J125: 1.63
A130: 3.8 | B130: Código | C130: Banco | D130: Descrição | E130: Tipo | G130: Und | H130: Quant. | I130: Valor Unit | J130: Total
A131: Composição | B131: 20 | C131: Próprio | D131: CHAPISCO EM PAREDES, COM ARGAMASSA DE CIMENTO E AREIA NO TRAÇO 1:3. | E131: SEDI - SERVIÇOS DIVERSOS | G131: M² | H131: 1 | J131: =SUM(J132:J134) -> 7.66
A132: Composição Auxiliar | B132: 88629 | C132: SINAPI | D132: ARGAMASSA TRAÇO 1:3 (EM VOLUME DE CIMENTO E AREIA MÉDIA ÚMIDA), PREPARO MANUAL. AF_08/2019 | E132: SEDI - SERVIÇOS DIVERSOS | G132: m³ | H132: 0.0045 | I132: =IF(A132="Insumo",VLOOKUP(B132,'ins sinapi nao des'!$A:$E,5,0),IF(A132="Composição Auxiliar",VLOOKUP(B132,'comp sinapi nao des'!$G:$K,5,0))) -> 646.83 | J132: =ROUNDDOWN(H132*I132,2) -> 2.91
A133: Composição Auxiliar | B133: 88309 | C133: SINAPI | D133: PEDREIRO COM ENCARGOS COMPLEMENTARES | E133: SEDI - SERVIÇOS DIVERSOS | G133: H | H133: 0.1 | I133: =IF(A133="Insumo",VLOOKUP(B133,'ins sinapi nao des'!$A:$E,5,0),IF(A133="Composição Auxiliar",VLOOKUP(B133,'comp sinapi nao des'!$G:$K,5,0))) -> 26.5 | J133: 2.65
A134: Composição Auxiliar | B134: 88316 | C134: SINAPI | D134: SERVENTE COM ENCARGOS COMPLEMENTARES | E134: SEDI - SERVIÇOS DIVERSOS | G134: H | H134: 0.1 | I134: =IF(A134="Insumo",VLOOKUP(B134,'ins sinapi nao des'!$A:$E,5,0),IF(A134="Composição Auxiliar",VLOOKUP(B134,'comp sinapi nao des'!$G:$K,5,0))) -> 21.05 | J134: 2.1
A139: 3.9 | B139: Código | C139: Banco | D139: Descrição | E139: Tipo | G139: Und | H139: Quant. | I139: Valor Unit | J139: Total
A140: Composição | B140: 18 | C140: Próprio | D140: REBOCO EM ARGAMASSA DE CIMENTO, CAL E AREIA FINA PENEIRADA, PRODUZIDA NO TRAÇO 1:4,5, COM ESPESSURA DE 2,00 CM, PREPARO MECÂNICO. | E140: SEDI - SERVIÇOS DIVERSOS | G140: M² | H140: 1 | J140: =SUM(J141:J145) -> 27.6
A141: Composição Auxiliar | B141: 88316 | C141: SINAPI | D141: SERVENTE COM ENCARGOS COMPLEMENTARES | E141: SEDI - SERVIÇOS DIVERSOS | G141: H | H141: 0.586123 | I141: =IF(A141="Insumo",VLOOKUP(B141,'ins sinapi nao des'!$A:$E,5,0),IF(A141="Composição Auxiliar",VLOOKUP(B141,'comp sinapi nao des'!$G:$K,5,0))) -> 21.05 | J141: =ROUNDDOWN(H141*I141,2) -> 12.33
A142: Composição Auxiliar | B142: 88309 | C142: SINAPI | D142: PEDREIRO COM ENCARGOS COMPLEMENTARES | E142: SEDI - SERVIÇOS DIVERSOS | G142: H | H142: 0.5 | I142: =IF(A142="Insumo",VLOOKUP(B142,'ins sinapi nao des'!$A:$E,5,0),IF(A142="Composição Auxiliar",VLOOKUP(B142,'comp sinapi nao des'!$G:$K,5,0))) -> 26.5 | J142: 13.25
A143: Composição Auxiliar | B143: 89278 | C143: SINAPI | D143: BETONEIRA CAPACIDADE NOMINAL DE 600 L, CAPACIDADE DE MISTURA 440 L, MOTOR A DIESEL POTÊNCIA 10 HP, COM CARREGADOR - CHP DIURNO. AF_11/2014 | E143: CHOR - CUSTOS HORÁRIOS DE MÁQUINAS E EQUIPAMENTOS | G143: CHP | H143: 0.00257 | I143: =IF(A143="Insumo",VLOOKUP(B143,'ins sinapi nao des'!$A:$E,5,0),IF(A143="Composição Auxiliar",VLOOKUP(B143,'comp sinapi nao des'!$G:$K,5,0))) -> 12.9 | J143: 0.03
A144: Insumo | B144: 366 | C144: SINAPI | D144: AREIA FINA - POSTO JAZIDA/FORNECEDOR (RETIRADO NA JAZIDA, SEM TRANSPORTE) | E144: Material | G144: m³ | H144: 0.00608 | I144: =IF(A144="Insumo",VLOOKUP(B144,'ins sinapi nao des'!$A:$E,5,0),IF(A144="Composição Auxiliar",VLOOKUP(B144,'comp sinapi nao des'!$G:$K,5,0))) -> 129 | J144: 0.78
A145: Insumo | B145: 1106 | C145: SINAPI | D145: CAL HIDRATADA CH-I PARA ARGAMASSAS | E145: Material | G145: KG | H145: 0.81 | I145: =IF(A145="Insumo",VLOOKUP(B145,'ins sinapi nao des'!$A:$E,5,0),IF(A145="Composição Auxiliar",VLOOKUP(B145,'comp sinapi nao des'!$G:$K,5,0))) -> 1.5 | J145: 1.21
A150: 3.10 | B150: Código | C150: Banco | D150: Descrição | E150: Tipo | G150: Und | H150: Quant. | I150: Valor Unit | J150: Total
A151: Composição | B151: 19 | C151: Próprio | D151: LASTRO DE BRITA Nº 2 APILOADA MANUALMENTE COM MAÇO DE ATÉ 30 KG. | E151: SEDI - SERVIÇOS DIVERSOS | G151: M² | H151: 1 | J151: =SUM(J152:J154) -> 134.86
A152: Composição Auxiliar | B152: 88316 | C152: SINAPI | D152: SERVENTE COM ENCARGOS COMPLEMENTARES | E152: SEDI - SERVIÇOS DIVERSOS | G152: H | H152: 1.3 | I152: =IF(A152="Insumo",VLOOKUP(B152,'ins sinapi nao des'!$A:$E,5,0),IF(A152="Composição Auxiliar",VLOOKUP(B152,'comp sinapi nao des'!$G:$K,5,0))) -> 21.05 | J152: =ROUNDDOWN(H152*I152,2) -> 27.36
A153: Composição Auxiliar | B153: 91386 | C153: SINAPI | D153: CAMINHÃO BASCULANTE 10 M3, TRUCADO CABINE SIMPLES, PESO BRUTO TOTAL 23.000 KG, CARGA ÚTIL MÁXIMA 15.935 KG, DISTÂNCIA ENTRE EIXOS 4,80 M, POTÊNCIA 230 CV INCLUSIVE CAÇAMBA METÁLICA - CHP DIURNO. AF_06/2014 | E153: CHOR - CUSTOS HORÁRIOS DE MÁQUINAS E EQUIPAMENTOS | G153: CHP | H153: 0.0048611 | I153: =IF(A153="Insumo",VLOOKUP(B153,'ins sinapi nao des'!$A:$E,5,0),IF(A153="Composição Auxiliar",VLOOKUP(B153,'comp sinapi nao des'!$G:$K,5,0))) -> 270.52 | J153: 1.31
A154: Insumo | B154: 4718 | C154: SINAPI | D154: PEDRA BRITADA N. 2 (19 A 38 MM) POSTO PEDREIRA/FORNECEDOR, SEM FRETE | E154: Material | G154: m³ | H154: 1.05 | I154: =IF(A154="Insumo",VLOOKUP(B154,'ins sinapi nao des'!$A:$E,5,0),IF(A154="Composição Auxiliar",VLOOKUP(B154,'comp sinapi nao des'!$G:$K,5,0))) -> 101.14 | J154: 106.19
A159: 3.11 | B159: Código | C159: Banco | D159: Descrição | E159: Tipo | G159: Und | H159: Quant. | I159: Valor Unit | J159: Total
A160: Composição | B160: 21 | C160: Próprio | D160: FORNECIMENTO DE CONCRETO SIMPLES, PREPARADO EM BETONEIRA, PRODUZIDO NO TRAÇO 1:4:8 (CIMENTO, AREIA E BRITA), INCLUINDO PREPARO, LANÇAMENTO E ADENSAMENTO. | E160: SEDI - SERVIÇOS DIVERSOS | G160: M² | H160: 1 | J160: =SUM(J161:J167) -> 370.9
A161: Composição Auxiliar | B161: 88316 | C161: SINAPI | D161: SERVENTE COM ENCARGOS COMPLEMENTARES | E161: SEDI - SERVIÇOS DIVERSOS | G161: H | H161: 4.3 | I161: =IF(A161="Insumo",VLOOKUP(B161,'ins sinapi nao des'!$A:$E,5,0),IF(A161="Composição Auxiliar",VLOOKUP(B161,'comp sinapi nao des'!$G:$K,5,0))) -> 21.05 | J161: =ROUNDDOWN(H161*I161,2) -> 90.51
A162: Composição Auxiliar | B162: 89278 | C162: SINAPI | D162: BETONEIRA CAPACIDADE NOMINAL DE 600 L, CAPACIDADE DE MISTURA 440 L, MOTOR A DIESEL POTÊNCIA 10 HP, COM CARREGADOR - CHP DIURNO. AF_11/2014 | E162: CHOR - CUSTOS HORÁRIOS DE MÁQUINAS E EQUIPAMENTOS | G162: CHP | H162: 0.714 | I162: =IF(A162="Insumo",VLOOKUP(B162,'ins sinapi nao des'!$A:$E,5,0),IF(A162="Composição Auxiliar",VLOOKUP(B162,'comp sinapi nao des'!$G:$K,5,0))) -> 12.9 | J162: 9.21
A163: Composição Auxiliar | B163: 91386 | C163: SINAPI | D163: CAMINHÃO BASCULANTE 10 M3, TRUCADO CABINE SIMPLES, PESO BRUTO TOTAL 23.000 KG, CARGA ÚTIL MÁXIMA 15.935 KG, DISTÂNCIA ENTRE EIXOS 4,80 M, POTÊNCIA 230 CV INCLUSIVE CAÇAMBA METÁLICA - CHP DIURNO. AF_06/2014 | E163: CHOR - CUSTOS HORÁRIOS DE MÁQUINAS E EQUIPAMENTOS | G163: CHP | H163: 0.0069259 | I163: =IF(A163="Insumo",VLOOKUP(B163,'ins sinapi nao des'!$A:$E,5,0),IF(A163="Composição Auxiliar",VLOOKUP(B163,'comp sinapi nao des'!$G:$K,5,0))) -> 270.52 | J163: 1.87
A164: Insumo | B164: 370 | C164: SINAPI | D164: AREIA MEDIA - POSTO JAZIDA/FORNECEDOR (RETIRADO NA JAZIDA, SEM TRANSPORTE) | E164: Material | G164: m³ | H164: 0.584 | I164: =IF(A164="Insumo",VLOOKUP(B164,'ins sinapi nao des'!$A:$E,5,0),IF(A164="Composição Auxiliar",VLOOKUP(B164,'comp sinapi nao des'!$G:$K,5,0))) -> 129 | J164: 75.33
A165: Insumo | B165: 4721 | C165: SINAPI | D165: PEDRA BRITADA N. 1 (9,5 a 19 MM) POSTO PEDREIRA/FORNECEDOR, SEM FRETE | E165: Material | G165: m³ | H165: 0.456 | I165: =IF(A165="Insumo",VLOOKUP(B165,'ins sinapi nao des'!$A:$E,5,0),IF(A165="Composição Auxiliar",VLOOKUP(B165,'comp sinapi nao des'!$G:$K,5,0))) -> 100.61 | J165: 45.87
A166: Insumo | B166: 4718 | C166: SINAPI | D166: PEDRA BRITADA N. 2 (19 A 38 MM) POSTO PEDREIRA/FORNECEDOR, SEM FRETE | E166: Material | G166: m³ | H166: 0.456 | I166: =IF(A166="Insumo",VLOOKUP(B166,'ins sinapi nao des'!$A:$E,5,0),IF(A166="Composição Auxiliar",VLOOKUP(B166,'comp sinapi nao des'!$G:$K,5,0))) -> 101.14 | J166: 46.11
A167: Insumo | B167: 1379 | C167: SINAPI | D167: CIMENTO PORTLAND COMPOSTO CP II-32 | E167: Material | G167: KG | H167: 150 | I167: =IF(A167="Insumo",VLOOKUP(B167,'ins sinapi nao des'!$A:$E,5,0),IF(A167="Composição Auxiliar",VLOOKUP(B167,'comp sinapi nao des'!$G:$K,5,0))) -> 0.68 | J167: 102
A172: 3.12 | B172: Código | C172: Banco | D172: Descrição | E172: Tipo | G172: Und | H172: Quant. | I172: Valor Unit | J172: Total
A173: Composição | B173: 22 | C173: Próprio | D173: PISO EM CONCRETO PARA PÁTIOS, CONCRETO PREPARO MECÂNICO FCK= 20MPA, ESPESSURA 8 CM, INCLUSO POLIMENTO E JUNTAS EM POLIURETANO 2 m x 2 m. | E173: PISO - PISOS | G173: m² | H173: 1 | J173: =SUM(J174:J179) -> 63.52
A174: Composição Auxiliar | B174: 95276 | C174: SINAPI | D174: POLIDORA DE PISO (POLITRIZ), PESO DE 100KG, DIÂMETRO 450 MM, MOTOR ELÉTRICO, POTÊNCIA 4 HP - CHP DIURNO. AF_09/2016 | E174: CHOR - CUSTOS HORÁRIOS DE MÁQUINAS E EQUIPAMENTOS | G174: CHP | H174: 0.8 | I174: =IF(A174="Insumo",VLOOKUP(B174,'ins sinapi nao des'!$A:$E,5,0),IF(A174="Composição Auxiliar",VLOOKUP(B174,'comp sinapi nao des'!$G:$K,5,0))) -> 3.3 | J174: =ROUNDDOWN(H174*I174,2) -> 2.64
A175: Composição Auxiliar | B175: 91279 | C175: SINAPI | D175: CORTADORA DE PISO COM MOTOR 4 TEMPOS A GASOLINA, POTÊNCIA DE 13 HP, COM DISCO DE CORTE DIAMANTADO SEGMENTADO PARA CONCRETO, DIÂMETRO DE 350 MM, FURO DE 1" (14 X 1") - DEPRECIAÇÃO. AF_08/2015 | E175: CHOR - CUSTOS HORÁRIOS DE MÁQUINAS E EQUIPAMENTOS | G175: H | H175: 0.5 | I175: =IF(A175="Insumo",VLOOKUP(B175,'ins sinapi nao des'!$A:$E,5,0),IF(A175="Composição Auxiliar",VLOOKUP(B175,'comp sinapi nao des'!$G:$K,5,0))) -> 0.8 | J175: 0.4
A176: Composição Auxiliar | B176: 94970 | C176: SINAPI | D176: CONCRETO FCK = 20MPA, TRAÇO 1:2,7:3 (EM MASSA SECA DE CIMENTO/ AREIA MÉDIA/ BRITA 1) - PREPARO MECÂNICO COM BETONEIRA 600 L. AF_05/2021 | E176: FUES - FUNDAÇÕES E ESTRUTURAS | G176: m³ | H176: 0.078 | I176: =IF(A176="Insumo",VLOOKUP(B176,'ins sinapi nao des'!$A:$E,5,0),IF(A176="Composição Auxiliar",VLOOKUP(B176,'comp sinapi nao des'!$G:$K,5,0))) -> 461.81 | J176: 36.02
A177: Composição Auxiliar | B177: 88309 | C177: SINAPI | D177: PEDREIRO COM ENCARGOS COMPLEMENTARES | E177: SEDI - SERVIÇOS DIVERSOS | G177: H | H177: 0.3 | I177: =IF(A177="Insumo",VLOOKUP(B177,'ins sinapi nao des'!$A:$E,5,0),IF(A177="Composição Auxiliar",VLOOKUP(B177,'comp sinapi nao des'!$G:$K,5,0))) -> 26.5 | J177: 7.95
A178: Composição Auxiliar | B178: 88316 | C178: SINAPI | D178: SERVENTE COM ENCARGOS COMPLEMENTARES | E178: SEDI - SERVIÇOS DIVERSOS | G178: H | H178: 0.6 | I178: =IF(A178="Insumo",VLOOKUP(B178,'ins sinapi nao des'!$A:$E,5,0),IF(A178="Composição Auxiliar",VLOOKUP(B178,'comp sinapi nao des'!$G:$K,5,0))) -> 21.05 | J178: 12.63
A179: Insumo | B179: 142 | C179: SINAPI | D179: SELANTE ELASTICO MONOCOMPONENTE A BASE DE POLIURETANO (PU) PARA JUNTAS DIVERSAS | E179: Material | G179: 310ML | H179: 0.1 | I179: =IF(A179="Insumo",VLOOKUP(B179,'ins sinapi nao des'!$A:$E,5,0),IF(A179="Composição Auxiliar",VLOOKUP(B179,'comp sinapi nao des'!$G:$K,5,0))) -> 38.8 | J179: 3.88
A184: 3.13 | B184: Código | C184: Banco | D184: Descrição | E184: Tipo | G184: Und | H184: Quant. | I184: Valor Unit | J184: Total
A185: Composição | B185: 23 | C185: Próprio | D185: FORNECIMENTO DE MALHA POP REFORÇADA, COM TELA EM MALHA DE ESPAÇAMENTO 15 CM x 15 CM, EM FERRO DE DIÂMETRO DE 4,2 MM, INCUINDO FORNECIMENTO, TRANSPORTE, CORTE E COLOCAÇÃO. | E185: SEDI - SERVIÇOS DIVERSOS | G185: M² | H185: 1 | J185: =SUM(J186:J188) -> 22.33
A186: Composição Auxiliar | B186: 88245 | C186: SINAPI | D186: ARMADOR COM ENCARGOS COMPLEMENTARES | E186: SEDI - SERVIÇOS DIVERSOS | G186: H | H186: 0.33 | I186: =IF(A186="Insumo",VLOOKUP(B186,'ins sinapi nao des'!$A:$E,5,0),IF(A186="Composição Auxiliar",VLOOKUP(B186,'comp sinapi nao des'!$G:$K,5,0))) -> 26.26 | J186: =ROUNDDOWN(H186*I186,2) -> 8.66
A187: Insumo | B187: 21141 | C187: SINAPI | D187: TELA DE ACO SOLDADA NERVURADA, CA-60, Q-92, (1,48 KG/M2), DIAMETRO DO FIO = 4,2 MM, LARGURA = 2,45 X 60 M DE COMPRIMENTO, ESPACAMENTO DA MALHA = 15 X 15 CM | E187: Material | G187: m² | H187: 1.04 | I187: =IF(A187="Insumo",VLOOKUP(B187,'ins sinapi nao des'!$A:$E,5,0),IF(A187="Composição Auxiliar",VLOOKUP(B187,'comp sinapi nao des'!$G:$K,5,0))) -> 13.03 | J187: 13.55
A188: Insumo | B188: 43132 | C188: SINAPI | D188: ARAME RECOZIDO 16 BWG, D = 1,65 MM (0,016 KG/M) OU 18 BWG, D = 1,25 MM (0,01 KG/M) | E188: Material | G188: KG | H188: 0.0054 | I188: =IF(A188="Insumo",VLOOKUP(B188,'ins sinapi nao des'!$A:$E,5,0),IF(A188="Composição Auxiliar",VLOOKUP(B188,'comp sinapi nao des'!$G:$K,5,0))) -> 22.56 | J188: 0.12
A193: 3.14 | B193: Código | C193: Banco | D193: Descrição | E193: Tipo | G193: Und | H193: Quant. | I193: Valor Unit | J193: Total
A194: Composição | B194: 24 | C194: Próprio | D194: FORNECIMENTO E APLICAÇÃO DE CONCRETO ARMADO FCK= 20 MPA, PREPARO EM BETONEIRA, INCLUSIVE PREPARO, LANÇAMENTO E ADENSAMENTO. | E194: SEDI - SERVIÇOS DIVERSOS | G194: M² | H194: 1 | J194: =SUM(J195:J207) -> 825.26
A195: Composição Auxiliar | B195: 89278 | C195: SINAPI | D195: BETONEIRA CAPACIDADE NOMINAL DE 600 L, CAPACIDADE DE MISTURA 440 L, MOTOR A DIESEL POTÊNCIA 10 HP, COM CARREGADOR - CHP DIURNO. AF_11/2014 | E195: CHOR - CUSTOS HORÁRIOS DE MÁQUINAS E EQUIPAMENTOS | G195: CHP | H195: 0.65 | I195: =IF(A195="Insumo",VLOOKUP(B195,'ins sinapi nao des'!$A:$E,5,0),IF(A195="Composição Auxiliar",VLOOKUP(B195,'comp sinapi nao des'!$G:$K,5,0))) -> 12.9 | J195: =ROUNDDOWN(H195*I195,2) -> 8.38
A196: Composição Auxiliar | B196: 88262 | C196: SINAPI | D196: CARPINTEIRO DE FORMAS COM ENCARGOS COMPLEMENTARES | E196: SEDI - SERVIÇOS DIVERSOS | G196: H | H196: 1.8 | I196: =IF(A196="Insumo",VLOOKUP(B196,'ins sinapi nao des'!$A:$E,5,0),IF(A196="Composição Auxiliar",VLOOKUP(B196,'comp sinapi nao des'!$G:$K,5,0))) -> 26.12 | J196: 47.01
A197: Composição Auxiliar | B197: 88239 | C197: SINAPI | D197: AJUDANTE DE CARPINTEIRO COM ENCARGOS COMPLEMENTARES | E197: SEDI - SERVIÇOS DIVERSOS | G197: H | H197: 1.8 | I197: =IF(A197="Insumo",VLOOKUP(B197,'ins sinapi nao des'!$A:$E,5,0),IF(A197="Composição Auxiliar",VLOOKUP(B197,'comp sinapi nao des'!$G:$K,5,0))) -> 21.89 | J197: 39.4
A198: Composição Auxiliar | B198: 88309 | C198: SINAPI | D198: PEDREIRO COM ENCARGOS COMPLEMENTARES | E198: SEDI - SERVIÇOS DIVERSOS | G198: H | H198: 1.64 | I198: =IF(A198="Insumo",VLOOKUP(B198,'ins sinapi nao des'!$A:$E,5,0),IF(A198="Composição Auxiliar",VLOOKUP(B198,'comp sinapi nao des'!$G:$K,5,0))) -> 26.5 | J198: 43.46
A199: Composição Auxiliar | B199: 88316 | C199: SINAPI | D199: SERVENTE COM ENCARGOS COMPLEMENTARES | E199: SEDI - SERVIÇOS DIVERSOS | G199: H | H199: 4 | I199: =IF(A199="Insumo",VLOOKUP(B199,'ins sinapi nao des'!$A:$E,5,0),IF(A199="Composição Auxiliar",VLOOKUP(B199,'comp sinapi nao des'!$G:$K,5,0))) -> 21.05 | J199: 84.2
A200: Insumo | B200: 1379 | C200: SINAPI | D200: CIMENTO PORTLAND COMPOSTO CP II-32 | E200: Material | G200: KG | H200: 340 | I200: =IF(A200="Insumo",VLOOKUP(B200,'ins sinapi nao des'!$A:$E,5,0),IF(A200="Composição Auxiliar",VLOOKUP(B200,'comp sinapi nao des'!$G:$K,5,0))) -> 0.68 | J200: 231.2
A201: Insumo | B201: 370 | C201: SINAPI | D201: AREIA MEDIA - POSTO JAZIDA/FORNECEDOR (RETIRADO NA JAZIDA, SEM TRANSPORTE) | E201: Material | G201: m³ | H201: 0.54 | I201: =IF(A201="Insumo",VLOOKUP(B201,'ins sinapi nao des'!$A:$E,5,0),IF(A201="Composição Auxiliar",VLOOKUP(B201,'comp sinapi nao des'!$G:$K,5,0))) -> 129 | J201: 69.66
A202: Insumo | B202: 4718 | C202: SINAPI | D202: PEDRA BRITADA N. 2 (19 A 38 MM) POSTO PEDREIRA/FORNECEDOR, SEM FRETE | E202: Material | G202: m³ | H202: 0.81 | I202: =IF(A202="Insumo",VLOOKUP(B202,'ins sinapi nao des'!$A:$E,5,0),IF(A202="Composição Auxiliar",VLOOKUP(B202,'comp sinapi nao des'!$G:$K,5,0))) -> 101.14 | J202: 81.92
A203: Insumo | B203: 43058 | C203: SINAPI | D203: ACO CA-50, 10,0 MM, OU 12,5 MM, OU 16,0 MM, OU 20,0 MM, DOBRADO E CORTADO | E203: Material | G203: KG | H203: 7.2 | I203: =IF(A203="Insumo",VLOOKUP(B203,'ins sinapi nao des'!$A:$E,5,0),IF(A203="Composição Auxiliar",VLOOKUP(B203,'comp sinapi nao des'!$G:$K,5,0))) -> 7.67 | J203: 55.22
A204: Insumo | B204: 1347 | C204: SINAPI | D204: CHAPA/PAINEL DE MADEIRA COMPENSADA PLASTIFICADA (MADEIRITE PLASTIFICADO) PARA FORMA DE CONCRETO, DE 2200 x 1100 MM, E = 12 MM | E204: Material | G204: m² | H204: 1.1405 | I204: =IF(A204="Insumo",VLOOKUP(B204,'ins sinapi nao des'!$A:$E,5,0),IF(A204="Composição Auxiliar",VLOOKUP(B204,'comp sinapi nao des'!$G:$K,5,0))) -> 60.03 | J204: 68.46
A205: Insumo | B205: 2692 | C205: SINAPI | D205: DESMOLDANTE PROTETOR PARA FORMAS DE MADEIRA, DE BASE OLEOSA EMULSIONADA EM AGUA | E205: Material | G205: L | H205: 1.2 | I205: =IF(A205="Insumo",VLOOKUP(B205,'ins sinapi nao des'!$A:$E,5,0),IF(A205="Composição Auxiliar",VLOOKUP(B205,'comp sinapi nao des'!$G:$K,5,0))) -> 7.77 | J205: 9.32
A206: Insumo | B206: 5061 | C206: SINAPI | D206: PREGO DE ACO POLIDO COM CABECA 18 X 27 (2 1/2 X 10) | E206: Material | G206: KG | H206: 2.52 | I206: =IF(A206="Insumo",VLOOKUP(B206,'ins sinapi nao des'!$A:$E,5,0),IF(A206="Composição Auxiliar",VLOOKUP(B206,'comp sinapi nao des'!$G:$K,5,0))) -> 15.5 | J206: 39.06
A207: Insumo | B207: 4006 | C207: SINAPI | D207: MADEIRA SERRADA EM PINUS, MISTA OU EQUIVALENTE DA REGIAO - BRUTA | E207: Material | G207: m³ | H207: 0.02 | I207: =IF(A207="Insumo",VLOOKUP(B207,'ins sinapi nao des'!$A:$E,5,0),IF(A207="Composição Auxiliar",VLOOKUP(B207,'comp sinapi nao des'!$G:$K,5,0))) -> 2398.56 | J207: 47.97
A212: 3.15 | B212: Código | C212: Banco | D212: Descrição | E212: Tipo | G212: Und | H212: Quant. | I212: Valor Unit | J212: Total
A213: Composição | B213: 25 | C213: Próprio | D213: EXECUÇÃO DE CALÇADA EM CONCRETO CONVENCIONAL PREPARADO NO TRAÇO 1:4:8, PREPARO MECÂNCIO, ESPESSURA MÍNIMA DE 4 CM, COM ACABAMENTO DESEMPENADO. | E213: PISO - PISOS | G213: M³ | H213: 1 | J213: =SUM(J214:J219) -> 370.71
A214: Composição Auxiliar | B214: 89278 | C214: SINAPI | D214: BETONEIRA CAPACIDADE NOMINAL DE 600 L, CAPACIDADE DE MISTURA 440 L, MOTOR A DIESEL POTÊNCIA 10 HP, COM CARREGADOR - CHP DIURNO. AF_11/2014 | E214: CHOR - CUSTOS HORÁRIOS DE MÁQUINAS E EQUIPAMENTOS | G214: CHP | H214: 0.714 | I214: =IF(A214="Insumo",VLOOKUP(B214,'ins sinapi nao des'!$A:$E,5,0),IF(A214="Composição Auxiliar",VLOOKUP(B214,'comp sinapi nao des'!$G:$K,5,0))) -> 12.9 | J214: =ROUNDDOWN(H214*I214,2) -> 9.21
A215: Composição Auxiliar | B215: 88316 | C215: SINAPI | D215: SERVENTE COM ENCARGOS COMPLEMENTARES | E215: SEDI - SERVIÇOS DIVERSOS | G215: H | H215: 4.38 | I215: =IF(A215="Insumo",VLOOKUP(B215,'ins sinapi nao des'!$A:$E,5,0),IF(A215="Composição Auxiliar",VLOOKUP(B215,'comp sinapi nao des'!$G:$K,5,0))) -> 21.05 | J215: 92.19
A216: Insumo | B216: 1379 | C216: SINAPI | D216: CIMENTO PORTLAND COMPOSTO CP II-32 | E216: Material | G216: KG | H216: 150 | I216: =IF(A216="Insumo",VLOOKUP(B216,'ins sinapi nao des'!$A:$E,5,0),IF(A216="Composição Auxiliar",VLOOKUP(B216,'comp sinapi nao des'!$G:$K,5,0))) -> 0.68 | J216: 102
A217: Insumo | B217: 370 | C217: SINAPI | D217: AREIA MEDIA - POSTO JAZIDA/FORNECEDOR (RETIRADO NA JAZIDA, SEM TRANSPORTE) | E217: Material | G217: m³ | H217: 0.584 | I217: =IF(A217="Insumo",VLOOKUP(B217,'ins sinapi nao des'!$A:$E,5,0),IF(A217="Composição Auxiliar",VLOOKUP(B217,'comp sinapi nao des'!$G:$K,5,0))) -> 129 | J217: 75.33
A218: Insumo | B218: 4721 | C218: SINAPI | D218: PEDRA BRITADA N. 1 (9,5 a 19 MM) POSTO PEDREIRA/FORNECEDOR, SEM FRETE | E218: Material | G218: m³ | H218: 0.456 | I218: =IF(A218="Insumo",VLOOKUP(B218,'ins sinapi nao des'!$A:$E,5,0),IF(A218="Composição Auxiliar",VLOOKUP(B218,'comp sinapi nao des'!$G:$K,5,0))) -> 100.61 | J218: 45.87
A219: Insumo | B219: 4718 | C219: SINAPI | D219: PEDRA BRITADA N. 2 (19 A 38 MM) POSTO PEDREIRA/FORNECEDOR, SEM FRETE | E219: Material | G219: m³ | H219: 0.456 | I219: =IF(A219="Insumo",VLOOKUP(B219,'ins sinapi nao des'!$A:$E,5,0),IF(A219="Composição Auxiliar",VLOOKUP(B219,'comp sinapi nao des'!$G:$K,5,0))) -> 101.14 | J219: 46.11
A224: 3.16 | B224: Código | C224: Banco | D224: Descrição | E224: Tipo | G224: Und | H224: Quant. | I224: Valor Unit | J224: Total
A225: Composição | B225: 26 | C225: Próprio | D225: LAJE PRÉ-MOLDADA, COM CAPACIDADE MÍNIMA DE 200kg/m², VÃOS ATE 3,50 m, e= 8,00 cm, NERVURAS E LAJOTAS EM CONCRETO ARMADO COM FCK=20MPA, RECOBRIMENTO MIN= 4 cm, DIST. INTER-EIXO DE 38 CM - ESCORAMENTO (REAPROV. 3X) E FERRAGEM NEGATIVA. | E225: FUES - FUNDAÇÕES E ESTRUTURAS | G225: M² | H225: 1 | J225: =SUM(J226:J235) -> 135.34
A226: Composição Auxiliar | B226: 94970 | C226: SINAPI | D226: CONCRETO FCK = 20MPA, TRAÇO 1:2,7:3 (EM MASSA SECA DE CIMENTO/ AREIA MÉDIA/ BRITA 1) - PREPARO MECÂNICO COM BETONEIRA 600 L. AF_05/2021 | E226: FUES - FUNDAÇÕES E ESTRUTURAS | G226: m³ | H226: 0.043 | I226: =IF(A226="Insumo",VLOOKUP(B226,'ins sinapi nao des'!$A:$E,5,0),IF(A226="Composição Auxiliar",VLOOKUP(B226,'comp sinapi nao des'!$G:$K,5,0))) -> 461.81 | J226: =ROUNDDOWN(H226*I226,2) -> 19.85
A227: Composição Auxiliar | B227: 88262 | C227: SINAPI | D227: CARPINTEIRO DE FORMAS COM ENCARGOS COMPLEMENTARES | E227: SEDI - SERVIÇOS DIVERSOS | G227: H | H227: 0.16 | I227: =IF(A227="Insumo",VLOOKUP(B227,'ins sinapi nao des'!$A:$E,5,0),IF(A227="Composição Auxiliar",VLOOKUP(B227,'comp sinapi nao des'!$G:$K,5,0))) -> 26.12 | J227: 4.17
A228: Composição Auxiliar | B228: 88239 | C228: SINAPI | D228: AJUDANTE DE CARPINTEIRO COM ENCARGOS COMPLEMENTARES | E228: SEDI - SERVIÇOS DIVERSOS | G228: H | H228: 0.16 | I228: =IF(A228="Insumo",VLOOKUP(B228,'ins sinapi nao des'!$A:$E,5,0),IF(A228="Composição Auxiliar",VLOOKUP(B228,'comp sinapi nao des'!$G:$K,5,0))) -> 21.89 | J228: 3.5
A229: Composição Auxiliar | B229: 88309 | C229: SINAPI | D229: PEDREIRO COM ENCARGOS COMPLEMENTARES | E229: SEDI - SERVIÇOS DIVERSOS | G229: H | H229: 0.4 | I229: =IF(A229="Insumo",VLOOKUP(B229,'ins sinapi nao des'!$A:$E,5,0),IF(A229="Composição Auxiliar",VLOOKUP(B229,'comp sinapi nao des'!$G:$K,5,0))) -> 26.5 | J229: 10.6
A230: Composição Auxiliar | B230: 88316 | C230: SINAPI | D230: SERVENTE COM ENCARGOS COMPLEMENTARES | E230: SEDI - SERVIÇOS DIVERSOS | G230: H | H230: 0.44 | I230: =IF(A230="Insumo",VLOOKUP(B230,'ins sinapi nao des'!$A:$E,5,0),IF(A230="Composição Auxiliar",VLOOKUP(B230,'comp sinapi nao des'!$G:$K,5,0))) -> 21.05 | J230: 9.26
A231: Insumo | B231: 4433 | C231: SINAPI | D231: CAIBRO NAO APARELHADO *7,5 X 7,5* CM, EM MACARANDUBA, ANGELIM OU EQUIVALENTE DA REGIAO - BRUTA | E231: Material | G231: M | H231: 0.29 | I231: =IF(A231="Insumo",VLOOKUP(B231,'ins sinapi nao des'!$A:$E,5,0),IF(A231="Composição Auxiliar",VLOOKUP(B231,'comp sinapi nao des'!$G:$K,5,0))) -> 26.49 | J231: 7.68
A232: Insumo | B232: 6212 | C232: SINAPI | D232: TABUA *2,5 X 30 CM EM PINUS, MISTA OU EQUIVALENTE DA REGIAO - BRUTA | E232: Material | G232: M | H232: 0.17 | I232: =IF(A232="Insumo",VLOOKUP(B232,'ins sinapi nao des'!$A:$E,5,0),IF(A232="Composição Auxiliar",VLOOKUP(B232,'comp sinapi nao des'!$G:$K,5,0))) -> 17.67 | J232: 3
A233: Insumo | B233: 3743 | C233: SINAPI | D233: LAJE PRE-MOLDADA CONVENCIONAL (LAJOTAS + VIGOTAS) PARA PISO, UNIDIRECIONAL, SOBRECARGA DE 200 KG/M2, VAO ATE 3,50 M (SEM COLOCACAO) | E233: Material | G233: m² | H233: 1 | I233: =IF(A233="Insumo",VLOOKUP(B233,'ins sinapi nao des'!$A:$E,5,0),IF(A233="Composição Auxiliar",VLOOKUP(B233,'comp sinapi nao des'!$G:$K,5,0))) -> 73.23 | J233: 73.23
A234: Insumo | B234: 5061 | C234: SINAPI | D234: PREGO DE ACO POLIDO COM CABECA 18 X 27 (2 1/2 X 10) | E234: Material | G234: KG | H234: 0.03 | I234: =IF(A234="Insumo",VLOOKUP(B234,'ins sinapi nao des'!$A:$E,5,0),IF(A234="Composição Auxiliar",VLOOKUP(B234,'comp sinapi nao des'!$G:$K,5,0))) -> 15.5 | J234: 0.46
A235: Insumo | B235: 43061 | C235: SINAPI | D235: ACO CA-60, 4,2 MM OU 5,0 MM, DOBRADO E CORTADO | E235: Material | G235: KG | H235: 0.471 | I235: =IF(A235="Insumo",VLOOKUP(B235,'ins sinapi nao des'!$A:$E,5,0),IF(A235="Composição Auxiliar",VLOOKUP(B235,'comp sinapi nao des'!$G:$K,5,0))) -> 7.64 | J235: 3.59
A240: 3.17 | B240: Código | C240: Banco | D240: Descrição | E240: Tipo | G240: Und | H240: Quant. | I240: Valor Unit | J240: Total
A241: Composição | B241: 27 | C241: Próprio | D241: APLICAÇÃO DE DUAS DEMÃOS DE PINTURA EM TINTA LÁTEX ACRÍLICA SOBRE AS PAREDES INTERNAS/EXTERNAS, PREVIAMENTE LIXADAS, SELADAS E EMASSADAS. | E241: PINT - PINTURAS | G241: m² | H241: 1 | J241: =SUM(J242:J245) -> 15.43
A242: Composição Auxiliar | B242: 88310 | C242: SINAPI | D242: PINTOR COM ENCARGOS COMPLEMENTARES | E242: SEDI - SERVIÇOS DIVERSOS | G242: H | H242: 0.19 | I242: =IF(A242="Insumo",VLOOKUP(B242,'ins sinapi nao des'!$A:$E,5,0),IF(A242="Composição Auxiliar",VLOOKUP(B242,'comp sinapi nao des'!$G:$K,5,0))) -> 27.98 | J242: =ROUNDDOWN(H242*I242,2) -> 5.31
A243: Composição Auxiliar | B243: 88316 | C243: SINAPI | D243: SERVENTE COM ENCARGOS COMPLEMENTARES | E243: SEDI - SERVIÇOS DIVERSOS | G243: H | H243: 0.08 | I243: =IF(A243="Insumo",VLOOKUP(B243,'ins sinapi nao des'!$A:$E,5,0),IF(A243="Composição Auxiliar",VLOOKUP(B243,'comp sinapi nao des'!$G:$K,5,0))) -> 21.05 | J243: 1.68
A244: Insumo | B244: 7356 | C244: SINAPI | D244: TINTA LATEX ACRILICA PREMIUM, COR BRANCO FOSCO | E244: Material | G244: L | H244: 0.24 | I244: =IF(A244="Insumo",VLOOKUP(B244,'ins sinapi nao des'!$A:$E,5,0),IF(A244="Composição Auxiliar",VLOOKUP(B244,'comp sinapi nao des'!$G:$K,5,0))) -> 34.43 | J244: 8.26
A245: Insumo | B245: 3767 | C245: SINAPI | D245: LIXA EM FOLHA PARA PAREDE OU MADEIRA, NUMERO 120, COR VERMELHA | E245: Material | G245: UN | H245: 0.2 | I245: =IF(A245="Insumo",VLOOKUP(B245,'ins sinapi nao des'!$A:$E,5,0),IF(A245="Composição Auxiliar",VLOOKUP(B245,'comp sinapi nao des'!$G:$K,5,0))) -> 0.9 | J245: 0.18
A250: 3.18 | B250: Código | C250: Banco | D250: Descrição | E250: Tipo | G250: Und | H250: Quant. | I250: Valor Unit | J250: Total
A251: Composição | B251: 29 | C251: Próprio | D251: PINTURA DO PISO DO PÁTIO EM TINTA ACRÍLICA SOBRE SUPERFÍCIE PREVIAMENTE PREPARADA. | E251: PINT - PINTURAS | G251: m² | H251: 1 | J251: =SUM(J252:J254) -> 10.59
A252: Composição Auxiliar | B252: 88310 | C252: SINAPI | D252: PINTOR COM ENCARGOS COMPLEMENTARES | E252: SEDI - SERVIÇOS DIVERSOS | G252: H | H252: 0.16 | I252: =IF(A252="Insumo",VLOOKUP(B252,'ins sinapi nao des'!$A:$E,5,0),IF(A252="Composição Auxiliar",VLOOKUP(B252,'comp sinapi nao des'!$G:$K,5,0))) -> 27.98 | J252: =ROUNDDOWN(H252*I252,2) -> 4.47
A253: Composição Auxiliar | B253: 88316 | C253: SINAPI | D253: SERVENTE COM ENCARGOS COMPLEMENTARES | E253: SEDI - SERVIÇOS DIVERSOS | G253: H | H253: 0.05 | I253: =IF(A253="Insumo",VLOOKUP(B253,'ins sinapi nao des'!$A:$E,5,0),IF(A253="Composição Auxiliar",VLOOKUP(B253,'comp sinapi nao des'!$G:$K,5,0))) -> 21.05 | J253: 1.05
A254: Insumo | B254: 7348 | C254: SINAPI | D254: TINTA ACRILICA PREMIUM PARA PISO | E254: Material | G254: L | H254: 0.22 | I254: =IF(A254="Insumo",VLOOKUP(B254,'ins sinapi nao des'!$A:$E,5,0),IF(A254="Composição Auxiliar",VLOOKUP(B254,'comp sinapi nao des'!$G:$K,5,0))) -> 23.09 | J254: 5.07
A259: 3.19 | B259: Código | C259: Banco | D259: Descrição | E259: Tipo | G259: Und | H259: Quant. | I259: Valor Unit | J259: Total
A260: Composição | B260: 102504 | C260: SINAPI | D260: PINTURA DE DEMARCAÇÃO DE QUADRA POLIESPORTIVA COM TINTA ACRÍLICA, E = 5 CM, APLICAÇÃO MANUAL. AF_05/2021 | E260: PINT - PINTURAS | G260: M | H260: 1 | J260: =SUM(J261:J264) -> 9.66
A261: Composição Auxiliar | B261: 88310 | C261: SINAPI | D261: PINTOR COM ENCARGOS COMPLEMENTARES | E261: SEDI - SERVIÇOS DIVERSOS | G261: H | H261: 0.239 | I261: =IF(A261="Insumo",VLOOKUP(B261,'ins sinapi nao des'!$A:$E,5,0),IF(A261="Composição Auxiliar",VLOOKUP(B261,'comp sinapi nao des'!$G:$K,5,0))) -> 27.98 | J261: =ROUNDDOWN(H261*I261,2) -> 6.68
A262: Composição Auxiliar | B262: 88316 | C262: SINAPI | D262: SERVENTE COM ENCARGOS COMPLEMENTARES | E262: SEDI - SERVIÇOS DIVERSOS | G262: H | H262: 0.1 | I262: =IF(A262="Insumo",VLOOKUP(B262,'ins sinapi nao des'!$A:$E,5,0),IF(A262="Composição Auxiliar",VLOOKUP(B262,'comp sinapi nao des'!$G:$K,5,0))) -> 21.05 | J262: 2.1
A263: Insumo | B263: 7348 | C263: SINAPI | D263: TINTA ACRILICA PREMIUM PARA PISO | E263: Material | G263: L | H263: 0.021 | I263: =IF(A263="Insumo",VLOOKUP(B263,'ins sinapi nao des'!$A:$E,5,0),IF(A263="Composição Auxiliar",VLOOKUP(B263,'comp sinapi nao des'!$G:$K,5,0))) -> 23.09 | J263: 0.48
A264: Insumo | B264: 12815 | C264: SINAPI | D264: FITA CREPE ROLO DE 25 MM X 50 M | E264: Material | G264: UN | H264: 0.04 | I264: =IF(A264="Insumo",VLOOKUP(B264,'ins sinapi nao des'!$A:$E,5,0),IF(A264="Composição Auxiliar",VLOOKUP(B264,'comp sinapi nao des'!$G:$K,5,0))) -> 10.04 | J264: 0.4
A269: 3.20 | B269: Código | C269: Banco | D269: Descrição | E269: Tipo | G269: Und | H269: Quant. | I269: Valor Unit | J269: Total
A270: Composição | B270: 30 | C270: Próprio | D270: CORTE E DOBRA DE AÇO CA-60, DIÂMETRO DE 5,0 MM, UTILIZADO EM ESTRUTURAS DIVERSAS, EXCETO LAJES. AF_12/2015 | E270: SEDI - SERVIÇOS DIVERSOS | G270: UNID | H270: 1 | J270: =SUM(J271:J273) -> 12.19
A271: Composição Auxiliar | B271: 88238 | C271: SINAPI | D271: AJUDANTE DE ARMADOR COM ENCARGOS COMPLEMENTARES | E271: SEDI - SERVIÇOS DIVERSOS | G271: H | H271: 0.108 | I271: =IF(A271="Insumo",VLOOKUP(B271,'ins sinapi nao des'!$A:$E,5,0),IF(A271="Composição Auxiliar",VLOOKUP(B271,'comp sinapi nao des'!$G:$K,5,0))) -> 21.97 | J271: =ROUNDDOWN(H271*I271,2) -> 2.37
A272: Composição Auxiliar | B272: 88245 | C272: SINAPI | D272: ARMADOR COM ENCARGOS COMPLEMENTARES | E272: SEDI - SERVIÇOS DIVERSOS | G272: H | H272: 0.0769 | I272: =IF(A272="Insumo",VLOOKUP(B272,'ins sinapi nao des'!$A:$E,5,0),IF(A272="Composição Auxiliar",VLOOKUP(B272,'comp sinapi nao des'!$G:$K,5,0))) -> 26.26 | J272: 2.01
A273: Insumo | B273: 43059 | C273: SINAPI | D273: ACO CA-60, 4,2 MM, OU 5,0 MM, OU 6,0 MM, OU 7,0 MM, VERGALHAO | E273: Material | G273: KG | H273: 1.07 | I273: =IF(A273="Insumo",VLOOKUP(B273,'ins sinapi nao des'!$A:$E,5,0),IF(A273="Composição Auxiliar",VLOOKUP(B273,'comp sinapi nao des'!$G:$K,5,0))) -> 7.3 | J273: 7.81
A278: 3.21 | B278: Código | C278: Banco | D278: Descrição | E278: Tipo | G278: Und | H278: Quant. | I278: Valor Unit | J278: Total
A279: Composição | B279: 31 | C279: Próprio | D279: CORTE E DOBRA DE AÇO CA-50, DIÂMETRO DE 8,0 MM, UTILIZADO EM ESTRUTURAS DIVERSAS, EXCETO LAJES. AF_12/2015 | E279: ESQV - ESQUADRIAS/FERRAGENS/VIDROS | G279: UNID | H279: 1 | J279: =SUM(J280:J282) -> 15.02
A280: Composição Auxiliar | B280: 88238 | C280: SINAPI | D280: AJUDANTE DE ARMADOR COM ENCARGOS COMPLEMENTARES | E280: SEDI - SERVIÇOS DIVERSOS | G280: H | H280: 0.0032 | I280: =IF(A280="Insumo",VLOOKUP(B280,'ins sinapi nao des'!$A:$E,5,0),IF(A280="Composição Auxiliar",VLOOKUP(B280,'comp sinapi nao des'!$G:$K,5,0))) -> 21.97 | J280: =ROUNDDOWN(H280*I280,2) -> 0.07
A281: Composição Auxiliar | B281: 88245 | C281: SINAPI | D281: ARMADOR COM ENCARGOS COMPLEMENTARES | E281: SEDI - SERVIÇOS DIVERSOS | G281: H | H281: 0.224 | I281: =IF(A281="Insumo",VLOOKUP(B281,'ins sinapi nao des'!$A:$E,5,0),IF(A281="Composição Auxiliar",VLOOKUP(B281,'comp sinapi nao des'!$G:$K,5,0))) -> 26.26 | J281: 5.88
A282: Insumo | B282: 33 | C282: SINAPI | D282: ACO CA-50, 8,0 MM, VERGALHAO | E282: Material | G282: KG | H282: 1.11 | I282: =IF(A282="Insumo",VLOOKUP(B282,'ins sinapi nao des'!$A:$E,5,0),IF(A282="Composição Auxiliar",VLOOKUP(B282,'comp sinapi nao des'!$G:$K,5,0))) -> 8.18 | J282: 9.07
A287: 3.22 | B287: Código | C287: Banco | D287: Descrição | E287: Tipo | G287: Und | H287: Quant. | I287: Valor Unit | J287: Total
A288: Composição | B288: 35 | C288: Próprio | D288: LIMPEZA FINAL DA OBRA | E288: SEDI - SERVIÇOS DIVERSOS | G288: M² | H288: 1 | J288: =SUM(J289:J291) -> 5.76
A289: Composição Auxiliar | B289: 88316 | C289: SINAPI | D289: SERVENTE COM ENCARGOS COMPLEMENTARES | E289: SEDI - SERVIÇOS DIVERSOS | G289: H | H289: 0.2 | I289: =IF(A289="Insumo",VLOOKUP(B289,'ins sinapi nao des'!$A:$E,5,0),IF(A289="Composição Auxiliar",VLOOKUP(B289,'comp sinapi nao des'!$G:$K,5,0))) -> 21.05 | J289: =ROUNDDOWN(H289*I289,2) -> 4.21
A290: Insumo | B290: 1997 | C290: ORSE | D290: Sabão em pó kg | E290: Material | G290: kg | H290: 0.05 | I290: 10.35 | J290: 0.51
A291: Insumo | B291: 38400 | C291: SINAPI | D291: VASSOURA 40 CM COM CABO | E291: Material | G291: UN | H291: 0.05 | I291: =IF(A291="Insumo",VLOOKUP(B291,'ins sinapi nao des'!$A:$E,5,0),IF(A291="Composição Auxiliar",VLOOKUP(B291,'comp sinapi nao des'!$G:$K,5,0))) -> 20.96 | J291: 1.04
A296: 4 | D296: ACESSÓRIOS
A297: 4.1 | B297: Código | C297: Banco | D297: Descrição | E297: Tipo | G297: Und | H297: Quant. | I297: Valor Unit | J297: Total
A298: Composição | B298: 102363 | C298: SINAPI | D298: ALAMBRADO PARA QUADRA POLIESPORTIVA, ESTRUTURADO POR TUBOS DE ACO GALVANIZADO, (MONTANTES COM DIAMETRO 2", TRAVESSAS E ESCORAS COM DIÂMETRO 1 ¼"), COM TELA DE ARAME GALVANIZADO, FIO 12 BWG E MALHA QUADRADA 5X5CM (EXCETO MURETA). AF_03/2021 | E298: SEDI - SERVIÇOS DIVERSOS | G298: M² | H298: 1 | J298: =SUM(J299:J306) -> 175.87
A299: Composição Auxiliar | B299: 88315 | C299: SINAPI | D299: SERRALHEIRO COM ENCARGOS COMPLEMENTARES | E299: SEDI - SERVIÇOS DIVERSOS | G299: H | H299: 0,9774000 | I299: =IF(A299="Insumo",VLOOKUP(B299,'ins sinapi nao des'!$A:$E,5,0),IF(A299="Composição Auxiliar",VLOOKUP(B299,'comp sinapi nao des'!$G:$K,5,0))) -> 26.26 | J299: =ROUNDDOWN(H299*I299,2) -> 25.66
A300: Composição Auxiliar | B300: 88316 | C300: SINAPI | D300: SERVENTE COM ENCARGOS COMPLEMENTARES | E300: SEDI - SERVIÇOS DIVERSOS | G300: H | H300: 0,9774000 | I300: =IF(A300="Insumo",VLOOKUP(B300,'ins sinapi nao des'!$A:$E,5,0),IF(A300="Composição Auxiliar",VLOOKUP(B300,'comp sinapi nao des'!$G:$K,5,0))) -> 21.05 | J300: 20.57
A301: Composição Auxiliar | B301: 94962 | C301: SINAPI | D301: CONCRETO MAGRO PARA LASTRO, TRAÇO 1:4,5:4,5 (EM MASSA SECA DE CIMENTO/ AREIA MÉDIA/ BRITA 1) - PREPARO MECÂNICO COM BETONEIRA 400 L. AF_05/2021 | E301: SEDI - SERVIÇOS DIVERSOS | G301: M3 | H301: 0,0045000 | I301: =IF(A301="Insumo",VLOOKUP(B301,'ins sinapi nao des'!$A:$E,5,0),IF(A301="Composição Auxiliar",VLOOKUP(B301,'comp sinapi nao des'!$G:$K,5,0))) -> 401.58 | J301: 1.8
A302: Insumo | B302: 7158 | C302: SINAPI | D302: TELA DE ARAME GALVANIZADA QUADRANGULAR / LOSANGULAR, FIO 2,77 MM (12 BWG), MALHA 5 X 5 CM, H = 2 M | E302: Material | G302: M2 | H302: 1,0203000 | I302: =IF(A302="Insumo",VLOOKUP(B302,'ins sinapi nao des'!$A:$E,5,0),IF(A302="Composição Auxiliar",VLOOKUP(B302,'comp sinapi nao des'!$G:$K,5,0))) -> 52.5 | J302: 53.56
A303: Insumo | B303: 7696 | C303: SINAPI | D303: TUBO ACO GALVANIZADO COM COSTURA, CLASSE MEDIA, DN 2", E = *3,65* MM, PESO *5,10* KG/M (NBR 5580) | E303: Material | G303: M | H303: 0,6105000 | I303: =IF(A303="Insumo",VLOOKUP(B303,'ins sinapi nao des'!$A:$E,5,0),IF(A303="Composição Auxiliar",VLOOKUP(B303,'comp sinapi nao des'!$G:$K,5,0))) -> 64.12 | J303: 39.14
A304: Insumo | B304: 7698 | C304: SINAPI | D304: TUBO ACO GALVANIZADO COM COSTURA, CLASSE MEDIA, DN 1.1/4", E = *3,25* MM, PESO *3,14* KG/M (NBR 5580) | E304: Material | G304: M | H304: 0,8701000 | I304: =IF(A304="Insumo",VLOOKUP(B304,'ins sinapi nao des'!$A:$E,5,0),IF(A304="Composição Auxiliar",VLOOKUP(B304,'comp sinapi nao des'!$G:$K,5,0))) -> 38.27 | J304: 33.29
A305: Insumo | B305: 11002 | C305: SINAPI | D305: ELETRODO REVESTIDO AWS - E6013, DIAMETRO IGUAL A 2,50 MM | E305: Material | G305: KG | H305: 0,0025000 | I305: =IF(A305="Insumo",VLOOKUP(B305,'ins sinapi nao des'!$A:$E,5,0),IF(A305="Composição Auxiliar",VLOOKUP(B305,'comp sinapi nao des'!$G:$K,5,0))) -> 25.05 | J305: 0.06
A306: Insumo | B306: 43130 | C306: SINAPI | D306: ARAME GALVANIZADO 12 BWG, D = 2,76 MM (0,048 KG/M) OU 14 BWG, D = 2,11 MM (0,026 KG/M) | E306: Material | G306: KG | H306: 0,0797000 | I306: =IF(A306="Insumo",VLOOKUP(B306,'ins sinapi nao des'!$A:$E,5,0),IF(A306="Composição Auxiliar",VLOOKUP(B306,'comp sinapi nao des'!$G:$K,5,0))) -> 22.56 | J306: 1.79
A311: 4.2 | B311: Código | C311: Banco | D311: Descrição | E311: Tipo | G311: Und | H311: Quant. | I311: Valor Unit | J311: Total
A312: Composição | B312: 33 | C312: Próprio | D312: FORNECIMENTO, MONTAGEM E INSTALAÇÃO DE CORRIMÃO CONFECCIONADO EM TUBO DE AÇO GALVANIZADO DE 1 1/4"" COM BRAÇADEIRA. | E312: SEDI - SERVIÇOS DIVERSOS | G312: M | H312: 1 | J312: =SUM(J313:J317) -> 101.54
A313: Composição Auxiliar | B313: 88629 | C313: SINAPI | D313: ARGAMASSA TRAÇO 1:3 (EM VOLUME DE CIMENTO E AREIA MÉDIA ÚMIDA), PREPARO MANUAL. AF_08/2019 | E313: SEDI - SERVIÇOS DIVERSOS | G313: m³ | H313: 0.01 | I313: =IF(A313="Insumo",VLOOKUP(B313,'ins sinapi nao des'!$A:$E,5,0),IF(A313="Composição Auxiliar",VLOOKUP(B313,'comp sinapi nao des'!$G:$K,5,0))) -> 646.83 | J313: =ROUNDDOWN(H313*I313,2) -> 6.46
A314: Composição Auxiliar | B314: 88316 | C314: SINAPI | D314: SERVENTE COM ENCARGOS COMPLEMENTARES | E314: SEDI - SERVIÇOS DIVERSOS | G314: H | H314: 1 | I314: =IF(A314="Insumo",VLOOKUP(B314,'ins sinapi nao des'!$A:$E,5,0),IF(A314="Composição Auxiliar",VLOOKUP(B314,'comp sinapi nao des'!$G:$K,5,0))) -> 21.05 | J314: 21.05
A315: Composição Auxiliar | B315: 88238 | C315: SINAPI | D315: AJUDANTE DE ARMADOR COM ENCARGOS COMPLEMENTARES | E315: SEDI - SERVIÇOS DIVERSOS | G315: H | H315: 1.1 | I315: =IF(A315="Insumo",VLOOKUP(B315,'ins sinapi nao des'!$A:$E,5,0),IF(A315="Composição Auxiliar",VLOOKUP(B315,'comp sinapi nao des'!$G:$K,5,0))) -> 21.97 | J315: 24.16
A316: Insumo | B316: 395 | C316: SINAPI | D316: ABRACADEIRA EM ACO PARA AMARRACAO DE ELETRODUTOS, TIPO D, COM 1 1/4" E PARAFUSO DE FIXACAO | E316: Material | G316: UN | H316: 2 | I316: =IF(A316="Insumo",VLOOKUP(B316,'ins sinapi nao des'!$A:$E,5,0),IF(A316="Composição Auxiliar",VLOOKUP(B316,'comp sinapi nao des'!$G:$K,5,0))) -> 5.8 | J316: 11.6
... 82 more rows

Sheet BDI
A5: DETALHAMENTO DO BDI
A6: SEM DESONERAÇÃO
A7: Item | B7: Descrição dos serviços | C7: Preço de Venda (%) | D7: Custo Direto (%)
A9: 1 | B9: Administração Central (A) | D9: 0.04
A11: 2 | B11: Impostos e Taxas (I) | C11: =SUM(C12:C15) -> 0.0665
A12: 2.1 | B12: ISS | C12: 0.03
A13: 2.2 | B13: PIS | C13: 0.0065
A14: 2.3 | B14: Cofins | C14: 0.03
A15: 2.4 | B15: CPRB | C15: 0
A17: 3 | B17: Risco, seguro e garantia (R) | D17: =SUM(D18:D19) -> 0.018
A18: 3.1 | B18: Risco | D18: 0.01
A19: 3.2 | B19: Seguro + Garantia | D19: 0.008
A21: 4 | B21: Despesas Financeiras (DF) | D21: 0.0105
A23: 5 | B23: Lucro (L) | D23: 0.07
B25: BDI ADOTADO (%) | D25: =((((1+D9+D17)*(1+D21)*(1+D23))/(1-C11)))-1 -> 0.2254
A28: AC = | B28: taxa de rateio da Administração Central | D28: =D9 -> 0.04
A29: I = | B29: taxa de tributos | D29: =C11 -> 0.0665
A30: R = | B30: taxa de risco, seguro e garantia | D30: =D17 -> 0.018
A31: DF = | B31: taxa das despesas financeiras | D31: =D21 -> 0.0105
A32: L = | B32: taxa de lucro | D32: =D23 -> 0.07

Sheet MOB DESMOB
A5: MOMENTOS DE TRANSPORTE
A7: Itens 1.2 e 1.3
A8: Deslocamento:
C9: Distancia méd. (Km) | D9: Qtde. | E9: Total (Km)
A10: Mobilização intra-municipal (entre os trechos de serviço): | C10: 0 | D10: 0 | E10: =C10*D10 -> 0
A11: Desmobilização intra-municipal (entre os trechos de serviço): | C11: 0 | D11: 0 | E11: 0
A12: Mobilização inter-municipal (entre as localidades): | C12: 60 | D12: 1 | E12: 60
A13: Desmobilização inter-municipal (entre as localidades): | C13: 60 | D13: 1 | E13: 60
A14: Mobilização - Total (km) | E14: =E10+E12 -> 60
A15: Desmobilização - Total (km) | E15: =E11+E13 -> 60
A18: Peso das máquinas:
B19: Trator de esteiras | D19: ton
B20: Pá carregadeira | C20: 7 | D20: ton
B21: Motoniveladora | D21: ton
B22: Trator de pneus | D22: ton
B23: Rolo Compactador | D23: ton
B24: Grade de disco | D24: ton
B26: Total | C26: =ROUND(SUM(C18:C25),2) -> 7 | D26: ton
A28: Portanto:
A29: Mobilização - Total (km) | C29: =E14*C26 -> 420 | D29: t x km
A30: Desmobilização - Total (km) | C30: =E15*C26 -> 420 | D30: t x km

Sheet QUANTI
B1: MEMÓRIA CÁLCULOS QUANTITATIVOS
B3: DESCRIÇÃO DOS SERVIÇOS | F3: unid. | G3: COMPRIMENTO | H3: LARGURA/ DESCONTO | I3: PROFUND. | J3: VEZES | K3: TOTAL
B5: PLACA DE OBRA
B6: Fornecimento, instalação e conservação de Placa de identificação de obra com as dimensões de 3,0 m x 2,0 m conforme modelo fornecido pela CODEVASF. | F6: UNID. | G6: 2 | H6: 3 | J6: 1 | K6: =G6*H6 -> 6
B8: LOCAÇÃO
B9: LOCAÇÃO = LIMPEZA DO TERRENO | F9: M² | G9: 37.93 | H9: 26.47 | J9: 1 | K9: =G9*H9*J9 -> 1004.01
B11: ESCAVAÇÃO MANUAL
B12: CINTAMENTO -CONTORNO CALÇADA | F12: M³ | G12: =37.93+37.93+26.47+26.47 -> 128.8 | H12: 0.22 | I12: 0.22 | J12: 1 | K12: =G12*H12*I12 -> 6.23
B13: CINTAMENTO INTERNO = MURETA - ESCAVAÇÃO ( VIGAS) | F13: M³ | G13: 84.8 | H13: 0.25 | I13: 0.35 | J13: 1 | K13: =G13*H13*I13*J13 -> 7.42
B14: SAPATA (PILARES) - MURETA | F14: M³ | G14: 0.6 | H14: 0.6 | I14: 0.85 | J14: =12+12+6+6 -> 36 | K14: 11.02
B15: ARQUIBANCADA | F15: M³ | G15: 46.35 | H15: 0.25 | I15: 0.35 | J15: 2 | K15: 8.11
B16: TOTAL ESCAVAÇÃO MANUAL | K16: =SUM(K12:K15) -> 32.78
B18: REATERRO
B19: VOLUME ESCAV.( -) VOLUME ESTRUTURA (CONCRETO 1:4:8 + CONCRETO 20MPA) | F19: M³ | G19: =K16 -> 32.78 | H19: =K71+K73+K70+K68+K57 -> 16.81 | K19: =G19-H19 -> 15.97
B20: TOTAL REATERRO | K20: =SUM(K19:K19) -> 15.97
B22: ATERRO
B23: Aterro interno compactado manualmente - calçada | F23: M³ | G23: 30.47 | H23: 10.53 | I23: 0.3 | J23: 1 | K23: =G23*I23*H23 -> 96.25 | M23: =G23*H19*I23 -> 153.66
B24: TOTAL ATERRO | K24: =K23 -> 96.25
B26: ALVENARIA, 1/2 VEZ, EM TIJOLO CERÂMICO
B27: ALVENARIA EM TIJOLO CERÂMICO - MURETA | F27: M² | G27: 102.8 | H27: 0.95 | J27: 1 | K27: =G27*H27*J27 -> 97.66
B28: ALVENARIA EM TIJOLO CERÂMICO - ARQUIBANCADA | F28: M² | G28: 15 | H28: 0.9 | J28: 2 | K28: 27
B29: ALVENARIA EM TIJOLO CERÂMICO - ARQUIBANCADA | F29: M² | G29: 15 | H29: =0.45+0.45 -> 0.9 | J29: 2 | K29: 27
B30: ALVENARIA EM TIJOLO CERÂMICO - ARQUIBANCADA | F30: M² | G30: 15 | H30: 0.45 | J30: 2 | K30: 13.5
B31: ALVENARIA EM TIJOLO CERÂMICO - ARQUIBANCADA LATERAIS | F31: M² | G31: 0.41 | J31: 4 | K31: =G31*J31 -> 1.64
B32: TOTAL ALVENARIA EM TIJOLO CERÂMICO | K32: =SUM(K27:K31) -> 166.8
B34: CHAPISCO
B35: ALVENARIA - QUADRA - MURETA | F35: M² | G35: 108.8 | H35: 1.1 | J35: 2 | K35: =G35*H35*J35 -> 239.36
B36: ALVENARIA / ARQUIBANCADA | F36: M² | G36: 15 | H36: 0.9 | J36: 2 | K36: 27
B37: ALVENARIA / ARQUIBANCADA | F37: M² | G37: 15 | H37: 0.45 | J37: 4 | K37: 27
B38: ALVENARIA EM TIJOLO CERÂMICO - ARQUIBANCADA LATERAIS | F38: M² | G38: 0.74 | J38: 4 | K38: =G38*J38 -> 2.96
B39: MURO DE ARRIMO DE ALVENARIA - CONTORNO CALÇADA | F39: M² | G39: =G12 -> 128.8 | H39: 0.25 | J39: 1 | K39: =G39*H39*J39 -> 32.2
B40: TOTAL CHAPISCO | K40: =SUM(K35:K39) -> 328.52
B42: REBOCO | F42: M² | G42: EXTENSÃO | H42: LARGURA | I42: PROFUND. | J42: VEZES | K42: ÁREA
B43: ALVENARIA / QUADRA | F43: M² | G43: =G35 -> 108.8 | H43: =H35 -> 1.1 | J43: 2 | K43: 239.36
B44: ALVENARIA / ARQUIBANCADA | F44: M² | G44: 15 | H44: 0.9 | J44: 2 | K44: 27
B45: ALVENARIA / ARQUIBANCADA | F45: M² | G45: 15 | H45: 0.45 | J45: 4 | K45: 27
B46: ALVENARIA EM TIJOLO CERÂMICO - ARQUIBANCADA LATERAIS | F46: M² | G46: 0.74 | J46: 4 | K46: =G46*J46 -> 2.96
B47: MURO DE ARRIMO DE ALVENARIA - CONTORNO CALÇADA | F47: M² | G47: 128.8 | H47: 0.25 | J47: 1 | K47: =G47*H47*J47 -> 32.2
B48: TOTAL REBOCO | K48: =SUM(K43:K47) -> 328.52
B50: LASTRO DE BRITA PARA O PISO
B51: LASTRO DE BRITA 2 | F51: M³ | G51: 33.93 | H51: 20.47 | I51: 0.05 | J51: 1 | K51: =G51*H51*I51*J51 -> 34.73
B53: CONCRETO SIMPLES 1:4:8
B54: CINTAMENTO INFERIOR - MURETA | F54: M³ | G54: 102.8 | H54: 0.25 | I54: 0.05 | J54: 1 | K54: 1.29
B55: SAPATA - MURETA | F55: M³ | G55: 0.6 | H55: 0.6 | I55: 0.05 | J55: 36 | K55: 0.65
B56: ARQUIBANCADA | F56: M³ | G56: 46.35 | H56: 0.25 | I56: 0.05 | J56: 2 | K56: 1.16
B57: TOTAL CONCRETO NÃO ESTRUTURAL | K57: =SUM(K54:K56) -> 3.1
B59: PISO CONCRETO ARMADO FCK=20MPA
B60: PISO EM CONCRETO, e=8cm | F60: M² | G60: 33.93 | H60: 20.47 | J60: 1 | K60: =G60*H60*J60 -> 694.55
B61: TOTAL PISO CONCRETO ARMADO FCK= 20MPA | K61: =SUM(K60) -> 694.55
B63: PISO - MALHA POP DE AÇO, DIAMETRO= 4,2MM - CA 50
B64: PISO | F64: M² | G64: 33.93 | H64: 20.47 | J64: 1 | K64: =G64*H64*J64 -> 694.55
B65: TOTAL MALHA DE AÇO | K65: =SUM(K64) -> 694.55
O66: =K74+K57 -> 20.01
B67: CONCRETO ARMADO FCK= 20MPA
B68: CINTAMENTO - CONTORNO CALÇADA | F68: M³ | G68: 128.8 | H68: 0.12 | I68: 0.12 | J68: 1 | K68: =G68*H68*I68*J68 -> 1.85
B69: CINTAMENTO SUPERIOR - MURETA | F69: M³ | G69: 102.8 | H69: 0.15 | I69: 0.15 | J69: 1 | K69: 2.31
B70: CINTAMENTO INFERIOR - MURETA | F70: M³ | G70: 102.8 | H70: 0.15 | I70: 0.3 | J70: 1 | K70: 4.63
B71: SAPATA - MURETA | F71: M³ | G71: 0.5 | H71: 0.5 | I71: 0.34 | J71: 36 | K71: 3.06 | M71: PILARES A CADA 3M
B72: PILARETES MURETA | F72: M³ | G72: 0.15 | H72: 0.15 | I72: 1.1 | J72: 36 | K72: 0.89
B73: ARQUIBANCADA - CINTAMENTO | F73: M³ | G73: 46.35 | H73: 0.15 | I73: 0.3 | J73: 2 | K73: 4.17
B74: TOTAL CONCRETO ARMADO | K74: =SUM(K68:K73) -> 16.91
B76: CALÇADA EM CONCRETO 1:4:8 - DESEMPENADO
B77: CALÇADA EM CONCRETO 1:4:8, E=6CM = ÁREA EXTERNA | F77: M³ | G77: 276.46 | J77: 0.06 | K77: =(G77-I77)*J77 -> 16.59 | M77: =G77-I77 -> 276.46
B78: TOTAL CALÇADA | K78: =K77 -> 16.59
B80: LAJE - ARQUIBANCADA
B81: LAJE PRÉ-MOLDADA | F81: M² | G81: 15 | H81: 1.1 | J81: 2 | K81: =G81*H81*J81 -> 33
B83: PINTURA LATEX ACRILICO | F83: M² | G83: EXTENSÃO | H83: LARGURA | I83: PROFUND. | J83: VEZES | K83: ÁREA
B84: PAREDES - MURETA | F84: M² | G84: =G35 -> 108.8 | I84: 1.1 | J84: 2 | K84: =G84*I84*J84 -> 239.36
B85: PAREDES - ARQUIBANCADA | F85: M² | G85: 15 | I85: 0.9 | J85: 2 | K85: 27
B86: PAREDES - ARQUIBANCADA | F86: M² | G86: 15 | I86: 0.45 | J86: 4 | K86: 27
B87: ASSENTO - ARQUIBANCADA | F87: M² | G87: 15 | I87: 0.55 | J87: 4 | K87: 33
B88: PAREDES LATERAIS - ARQUIBANCADA | F88: M² | G88: 0.74 | J88: 4 | K88: =G88*J88 -> 2.96
B89: TOTAL PINTURA LATEX ACRILICO | K89: =SUM(K84:K88) -> 329.32
B91: PINTURA ACRILICA | F91: M² | G91: EXTENSÃO | H91: LARGURA | I91: PROFUND. | J91: VEZES | K91: ÁREA
B92: DEMARCAÇÃO ACESSO CADEIRANTES | F92: M² | G92: 2.64 | J92: 2 | K92: =G92*J92 -> 5.28
B93: TOTAL PINTURA ACRILICA | K93: =SUM(K92:K92) -> 5.28
B95: PINTURA ACRÍLICA - DEMARCAÇÃO | F95: M | G95: EXTENSÃO | H95: LARGURA | I95: PROFUND. | J95: VEZES | K95: COMPR. | M95: =G96+G92 -> 368.23
B96: DEMARÇÃO DE QUADRA | F96: M | G96: 365.59 | K96: =G96 -> 365.59
B97: TOTAL DEMARCAÇÃO | K97: =SUM(K96:K96) -> 365.59
B99: FORNECIMENTO E ASSENTAMENTO DE ALAMBRADO | F99: M² | G99: EXTENSÃO | H99: LARGURA | I99: PROFUND. | J99: VEZES | K99: ÁREA
B100: ALAMBRADO - | F100: M² | K100: 207.17
B101: TOTAL ALAMBRADO | K101: =SUM(K100:K100) -> 207.17
B103: CORRIMÃO | F103: M | G103: EXTENSÃO | H103: LARGURA | I103: PROFUND. | J103: VEZES | K103: COMPR.
B104: CORRIMÃO / BICICLETÁRIO | F104: M | G104: 32.58 | K104: =G104 -> 32.58
B106: PINTURA CORRIMÃO | F106: M² | G106: EXTENSÃO | H106: LARGURA | I106: PROFUND. | J106: PI | K106: ÁREA
B107: PINTURA CORRIMÃO / BICICLETÁRIO | F107: M² | G107: 16.29 | H107: 0.0381 | I107: 4 | J107: 3.14 | K107: =G107*H107*I107*J107 -> 7.8

Sheet Cronograma Físico-Financeiro 1
A1: CRONOGRAMA FÍSICO FINANCEIRO
A3: ITEM | B3: DISCRIMINAÇÃO | C3: CRONOGRAMA FÍSICO-FINANCEIRO
C4: Preço Total | D4: 30 DIAS | E4: 60 DIAS | F4: 90 DIAS | G4: 120 DIAS | H4: TOTAL
D5: =D6/C6 -> 0.801 | E5: =E6/C6-0 -> 0 | F5: =F6/$C6 -> 0 | G5: =G6/$C6 -> 0.199 | H5: =SUM(D5:G5) -> 1
A6: 1 | B6: IMPLANTAÇÃO DA OBRA | C6: ='Orçamento Sintético 1 PÁTIO'!I5 -> 3207.31 | D6: =('Orçamento Sintético 1 PÁTIO'!$I$6+'Orçamento Sintético 1 PÁTIO'!$I$7) -> 2568.91 | E6: 0 | F6: 0 | G6: ='Orçamento Sintético 1 PÁTIO'!I8 -> 638.4 | H6: 3207.31 | I6: =C6-H6 -> 0
D7: =D8/C8+0.0001 -> 0.2693 | E7: =E8/C8 -> 0.2612 | F7: =F8/$C8 -> 0.3082 | G7: =G8/$C8 -> 0.1613 | H7: 1
A8: 2 | B8: ADMINISTRAÇÃO DA OBRA | C8: ='Orçamento Sintético 1 PÁTIO'!I9 -> 25727.95 | D8: =C8*D29+0 -> 6926.99 | E8: =C8*E29 -> 6721.17 | F8: =C8*F29 -> 7929.61 | G8: =C8*G29 -> 4150.18 | H8: 25727.95 | I8: 0
D9: =D10/C10 -> 0.35 | E9: =E10/C10 -> 0.35 | F9: =F10/$C10 -> 0.25 | G9: =G10/$C10 -> 0.05 | H9: 1
A10: 3 | B10: EXECUÇÃO DAS OBRAS | C10: ='Orçamento Sintético 1 PÁTIO'!I12 -> 196069.25 | D10: =$C$10*35% -> 68624.24 | E10: =$C$10*35% -> 68624.24 | F10: =$C$10*25% -> 49017.31 | G10: =$C$10*5% -> 9803.46 | H10: 196069.25 | I10: 0
D11: =D12/$C$12 -> 0 | E11: =E12/$C$12 -> 0 | F11: =F12/$C$12 -> 0.5 | G11: =G12/$C$12 -> 0.5 | H11: 1
A12: 4 | B12: ACESSÓRIOS | C12: ='Orçamento Sintético 1 PÁTIO'!I36 -> 63031.99 | D12: 0 | E12: 0 | F12: =C12/2-0.01 -> 31515.99 | G12: =C12/2 -> 31516 | H12: 63031.99 | I12: =C12-H12 -> 0
D13: =D14/$C$14 -> 0 | E13: =E14/$C$14 -> 0 | F13: =F14/$C$14 -> 0.5 | G13: =G14/$C$14 -> 0.5 | H13: 1
A14: 5 | B14: INSTALAÇÃO ELÉTRICA | C14: ='Orçamento Sintético 1 PÁTIO'!I43 -> 21589.98 | D14: 0 | E14: 0 | F14: =C14/2 -> 10794.99 | G14: =C14/2-0 -> 10794.99 | H14: 21589.98 | I14: 0
A16: VALOR TOTAL | C16: =SUM(C5:C15) -> 309626.48 | D16: =D6+D8+D10+D12+D14 -> 78120.14 | E16: =E6+E8+E10+E12+E14 -> 75345.41 | F16: =F6+F8+F10+F12+F14 -> 99257.9 | G16: =G6+G8+G10+G12+G14 -> 56903.03 | H16: =H6+H8+H10+H12+H14 -> 309626.48 | I16: 0
D17: 2018-10-01 | E17: 2018-11-01 | F17: 2018-12-01 | G17: 2019-01-01
C18: ACUMULADO | D18: =D16 -> 78120.14 | E18: =D16+E16 -> 153465.55 | F18: =E18+F16 -> 252723.45 | G18: =G16+F18 -> 309626.48
I21: =#REF!-#REF! -> 
I22: =I21/10 -> 
C27: =C16-C8 -> 283898.53 | D27: =D16/$C$27 -> 0.2751692 | E27: =E16/$C$27 -> 0.2653956 | F27: =F16/$C$27 -> 0.3496246 | G27: =G16/$C$27 -> 0.2004344
D29: 0.26924 | E29: 0.26124 | F29: 0.30821 | G29: 0.16131
B30: 4

Sheet Cronograma Físico-Financeiro
A1: CRONOGRAMA FÍSICO FINANCEIRO
A3: ITEM | B3: DISCRIMINAÇÃO | C3: CRONOGRAMA FÍSICO-FINANCEIRO
C4: Preço Total | D4: 30 DIAS | E4: 60 DIAS | F4: 90 DIAS | G4: 120 DIAS | H4: 150 DIAS | I4: 180 DIAS | J4: 210 DIAS | K4: 240 DIAS | L4: 270 DIAS | M4: 300 DIAS | N4: 330 DIAS | O4: 360 DIAS | P4: TOTAL
D5: =D6/C6 -> 0.4005 | E5: =E6/C6-0 -> 0.4005 | F5: =F6/$C6 -> 0 | G5: =G6/$C6 -> 0 | H5: =H6/$C6 -> 0 | I5: =I6/$C6 -> 0 | J5: =J6/$C6 -> 0 | K5: =K6/C6 -> 0 | L5: =L6/$C6 -> 0 | M5: =M6/$C6 -> 0 | N5: =N6/$C6+0 -> 0 | O5: =O6/$C6-0 -> 0.199 | P5: =SUM(D5:O5) -> 1
A6: 1 | B6: IMPLANTAÇÃO DA OBRA | C6: ='Orçamento Sintético 16 PÁTIOS'!I5 -> 51316.96 | D6: =('Orçamento Sintético 16 PÁTIOS'!$I$6+'Orçamento Sintético 16 PÁTIOS'!$I$7)/2 -> 20551.28 | E6: =('Orçamento Sintético 16 PÁTIOS'!$I$6+'Orçamento Sintético 16 PÁTIOS'!$I$7)/2-0 -> 20551.28 | F6: 0 | G6: 0 | H6: 0 | I6: 0 | J6: 0 | K6: 0 | L6: 0 | M6: 0 | N6: 0 | O6: ='Orçamento Sintético 16 PÁTIOS'!I8 -> 10214.4 | P6: 51316.96 | Q6: =C6-P6 -> 0
D7: =D8/C8+0.0001 -> 0.0787 | E7: =E8/C8+0.0001 -> 0.0787 | F7: =F8/$C8+0 -> 0.0746 | G7: =G8/$C8+0 -> 0.0746 | H7: 0.0746 | I7: 0.0746 | J7: 0.0746 | K7: 0.0746 | L7: 0.0929 | M7: =M8/$C8+0.0001 -> 0.1049 | N7: =N8/$C8+0.0001 -> 0.1049 | O7: =O8/$C8 -> 0.0923 | P7: 1
A8: 2 | B8: ADMINISTRAÇÃO DA OBRA | C8: ='Orçamento Sintético 16 PÁTIOS'!I9 -> 411647.2 | D8: =D29*$C$8-0 -> 32372.47 | E8: =E29*$C$8-0 -> 32372.47 | F8: =F29*$C$8-0.01 -> 30725.25 | G8: =G29*$C$8-0.01 -> 30725.25 | H8: =H29*$C$8-0.01 -> 30725.25 | I8: =I29*$C$8-0.01 -> 30725.25 | J8: =J29*$C$8-0.01 -> 30725.25 | K8: =K29*$C$8-0.01 -> 30725.25 | L8: =L29*$C$8-0.01 -> 38252.35 | M8: =M29*$C$8-0.01 -> 43154.86 | N8: =N29*$C$8-0.01 -> 43154.86 | O8: =O29*$C$8-0.01 -> 37988.69 | P8: 411647.2 | Q8: 0
D9: 0.1 | E9: =E10/C10 -> 0.1 | F9: 0.1 | G9: 0.1 | H9: 0.1 | I9: 0.1 | J9: 0.1 | K9: 0.1 | L9: 0.1 | M9: 0.04 | N9: =N10/$C10 -> 0.04 | O9: =O10/$C10 -> 0.02 | P9: 1
A10: 3 | B10: EXECUÇÃO DAS OBRAS | C10: ='Orçamento Sintético 16 PÁTIOS'!I12 -> 3137108.12 | D10: =$C$10*10% -> 313710.81 | E10: =$C$10*10% -> 313710.81 | F10: =$C$10*10%+0.03 -> 313710.84 | G10: 313710.81 | H10: 313710.81 | I10: 313710.81 | J10: 313710.81 | K10: 313710.81 | L10: 313710.81 | M10: =$C$10*4% -> 125484.32 | N10: =$C$10*4% -> 125484.32 | O10: =$C$10*2% -> 62742.16 | P10: 3137108.12 | Q10: 0
D11: =D12/$C$12 -> 0 | E11: =E12/$C$12 -> 0 | F11: =F12/$C$12 -> 0 | G11: =G12/$C$12 -> 0 | H11: =H12/$C$12 -> 0 | I11: =I12/$C$12 -> 0 | J11: =J12/$C$12 -> 0 | K11: =K12/$C$12 -> 0 | L11: =L12/$C$12 -> 0 | M11: =M12/$C$12 -> 0.3333 | N11: =N12/$C$12 -> 0.3333 | O11: =O12/$C$12+0.0001 -> 0.3334 | P11: 1
A12: 4 | B12: ACESSÓRIOS | C12: ='Orçamento Sintético 16 PÁTIOS'!I36 -> 1008511.76 | D12: 0 | E12: 0 | F12: 0 | G12: 0 | H12: 0 | I12: 0 | J12: 0 | K12: 0 | L12: 0 | M12: =$C$12/3-0.01 -> 336170.58 | N12: =$C$12/3 -> 336170.59 | O12: =$C$12/3 -> 336170.59 | P12: 1008511.76 | Q12: =C12-P12 -> 0
D13: =D14/$C$14 -> 0 | E13: =E14/$C$14 -> 0 | F13: =F14/$C$14 -> 0 | G13: =G14/$C$14 -> 0 | H13: =H14/$C$14 -> 0 | I13: =I14/$C$14 -> 0 | J13: =J14/$C$14 -> 0 | K13: =K14/$C$14 -> 0 | L13: =L14/$C$14 -> 0.25 | M13: =M14/$C$14 -> 0.25 | N13: =N14/$C$14 -> 0.25 | O13: =O14/$C$14 -> 0.25 | P13: 1
A14: 5 | B14: INSTALAÇÃO ELÉTRICA | C14: ='Orçamento Sintético 16 PÁTIOS'!I43 -> 345439.68 | D14: 0 | E14: 0 | F14: 0 | G14: 0 | H14: 0 | I14: 0 | J14: 0 | K14: 0 | L14: =$C$14/4+0 -> 86359.92 | M14: =$C$14/4 -> 86359.92 | N14: =$C$14/4 -> 86359.92 | O14: =$C$14/4 -> 86359.92 | P14: 345439.68 | Q14: =C14-P14 -> 0
A16: VALOR TOTAL | C16: =SUM(C5:C15)-0.04 -> 4954023.68 | D16: =D6+D8+D10+D12+D14 -> 366634.56 | E16: =E6+E8+E10+E12+E14 -> 366634.56 | F16: 344436.09 | G16: 344436.06 | H16: 344436.06 | I16: 344436.06 | J16: 344436.06 | K16: 344436.06 | L16: 438323.08 | M16: 591169.68 | N16: 591169.69 | O16: 533475.76 | P16: =P6+P8+P10+P12+P14-0.04 -> 4954023.68 | Q16: =C16-P16 -> 0
D17: 2018-10-01 | E17: 2018-11-01 | F17: 2018-12-01 | G17: 2019-01-01 | H17: 2019-02-01 | I17: 2019-03-01 | J17: 2019-04-01 | K17: 2019-05-01 | L17: 2019-06-01 | M17: 2019-07-01 | N17: 2019-08-01 | O17: 2019-09-01
C18: ACUMULADO | D18: =D16 -> 366634.56 | E18: =D16+E16 -> 733269.12 | F18: =E18+F16 -> 1077705.21 | G18: =G16+F18 -> 1422141.27 | H18: 1766577.33 | I18: 2111013.39 | J18: 2455449.45 | K18: 2799885.51 | L18: 3238208.59 | M18: 3829378.27 | N18: 4420547.96 | O18: =O16+N18-0.04 -> 4954023.68
Q21: =#REF!-#REF! -> 
Q22: =Q21/10 -> 
C27: =C16-C8 -> 4542376.48 | D27: =D16/$C$27 -> 0.0807143 | E27: =E16/$C$27 -> 0.0807143 | F27: 0.0758273 | G27: 0.0758273 | H27: 0.0758273 | I27: 0.0758273 | J27: 0.0758273 | K27: 0.0758273 | L27: 0.0964964 | M27: 0.1301455 | N27: 0.1301455 | O27: 0.1174442
D29: 0.0786413 | E29: 0.0786413 | F29: 0.0746398 | G29: 0.0746398 | H29: 0.0746398 | I29: 0.0746398 | J29: 0.0746398 | K29: 0.0746398 | L29: 0.0929251 | M29: 0.1048346 | N29: 0.1048346 | O29: 0.0922846
B30: 4

Sheet comp sinapi nao des
A1: PCI.817.01 - CUSTO DE COMPOSIÇÕES - SINTÉTICO DATA DE EMISSÃO: 11/09/2024 23:46:02 DATA DE RT: 11/09/2024
A2: ENCARGOS SOCIAIS SOBRE PREÇOS DA MÃO-DE-OBRA: 113,98%(HORA) 70,00%(MÊS)
A3: ABRANGÊNCIA : NACIONAL LOCALIDADE : RECIFE DATA DE PREÇO : 08/2024 REFERÊNCIA COLETA : MEDIANO
A5: DESCRICAO DA CLASSE | B5: SIGLA DA CLASSE | C5: DESCRICAO DO TIPO 1 | D5: SIGLA DO TIPO 1 | E5: CODIGO DO AGRUPADOR | F5: DESCRICAO DO AGRUPADOR | G5: CODIGO DA COMPOSICAO | H5: DESCRICAO DA COMPOSICAO | I5: UNIDADE | J5: ORIGEM DE PREÇO | K5: CUSTO TOTAL | L5: VINCULO
A7: ASSENTAMENTO DE TUBOS E PECAS | B7: ASTU | C7: FORNEC E/OU ASSENT DE TUBO DE FERRO FUNDIDO JUNTA ELASTICA | D7: 0045 | G7: 97141 | H7: ASSENTAMENTO DE TUBO DE FERRO FUNDIDO PARA REDE DE ÁGUA, DN 80 MM, JUNTA ELÁSTICA, INSTALADO EM LOCAL COM NÍVEL ALTO DE INTERFERÊNCIAS (NÃO INCLUI FORNECIMENTO). AF_05/2024 | I7: M | J7: COEFICIENTE DE REPRESENTATIVIDADE | K7: 5.05 | L7: CAIXA REFERENCIAL
A8: ASSENTAMENTO DE TUBOS E PECAS | B8: ASTU | C8: FORNEC E/OU ASSENT DE TUBO DE FERRO FUNDIDO JUNTA ELASTICA | D8: 0045 | G8: 97142 | H8: ASSENTAMENTO DE TUBO DE FERRO FUNDIDO PARA REDE DE ÁGUA, DN 100 MM, JUNTA ELÁSTICA, INSTALADO EM LOCAL COM NÍVEL ALTO DE INTERFERÊNCIAS (NÃO INCLUI FORNECIMENTO). AF_05/2024 | I8: M | J8: COEFICIENTE DE REPRESENTATIVIDADE | K8: 5.82 | L8: CAIXA REFERENCIAL
A9: ASSENTAMENTO DE TUBOS E PECAS | B9: ASTU | C9: FORNEC E/OU ASSENT DE TUBO DE FERRO FUNDIDO JUNTA ELASTICA | D9: 0045 | G9: 97143 | H9: ASSENTAMENTO DE TUBO DE FERRO FUNDIDO PARA REDE DE ÁGUA, DN 150 MM, JUNTA ELÁSTICA, INSTALADO EM LOCAL COM NÍVEL ALTO DE INTERFERÊNCIAS (NÃO INCLUI FORNECIMENTO). AF_05/2024 | I9: M | J9: COEFICIENTE DE REPRESENTATIVIDADE | K9: 7.65 | L9: CAIXA REFERENCIAL
A10: ASSENTAMENTO DE TUBOS E PECAS | B10: ASTU | C10: FORNEC E/OU ASSENT DE TUBO DE FERRO FUNDIDO JUNTA ELASTICA | D10: 0045 | G10: 97144 | H10: ASSENTAMENTO DE TUBO DE FERRO FUNDIDO PARA REDE DE ÁGUA, DN 200 MM, JUNTA ELÁSTICA, INSTALADO EM LOCAL COM NÍVEL ALTO DE INTERFERÊNCIAS (NÃO INCLUI FORNECIMENTO). AF_05/2024 | I10: M | J10: COEFICIENTE DE REPRESENTATIVIDADE | K10: 9.51 | L10: CAIXA REFERENCIAL
A11: ASSENTAMENTO DE TUBOS E PECAS | B11: ASTU | C11: FORNEC E/OU ASSENT DE TUBO DE FERRO FUNDIDO JUNTA ELASTICA | D11: 0045 | G11: 97145 | H11: ASSENTAMENTO DE TUBO DE FERRO FUNDIDO PARA REDE DE ÁGUA, DN 250 MM, JUNTA ELÁSTICA, INSTALADO EM LOCAL COM NÍVEL ALTO DE INTERFERÊNCIAS (NÃO INCLUI FORNECIMENTO). AF_05/2024 | I11: M | J11: COEFICIENTE DE REPRESENTATIVIDADE | K11: 11.38 | L11: CAIXA REFERENCIAL
A12: ASSENTAMENTO DE TUBOS E PECAS | B12: ASTU | C12: FORNEC E/OU ASSENT DE TUBO DE FERRO FUNDIDO JUNTA ELASTICA | D12: 0045 | G12: 97146 | H12: ASSENTAMENTO DE TUBO DE FERRO FUNDIDO PARA REDE DE ÁGUA, DN 300 MM, JUNTA ELÁSTICA, INSTALADO EM LOCAL COM NÍVEL ALTO DE INTERFERÊNCIAS (NÃO INCLUI FORNECIMENTO). AF_05/2024 | I12: M | J12: COEFICIENTE DE REPRESENTATIVIDADE | K12: 13.24 | L12: CAIXA REFERENCIAL
A13: ASSENTAMENTO DE TUBOS E PECAS | B13: ASTU | C13: FORNEC E/OU ASSENT DE TUBO DE FERRO FUNDIDO JUNTA ELASTICA | D13: 0045 | G13: 97147 | H13: ASSENTAMENTO DE TUBO DE FERRO FUNDIDO PARA REDE DE ÁGUA, DN 350 MM, JUNTA ELÁSTICA, INSTALADO EM LOCAL COM NÍVEL ALTO DE INTERFERÊNCIAS (NÃO INCLUI FORNECIMENTO). AF_05/2024 | I13: M | J13: COEFICIENTE DE REPRESENTATIVIDADE | K13: 15.12 | L13: CAIXA REFERENCIAL
A14: ASSENTAMENTO DE TUBOS E PECAS | B14: ASTU | C14: FORNEC E/OU ASSENT DE TUBO DE FERRO FUNDIDO JUNTA ELASTICA | D14: 0045 | G14: 97148 | H14: ASSENTAMENTO DE TUBO DE FERRO FUNDIDO PARA REDE DE ÁGUA, DN 400 MM, JUNTA ELÁSTICA, INSTALADO EM LOCAL COM NÍVEL ALTO DE INTERFERÊNCIAS (NÃO INCLUI FORNECIMENTO). AF_05/2024 | I14: M | J14: COEFICIENTE DE REPRESENTATIVIDADE | K14: 16.99 | L14: CAIXA REFERENCIAL
A15: ASSENTAMENTO DE TUBOS E PECAS | B15: ASTU | C15: FORNEC E/OU ASSENT DE TUBO DE FERRO FUNDIDO JUNTA ELASTICA | D15: 0045 | G15: 97149 | H15: ASSENTAMENTO DE TUBO DE FERRO FUNDIDO PARA REDE DE ÁGUA, DN 450 MM, JUNTA ELÁSTICA, INSTALADO EM LOCAL COM NÍVEL ALTO DE INTERFERÊNCIAS (NÃO INCLUI FORNECIMENTO). AF_05/2024 | I15: M | J15: COEFICIENTE DE REPRESENTATIVIDADE | K15: 18.89 | L15: CAIXA REFERENCIAL
A16: ASSENTAMENTO DE TUBOS E PECAS | B16: ASTU | C16: FORNEC E/OU ASSENT DE TUBO DE FERRO FUNDIDO JUNTA ELASTICA | D16: 0045 | G16: 97150 | H16: ASSENTAMENTO DE TUBO DE FERRO FUNDIDO PARA REDE DE ÁGUA, DN 500 MM, JUNTA ELÁSTICA, INSTALADO EM LOCAL COM NÍVEL ALTO DE INTERFERÊNCIAS (NÃO INCLUI FORNECIMENTO). AF_05/2024 | I16: M | J16: COEFICIENTE DE REPRESENTATIVIDADE | K16: 23.64 | L16: CAIXA REFERENCIAL
A17: ASSENTAMENTO DE TUBOS E PECAS | B17: ASTU | C17: FORNEC E/OU ASSENT DE TUBO DE FERRO FUNDIDO JUNTA ELASTICA | D17: 0045 | G17: 97151 | H17: ASSENTAMENTO DE TUBO DE FERRO FUNDIDO PARA REDE DE ÁGUA, DN 600 MM, JUNTA ELÁSTICA, INSTALADO EM LOCAL COM NÍVEL ALTO DE INTERFERÊNCIAS (NÃO INCLUI FORNECIMENTO). AF_05/2024 | I17: M | J17: COEFICIENTE DE REPRESENTATIVIDADE | K17: 27.85 | L17: CAIXA REFERENCIAL
A18: ASSENTAMENTO DE TUBOS E PECAS | B18: ASTU | C18: FORNEC E/OU ASSENT DE TUBO DE FERRO FUNDIDO JUNTA ELASTICA | D18: 0045 | G18: 97152 | H18: ASSENTAMENTO DE TUBO DE FERRO FUNDIDO PARA REDE DE ÁGUA, DN 700 MM, JUNTA ELÁSTICA, INSTALADO EM LOCAL COM NÍVEL ALTO DE INTERFERÊNCIAS (NÃO INCLUI FORNECIMENTO). AF_05/2024 | I18: M | J18: COEFICIENTE DE REPRESENTATIVIDADE | K18: 31.81 | L18: CAIXA REFERENCIAL
A19: ASSENTAMENTO DE TUBOS E PECAS | B19: ASTU | C19: FORNEC E/OU ASSENT DE TUBO DE FERRO FUNDIDO JUNTA ELASTICA | D19: 0045 | G19: 97153 | H19: ASSENTAMENTO DE TUBO DE FERRO FUNDIDO PARA REDE DE ÁGUA, DN 800 MM, JUNTA ELÁSTICA, INSTALADO EM LOCAL COM NÍVEL ALTO DE INTERFERÊNCIAS (NÃO INCLUI FORNECIMENTO). AF_05/2024 | I19: M | J19: COEFICIENTE DE REPRESENTATIVIDADE | K19: 35.94 | L19: CAIXA REFERENCIAL
A20: ASSENTAMENTO DE TUBOS E PECAS | B20: ASTU | C20: FORNEC E/OU ASSENT DE TUBO DE FERRO FUNDIDO JUNTA ELASTICA | D20: 0045 | G20: 97154 | H20: ASSENTAMENTO DE TUBO DE FERRO FUNDIDO PARA REDE DE ÁGUA, DN 900 MM, JUNTA ELÁSTICA, INSTALADO EM LOCAL COM NÍVEL ALTO DE INTERFERÊNCIAS (NÃO INCLUI FORNECIMENTO). AF_05/2024 | I20: M | J20: COEFICIENTE DE REPRESENTATIVIDADE | K20: 40.1 | L20: CAIXA REFERENCIAL
A21: ASSENTAMENTO DE TUBOS E PECAS | B21: ASTU | C21: FORNEC E/OU ASSENT DE TUBO DE FERRO FUNDIDO JUNTA ELASTICA | D21: 0045 | G21: 97155 | H21: ASSENTAMENTO DE TUBO DE FERRO FUNDIDO PARA REDE DE ÁGUA, DN 1000 MM, JUNTA ELÁSTICA, INSTALADO EM LOCAL COM NÍVEL ALTO DE INTERFERÊNCIAS (NÃO INCLUI FORNECIMENTO). AF_05/2024 | I21: M | J21: COEFICIENTE DE REPRESENTATIVIDADE | K21: 44.26 | L21: CAIXA REFERENCIAL
A22: ASSENTAMENTO DE TUBOS E PECAS | B22: ASTU | C22: FORNEC E/OU ASSENT DE TUBO DE FERRO FUNDIDO JUNTA ELASTICA | D22: 0045 | G22: 97156 | H22: ASSENTAMENTO DE TUBO DE FERRO FUNDIDO PARA REDE DE ÁGUA, DN 1200 MM, JUNTA ELÁSTICA, INSTALADO EM LOCAL COM NÍVEL ALTO DE INTERFERÊNCIAS (NÃO INCLUI FORNECIMENTO). AF_05/2024 | I22: M | J22: COEFICIENTE DE REPRESENTATIVIDADE | K22: 52.95 | L22: CAIXA REFERENCIAL
A23: ASSENTAMENTO DE TUBOS E PECAS | B23: ASTU | C23: FORNEC E/OU ASSENT DE TUBO DE FERRO FUNDIDO JUNTA ELASTICA | D23: 0045 | G23: 97157 | H23: ASSENTAMENTO DE TUBO DE FERRO FUNDIDO PARA REDE DE ÁGUA, DN 80 MM, JUNTA ELÁSTICA, INSTALADO EM LOCAL COM NÍVEL BAIXO DE INTERFERÊNCIAS (NÃO INCLUI FORNECIMENTO). AF_05/2024 | I23: M | J23: COEFICIENTE DE REPRESENTATIVIDADE | K23: 3.79 | L23: CAIXA REFERENCIAL
A24: ASSENTAMENTO DE TUBOS E PECAS | B24: ASTU | C24: FORNEC E/OU ASSENT DE TUBO DE FERRO FUNDIDO JUNTA ELASTICA | D24: 0045 | G24: 97158 | H24: ASSENTAMENTO DE TUBO DE FERRO FUNDIDO PARA REDE DE ÁGUA, DN 100 MM, JUNTA ELÁSTICA, INSTALADO EM LOCAL COM NÍVEL BAIXO DE INTERFERÊNCIAS (NÃO INCLUI FORNECIMENTO). AF_05/2024 | I24: M | J24: COEFICIENTE DE REPRESENTATIVIDADE | K24: 4.41 | L24: CAIXA REFERENCIAL
A25: ASSENTAMENTO DE TUBOS E PECAS | B25: ASTU | C25: FORNEC E/OU ASSENT DE TUBO DE FERRO FUNDIDO JUNTA ELASTICA | D25: 0045 | G25: 97159 | H25: ASSENTAMENTO DE TUBO DE FERRO FUNDIDO PARA REDE DE ÁGUA, DN 150 MM, JUNTA ELÁSTICA, INSTALADO EM LOCAL COM NÍVEL BAIXO DE INTERFERÊNCIAS (NÃO INCLUI FORNECIMENTO). AF_05/2024 | I25: M | J25: COEFICIENTE DE REPRESENTATIVIDADE | K25: 5.92 | L25: CAIXA REFERENCIAL
A26: ASSENTAMENTO DE TUBOS E PECAS | B26: ASTU | C26: FORNEC E/OU ASSENT DE TUBO DE FERRO FUNDIDO JUNTA ELASTICA | D26: 0045 | G26: 97160 | H26: ASSENTAMENTO DE TUBO DE FERRO FUNDIDO PARA REDE DE ÁGUA, DN 200 MM, JUNTA ELÁSTICA, INSTALADO EM LOCAL COM NÍVEL BAIXO DE INTERFERÊNCIAS (NÃO INCLUI FORNECIMENTO). AF_05/2024 | I26: M | J26: COEFICIENTE DE REPRESENTATIVIDADE | K26: 7.44 | L26: CAIXA REFERENCIAL
A27: ASSENTAMENTO DE TUBOS E PECAS | B27: ASTU | C27: FORNEC E/OU ASSENT DE TUBO DE FERRO FUNDIDO JUNTA ELASTICA | D27: 0045 | G27: 97161 | H27: ASSENTAMENTO DE TUBO DE FERRO FUNDIDO PARA REDE DE ÁGUA, DN 250 MM, JUNTA ELÁSTICA, INSTALADO EM LOCAL COM NÍVEL BAIXO DE INTERFERÊNCIAS (NÃO INCLUI FORNECIMENTO). AF_05/2024 | I27: M | J27: COEFICIENTE DE REPRESENTATIVIDADE | K27: 8.98 | L27: CAIXA REFERENCIAL
A28: ASSENTAMENTO DE TUBOS E PECAS | B28: ASTU | C28: FORNEC E/OU ASSENT DE TUBO DE FERRO FUNDIDO JUNTA ELASTICA | D28: 0045 | G28: 97162 | H28: ASSENTAMENTO DE TUBO DE FERRO FUNDIDO PARA REDE DE ÁGUA, DN 300 MM, JUNTA ELÁSTICA, INSTALADO EM LOCAL COM NÍVEL BAIXO DE INTERFERÊNCIAS (NÃO INCLUI FORNECIMENTO). AF_05/2024 | I28: M | J28: COEFICIENTE DE REPRESENTATIVIDADE | K28: 10.52 | L28: CAIXA REFERENCIAL
A29: ASSENTAMENTO DE TUBOS E PECAS | B29: ASTU | C29: FORNEC E/OU ASSENT DE TUBO DE FERRO FUNDIDO JUNTA ELASTICA | D29: 0045 | G29: 97163 | H29: ASSENTAMENTO DE TUBO DE FERRO FUNDIDO PARA REDE DE ÁGUA, DN 350 MM, JUNTA ELÁSTICA, INSTALADO EM LOCAL COM NÍVEL BAIXO DE INTERFERÊNCIAS (NÃO INCLUI FORNECIMENTO). AF_05/2024 | I29: M | J29: COEFICIENTE DE REPRESENTATIVIDADE | K29: 12.06 | L29: CAIXA REFERENCIAL
A30: ASSENTAMENTO DE TUBOS E PECAS | B30: ASTU | C30: FORNEC E/OU ASSENT DE TUBO DE FERRO FUNDIDO JUNTA ELASTICA | D30: 0045 | G30: 97164 | H30: ASSENTAMENTO DE TUBO DE FERRO FUNDIDO PARA REDE DE ÁGUA, DN 400 MM, JUNTA ELÁSTICA, INSTALADO EM LOCAL COM NÍVEL BAIXO DE INTERFERÊNCIAS (NÃO INCLUI FORNECIMENTO). AF_05/2024 | I30: M | J30: COEFICIENTE DE REPRESENTATIVIDADE | K30: 13.6 | L30: CAIXA REFERENCIAL
A31: ASSENTAMENTO DE TUBOS E PECAS | B31: ASTU | C31: FORNEC E/OU ASSENT DE TUBO DE FERRO FUNDIDO JUNTA ELASTICA | D31: 0045 | G31: 97165 | H31: ASSENTAMENTO DE TUBO DE FERRO FUNDIDO PARA REDE DE ÁGUA, DN 450 MM, JUNTA ELÁSTICA, INSTALADO EM LOCAL COM NÍVEL BAIXO DE INTERFERÊNCIAS (NÃO INCLUI FORNECIMENTO). AF_05/2024 | I31: M | J31: COEFICIENTE DE REPRESENTATIVIDADE | K31: 15.15 | L31: CAIXA REFERENCIAL
A32: ASSENTAMENTO DE TUBOS E PECAS | B32: ASTU | C32: FORNEC E/OU ASSENT DE TUBO DE FERRO FUNDIDO JUNTA ELASTICA | D32: 0045 | G32: 97166 | H32: ASSENTAMENTO DE TUBO DE FERRO FUNDIDO PARA REDE DE ÁGUA, DN 500 MM, JUNTA ELÁSTICA, INSTALADO EM LOCAL COM NÍVEL BAIXO DE INTERFERÊNCIAS (NÃO INCLUI FORNECIMENTO). AF_05/2024 | I32: M | J32: COEFICIENTE DE REPRESENTATIVIDADE | K32: 18.63 | L32: CAIXA REFERENCIAL
A33: ASSENTAMENTO DE TUBOS E PECAS | B33: ASTU | C33: FORNEC E/OU ASSENT DE TUBO DE FERRO FUNDIDO JUNTA ELASTICA | D33: 0045 | G33: 97167 | H33: ASSENTAMENTO DE TUBO DE FERRO FUNDIDO PARA REDE DE ÁGUA, DN 600 MM, JUNTA ELÁSTICA, INSTALADO EM LOCAL COM NÍVEL BAIXO DE INTERFERÊNCIAS (NÃO INCLUI FORNECIMENTO). AF_05/2024 | I33: M | J33: COEFICIENTE DE REPRESENTATIVIDADE | K33: 22.04 | L33: CAIXA REFERENCIAL
A34: ASSENTAMENTO DE TUBOS E PECAS | B34: ASTU | C34: FORNEC E/OU ASSENT DE TUBO DE FERRO FUNDIDO JUNTA ELASTICA | D34: 0045 | G34: 97168 | H34: ASSENTAMENTO DE TUBO DE FERRO FUNDIDO PARA REDE DE ÁGUA, DN 700 MM, JUNTA ELÁSTICA, INSTALADO EM LOCAL COM NÍVEL BAIXO DE INTERFERÊNCIAS (NÃO INCLUI FORNECIMENTO). AF_05/2024 | I34: M | J34: COEFICIENTE DE REPRESENTATIVIDADE | K34: 25.2 | L34: CAIXA REFERENCIAL
A35: ASSENTAMENTO DE TUBOS E PECAS | B35: ASTU | C35: FORNEC E/OU ASSENT DE TUBO DE FERRO FUNDIDO JUNTA ELASTICA | D35: 0045 | G35: 97169 | H35: ASSENTAMENTO DE TUBO DE FERRO FUNDIDO PARA REDE DE ÁGUA, DN 800 MM, JUNTA ELÁSTICA, INSTALADO EM LOCAL COM NÍVEL BAIXO DE INTERFERÊNCIAS (NÃO INCLUI FORNECIMENTO). AF_05/2024 | I35: M | J35: COEFICIENTE DE REPRESENTATIVIDADE | K35: 28.53 | L35: CAIXA REFERENCIAL
A36: ASSENTAMENTO DE TUBOS E PECAS | B36: ASTU | C36: FORNEC E/OU ASSENT DE TUBO DE FERRO FUNDIDO JUNTA ELASTICA | D36: 0045 | G36: 97170 | H36: ASSENTAMENTO DE TUBO DE FERRO FUNDIDO PARA REDE DE ÁGUA, DN 900 MM, JUNTA ELÁSTICA, INSTALADO EM LOCAL COM NÍVEL BAIXO DE INTERFERÊNCIAS (NÃO INCLUI FORNECIMENTO). AF_05/2024 | I36: M | J36: COEFICIENTE DE REPRESENTATIVIDADE | K36: 31.87 | L36: CAIXA REFERENCIAL
A37: ASSENTAMENTO DE TUBOS E PECAS | B37: ASTU | C37: FORNEC E/OU ASSENT DE TUBO DE FERRO FUNDIDO JUNTA ELASTICA | D37: 0045 | G37: 97171 | H37: ASSENTAMENTO DE TUBO DE FERRO FUNDIDO PARA REDE DE ÁGUA, DN 1000 MM, JUNTA ELÁSTICA, INSTALADO EM LOCAL COM NÍVEL BAIXO DE INTERFERÊNCIAS (NÃO INCLUI FORNECIMENTO). AF_05/2024 | I37: M | J37: COEFICIENTE DE REPRESENTATIVIDADE | K37: 35.23 | L37: CAIXA REFERENCIAL
A38: ASSENTAMENTO DE TUBOS E PECAS | B38: ASTU | C38: FORNEC E/OU ASSENT DE TUBO DE FERRO FUNDIDO JUNTA ELASTICA | D38: 0045 | G38: 97172 | H38: ASSENTAMENTO DE TUBO DE FERRO FUNDIDO PARA REDE DE ÁGUA, DN 1200 MM, JUNTA ELÁSTICA, INSTALADO EM LOCAL COM NÍVEL BAIXO DE INTERFERÊNCIAS (NÃO INCLUI FORNECIMENTO). AF_05/2024 | I38: M | J38: COEFICIENTE DE REPRESENTATIVIDADE | K38: 42.31 | L38: CAIXA REFERENCIAL
A39: ASSENTAMENTO DE TUBOS E PECAS | B39: ASTU | C39: FORNEC E/OU ASSENT DE TUBO DE FERRO FUNDIDO JUNTA ELASTICA | D39: 0045 | G39: 105249 | H39: ASSENTAMENTO DE CONEXÃO 2 ACESSOS ALINHADOS DE FERRO FUNDIDO PARA REDE DE ÁGUA, DN 1200, JUNTA ELÁSTICA, INSTALADO EM LOCAL COM NÍVEL ALTO DE INTERFERÊNCIAS (NÃO INCLUI FORNECIMENTO). AF_05/2024 | I39: UN | J39: COEFICIENTE DE REPRESENTATIVIDADE | K39: 116.55 | L39: CAIXA REFERENCIAL
A40: ASSENTAMENTO DE TUBOS E PECAS | B40: ASTU | C40: FORNEC E/OU ASSENT DE TUBO DE FERRO FUNDIDO JUNTA ELASTICA | D40: 0045 | G40: 105250 | H40: ASSENTAMENTO DE CONEXÃO 2 ACESSOS INCLINADOS DE FERRO FUNDIDO PARA REDE DE ÁGUA, DN 80, JUNTA ELÁSTICA, INSTALADO EM LOCAL COM NÍVEL ALTO DE INTERFERÊNCIAS (NÃO INCLUI FORNECIMENTO). AF_05/2024 | I40: UN | J40: COEFICIENTE DE REPRESENTATIVIDADE | K40: 15.95 | L40: CAIXA REFERENCIAL
A41: ASSENTAMENTO DE TUBOS E PECAS | B41: ASTU | C41: FORNEC E/OU ASSENT DE TUBO DE FERRO FUNDIDO JUNTA ELASTICA | D41: 0045 | G41: 105251 | H41: ASSENTAMENTO DE CONEXÃO 2 ACESSOS INCLINADOS DE FERRO FUNDIDO PARA REDE DE ÁGUA, DN 100, JUNTA ELÁSTICA, INSTALADO EM LOCAL COM NÍVEL ALTO DE INTERFERÊNCIAS (NÃO INCLUI FORNECIMENTO). AF_05/2024 | I41: UN | J41: COEFICIENTE DE REPRESENTATIVIDADE | K41: 18.32 | L41: CAIXA REFERENCIAL
A42: ASSENTAMENTO DE TUBOS E PECAS | B42: ASTU | C42: FORNEC E/OU ASSENT DE TUBO DE FERRO FUNDIDO JUNTA ELASTICA | D42: 0045 | G42: 105252 | H42: ASSENTAMENTO DE CONEXÃO 2 ACESSOS INCLINADOS DE FERRO FUNDIDO PARA REDE DE ÁGUA, DN 150, JUNTA ELÁSTICA, INSTALADO EM LOCAL COM NÍVEL ALTO DE INTERFERÊNCIAS (NÃO INCLUI FORNECIMENTO). AF_05/2024 | I42: UN | J42: COEFICIENTE DE REPRESENTATIVIDADE | K42: 24.11 | L42: CAIXA REFERENCIAL
A43: ASSENTAMENTO DE TUBOS E PECAS | B43: ASTU | C43: FORNEC E/OU ASSENT DE TUBO DE FERRO FUNDIDO JUNTA ELASTICA | D43: 0045 | G43: 105253 | H43: ASSENTAMENTO DE CONEXÃO 2 ACESSOS INCLINADOS DE FERRO FUNDIDO PARA REDE DE ÁGUA, DN 200, JUNTA ELÁSTICA, INSTALADO EM LOCAL COM NÍVEL ALTO DE INTERFERÊNCIAS (NÃO INCLUI FORNECIMENTO). AF_05/2024 | I43: UN | J43: COEFICIENTE DE REPRESENTATIVIDADE | K43: 29.92 | L43: CAIXA REFERENCIAL
A44: ASSENTAMENTO DE TUBOS E PECAS | B44: ASTU | C44: FORNEC E/OU ASSENT DE TUBO DE FERRO FUNDIDO JUNTA ELASTICA | D44: 0045 | G44: 105254 | H44: ASSENTAMENTO DE CONEXÃO 2 ACESSOS INCLINADOS DE FERRO FUNDIDO PARA REDE DE ÁGUA, DN 250, JUNTA ELÁSTICA, INSTALADO EM LOCAL COM NÍVEL ALTO DE INTERFERÊNCIAS (NÃO INCLUI FORNECIMENTO). AF_05/2024 | I44: UN | J44: COEFICIENTE DE REPRESENTATIVIDADE | K44: 35.87 | L44: CAIXA REFERENCIAL
A45: ASSENTAMENTO DE TUBOS E PECAS | B45: ASTU | C45: FORNEC E/OU ASSENT DE TUBO DE FERRO FUNDIDO JUNTA ELASTICA | D45: 0045 | G45: 105255 | H45: ASSENTAMENTO DE CONEXÃO 2 ACESSOS INCLINADOS DE FERRO FUNDIDO PARA REDE DE ÁGUA, DN 300, JUNTA ELÁSTICA, INSTALADO EM LOCAL COM NÍVEL ALTO DE INTERFERÊNCIAS (NÃO INCLUI FORNECIMENTO). AF_05/2024 | I45: UN | J45: COEFICIENTE DE REPRESENTATIVIDADE | K45: 41.82 | L45: CAIXA REFERENCIAL
A46: ASSENTAMENTO DE TUBOS E PECAS | B46: ASTU | C46: FORNEC E/OU ASSENT DE TUBO DE FERRO FUNDIDO JUNTA ELASTICA | D46: 0045 | G46: 105256 | H46: ASSENTAMENTO DE CONEXÃO 2 ACESSOS INCLINADOS DE FERRO FUNDIDO PARA REDE DE ÁGUA, DN 350, JUNTA ELÁSTICA, INSTALADO EM LOCAL COM NÍVEL ALTO DE INTERFERÊNCIAS (NÃO INCLUI FORNECIMENTO). AF_05/2024 | I46: UN | J46: COEFICIENTE DE REPRESENTATIVIDADE | K46: 47.74 | L46: CAIXA REFERENCIAL
A47: ASSENTAMENTO DE TUBOS E PECAS | B47: ASTU | C47: FORNEC E/OU ASSENT DE TUBO DE FERRO FUNDIDO JUNTA ELASTICA | D47: 0045 | G47: 105257 | H47: ASSENTAMENTO DE CONEXÃO 2 ACESSOS INCLINADOS DE FERRO FUNDIDO PARA REDE DE ÁGUA, DN 400, JUNTA ELÁSTICA, INSTALADO EM LOCAL COM NÍVEL ALTO DE INTERFERÊNCIAS (NÃO INCLUI FORNECIMENTO). AF_05/2024 | I47: UN | J47: COEFICIENTE DE REPRESENTATIVIDADE | K47: 53.66 | L47: CAIXA REFERENCIAL
A48: ASSENTAMENTO DE TUBOS E PECAS | B48: ASTU | C48: FORNEC E/OU ASSENT DE TUBO DE FERRO FUNDIDO JUNTA ELASTICA | D48: 0045 | G48: 105258 | H48: ASSENTAMENTO DE CONEXÃO 2 ACESSOS ALINHADOS DE FERRO FUNDIDO PARA REDE DE ÁGUA, DN 400, JUNTA ELÁSTICA, INSTALADO EM LOCAL COM NÍVEL BAIXO DE INTERFERÊNCIAS (NÃO INCLUI FORNECIMENTO). AF_05/2024 | I48: UN | J48: COEFICIENTE DE REPRESENTATIVIDADE | K48: 29.71 | L48: CAIXA REFERENCIAL
A49: ASSENTAMENTO DE TUBOS E PECAS | B49: ASTU | C49: FORNEC E/OU ASSENT DE TUBO DE FERRO FUNDIDO JUNTA ELASTICA | D49: 0045 | G49: 105259 | H49: ASSENTAMENTO DE CONEXÃO 3 ACESSOS DE FERRO FUNDIDO PARA REDE DE ÁGUA, DN 100, JUNTA ELÁSTICA, INSTALADO EM LOCAL COM NÍVEL BAIXO DE INTERFERÊNCIAS (NÃO INCLUI FORNECIMENTO). AF_05/2024 | I49: UN | J49: COEFICIENTE DE REPRESENTATIVIDADE | K49: 19.24 | L49: CAIXA REFERENCIAL
A50: ASSENTAMENTO DE TUBOS E PECAS | B50: ASTU | C50: FORNEC E/OU ASSENT DE TUBO DE FERRO FUNDIDO JUNTA ELASTICA | D50: 0045 | G50: 105261 | H50: ASSENTAMENTO DE CONEXÃO 2 ACESSOS ALINHADOS DE FERRO FUNDIDO PARA REDE DE ÁGUA, DN 450, JUNTA ELÁSTICA, INSTALADO EM LOCAL COM NÍVEL BAIXO DE INTERFERÊNCIAS (NÃO INCLUI FORNECIMENTO). AF_05/2024 | I50: UN | J50: COEFICIENTE DE REPRESENTATIVIDADE | K50: 33.22 | L50: CAIXA REFERENCIAL
A51: ASSENTAMENTO DE TUBOS E PECAS | B51: ASTU | C51: FORNEC E/OU ASSENT DE TUBO DE FERRO FUNDIDO JUNTA ELASTICA | D51: 0045 | G51: 105262 | H51: ASSENTAMENTO DE CONEXÃO 2 ACESSOS ALINHADOS DE FERRO FUNDIDO PARA REDE DE ÁGUA, DN 500, JUNTA ELÁSTICA, INSTALADO EM LOCAL COM NÍVEL BAIXO DE INTERFERÊNCIAS (NÃO INCLUI FORNECIMENTO). AF_05/2024 | I51: UN | J51: COEFICIENTE DE REPRESENTATIVIDADE | K51: 40.66 | L51: CAIXA REFERENCIAL
A52: ASSENTAMENTO DE TUBOS E PECAS | B52: ASTU | C52: FORNEC E/OU ASSENT DE TUBO DE FERRO FUNDIDO JUNTA ELASTICA | D52: 0045 | G52: 105263 | H52: ASSENTAMENTO DE CONEXÃO 2 ACESSOS ALINHADOS DE FERRO FUNDIDO PARA REDE DE ÁGUA, DN 600, JUNTA ELÁSTICA, INSTALADO EM LOCAL COM NÍVEL BAIXO DE INTERFERÊNCIAS (NÃO INCLUI FORNECIMENTO). AF_05/2024 | I52: UN | J52: COEFICIENTE DE REPRESENTATIVIDADE | K52: 48.25 | L52: CAIXA REFERENCIAL
A53: ASSENTAMENTO DE TUBOS E PECAS | B53: ASTU | C53: FORNEC E/OU ASSENT DE TUBO DE FERRO FUNDIDO JUNTA ELASTICA | D53: 0045 | G53: 105264 | H53: ASSENTAMENTO DE CONEXÃO 2 ACESSOS ALINHADOS DE FERRO FUNDIDO PARA REDE DE ÁGUA, DN 700, JUNTA ELÁSTICA, INSTALADO EM LOCAL COM NÍVEL BAIXO DE INTERFERÊNCIAS (NÃO INCLUI FORNECIMENTO). AF_05/2024 | I53: UN | J53: COEFICIENTE DE REPRESENTATIVIDADE | K53: 55.2 | L53: CAIXA REFERENCIAL
A54: ASSENTAMENTO DE TUBOS E PECAS | B54: ASTU | C54: FORNEC E/OU ASSENT DE TUBO DE FERRO FUNDIDO JUNTA ELASTICA | D54: 0045 | G54: 105265 | H54: ASSENTAMENTO DE CONEXÃO 2 ACESSOS ALINHADOS DE FERRO FUNDIDO PARA REDE DE ÁGUA, DN 800, JUNTA ELÁSTICA, INSTALADO EM LOCAL COM NÍVEL BAIXO DE INTERFERÊNCIAS (NÃO INCLUI FORNECIMENTO). AF_05/2024 | I54: UN | J54: COEFICIENTE DE REPRESENTATIVIDADE | K54: 62.37 | L54: CAIXA REFERENCIAL
A55: ASSENTAMENTO DE TUBOS E PECAS | B55: ASTU | C55: FORNEC E/OU ASSENT DE TUBO DE FERRO FUNDIDO JUNTA ELASTICA | D55: 0045 | G55: 105266 | H55: ASSENTAMENTO DE CONEXÃO 2 ACESSOS ALINHADOS DE FERRO FUNDIDO PARA REDE DE ÁGUA, DN 900, JUNTA ELÁSTICA, INSTALADO EM LOCAL COM NÍVEL BAIXO DE INTERFERÊNCIAS (NÃO INCLUI FORNECIMENTO). AF_05/2024 | I55: UN | J55: COEFICIENTE DE REPRESENTATIVIDADE | K55: 69.74 | L55: CAIXA REFERENCIAL
A56: ASSENTAMENTO DE TUBOS E PECAS | B56: ASTU | C56: FORNEC E/OU ASSENT DE TUBO DE FERRO FUNDIDO JUNTA ELASTICA | D56: 0045 | G56: 105267 | H56: ASSENTAMENTO DE CONEXÃO 2 ACESSOS ALINHADOS DE FERRO FUNDIDO PARA REDE DE ÁGUA, DN 1000, JUNTA ELÁSTICA, INSTALADO EM LOCAL COM NÍVEL BAIXO DE INTERFERÊNCIAS (NÃO INCLUI FORNECIMENTO). AF_05/2024 | I56: UN | J56: COEFICIENTE DE REPRESENTATIVIDADE | K56: 77.2 | L56: CAIXA REFERENCIAL
A57: ASSENTAMENTO DE TUBOS E PECAS | B57: ASTU | C57: FORNEC E/OU ASSENT DE TUBO DE FERRO FUNDIDO JUNTA ELASTICA | D57: 0045 | G57: 105268 | H57: ASSENTAMENTO DE CONEXÃO 2 ACESSOS ALINHADOS DE FERRO FUNDIDO PARA REDE DE ÁGUA, DN 1200, JUNTA ELÁSTICA, INSTALADO EM LOCAL COM NÍVEL BAIXO DE INTERFERÊNCIAS (NÃO INCLUI FORNECIMENTO). AF_05/2024 | I57: UN | J57: COEFICIENTE DE REPRESENTATIVIDADE | K57: 94.7 | L57: CAIXA REFERENCIAL
A58: ASSENTAMENTO DE TUBOS E PECAS | B58: ASTU | C58: FORNEC E/OU ASSENT DE TUBO DE FERRO FUNDIDO JUNTA ELASTICA | D58: 0045 | G58: 105269 | H58: ASSENTAMENTO DE CONEXÃO 2 ACESSOS INCLINADOS DE FERRO FUNDIDO PARA REDE DE ÁGUA, DN 80, JUNTA ELÁSTICA, INSTALADO EM LOCAL COM NÍVEL BAIXO DE INTERFERÊNCIAS (NÃO INCLUI FORNECIMENTO). AF_05/2024 | I58: UN | J58: COEFICIENTE DE REPRESENTATIVIDADE | K58: 12.07 | L58: CAIXA REFERENCIAL
A59: ASSENTAMENTO DE TUBOS E PECAS | B59: ASTU | C59: FORNEC E/OU ASSENT DE TUBO DE FERRO FUNDIDO JUNTA ELASTICA | D59: 0045 | G59: 105270 | H59: ASSENTAMENTO DE CONEXÃO 2 ACESSOS INCLINADOS DE FERRO FUNDIDO PARA REDE DE ÁGUA, DN 450, JUNTA ELÁSTICA, INSTALADO EM LOCAL COM NÍVEL ALTO DE INTERFERÊNCIAS (NÃO INCLUI FORNECIMENTO). AF_05/2024 | I59: UN | J59: COEFICIENTE DE REPRESENTATIVIDADE | K59: 59.72 | L59: CAIXA REFERENCIAL
A60: ASSENTAMENTO DE TUBOS E PECAS | B60: ASTU | C60: FORNEC E/OU ASSENT DE TUBO DE FERRO FUNDIDO JUNTA ELASTICA | D60: 0045 | G60: 105271 | H60: ASSENTAMENTO DE CONEXÃO 2 ACESSOS INCLINADOS DE FERRO FUNDIDO PARA REDE DE ÁGUA, DN 500, JUNTA ELÁSTICA, INSTALADO EM LOCAL COM NÍVEL ALTO DE INTERFERÊNCIAS (NÃO INCLUI FORNECIMENTO). AF_05/2024 | I60: UN | J60: COEFICIENTE DE REPRESENTATIVIDADE | K60: 74.53 | L60: CAIXA REFERENCIAL
A61: ASSENTAMENTO DE TUBOS E PECAS | B61: ASTU | C61: FORNEC E/OU ASSENT DE TUBO DE FERRO FUNDIDO JUNTA ELASTICA | D61: 0045 | G61: 105272 | H61: ASSENTAMENTO DE CONEXÃO 2 ACESSOS INCLINADOS DE FERRO FUNDIDO PARA REDE DE ÁGUA, DN 600, JUNTA ELÁSTICA, INSTALADO EM LOCAL COM NÍVEL ALTO DE INTERFERÊNCIAS (NÃO INCLUI FORNECIMENTO). AF_05/2024 | I61: UN | J61: COEFICIENTE DE REPRESENTATIVIDADE | K61: 87.95 | L61: CAIXA REFERENCIAL
A62: ASSENTAMENTO DE TUBOS E PECAS | B62: ASTU | C62: FORNEC E/OU ASSENT DE TUBO DE FERRO FUNDIDO JUNTA ELASTICA | D62: 0045 | G62: 105273 | H62: ASSENTAMENTO DE CONEXÃO 2 ACESSOS INCLINADOS DE FERRO FUNDIDO PARA REDE DE ÁGUA, DN 700, JUNTA ELÁSTICA, INSTALADO EM LOCAL COM NÍVEL ALTO DE INTERFERÊNCIAS (NÃO INCLUI FORNECIMENTO). AF_05/2024 | I62: UN | J62: COEFICIENTE DE REPRESENTATIVIDADE | K62: 100.68 | L62: CAIXA REFERENCIAL
A63: ASSENTAMENTO DE TUBOS E PECAS | B63: ASTU | C63: FORNEC E/OU ASSENT DE TUBO DE FERRO FUNDIDO JUNTA ELASTICA | D63: 0045 | G63: 105274 | H63: ASSENTAMENTO DE CONEXÃO 2 ACESSOS INCLINADOS DE FERRO FUNDIDO PARA REDE DE ÁGUA, DN 800, JUNTA ELÁSTICA, INSTALADO EM LOCAL COM NÍVEL ALTO DE INTERFERÊNCIAS (NÃO INCLUI FORNECIMENTO). AF_05/2024 | I63: UN | J63: COEFICIENTE DE REPRESENTATIVIDADE | K63: 113.69 | L63: CAIXA REFERENCIAL
A64: ASSENTAMENTO DE TUBOS E PECAS | B64: ASTU | C64: FORNEC E/OU ASSENT DE TUBO DE FERRO FUNDIDO JUNTA ELASTICA | D64: 0045 | G64: 105275 | H64: ASSENTAMENTO DE CONEXÃO 2 ACESSOS INCLINADOS DE FERRO FUNDIDO PARA REDE DE ÁGUA, DN 900, JUNTA ELÁSTICA, INSTALADO EM LOCAL COM NÍVEL ALTO DE INTERFERÊNCIAS (NÃO INCLUI FORNECIMENTO). AF_05/2024 | I64: UN | J64: COEFICIENTE DE REPRESENTATIVIDADE | K64: 126.85 | L64: CAIXA REFERENCIAL
A65: ASSENTAMENTO DE TUBOS E PECAS | B65: ASTU | C65: FORNEC E/OU ASSENT DE TUBO DE FERRO FUNDIDO JUNTA ELASTICA | D65: 0045 | G65: 105276 | H65: ASSENTAMENTO DE CONEXÃO 2 ACESSOS INCLINADOS DE FERRO FUNDIDO PARA REDE DE ÁGUA, DN 1000, JUNTA ELÁSTICA, INSTALADO EM LOCAL COM NÍVEL ALTO DE INTERFERÊNCIAS (NÃO INCLUI FORNECIMENTO). AF_05/2024 | I65: UN | J65: COEFICIENTE DE REPRESENTATIVIDADE | K65: 140.13 | L65: CAIXA REFERENCIAL
A66: ASSENTAMENTO DE TUBOS E PECAS | B66: ASTU | C66: FORNEC E/OU ASSENT DE TUBO DE FERRO FUNDIDO JUNTA ELASTICA | D66: 0045 | G66: 105277 | H66: ASSENTAMENTO DE CONEXÃO 2 ACESSOS INCLINADOS DE FERRO FUNDIDO PARA REDE DE ÁGUA, DN 1200, JUNTA ELÁSTICA, INSTALADO EM LOCAL COM NÍVEL ALTO DE INTERFERÊNCIAS (NÃO INCLUI FORNECIMENTO). AF_05/2024 | I66: UN | J66: COEFICIENTE DE REPRESENTATIVIDADE | K66: 169.24 | L66: CAIXA REFERENCIAL
A67: ASSENTAMENTO DE TUBOS E PECAS | B67: ASTU | C67: FORNEC E/OU ASSENT DE TUBO DE FERRO FUNDIDO JUNTA ELASTICA | D67: 0045 | G67: 105278 | H67: ASSENTAMENTO DE CONEXÃO 3 ACESSOS DE FERRO FUNDIDO PARA REDE DE ÁGUA, DN 80, JUNTA ELÁSTICA, INSTALADO EM LOCAL COM NÍVEL ALTO DE INTERFERÊNCIAS (NÃO INCLUI FORNECIMENTO). AF_05/2024 | I67: UN | J67: COEFICIENTE DE REPRESENTATIVIDADE | K67: 21.74 | L67: CAIXA REFERENCIAL
A68: ASSENTAMENTO DE TUBOS E PECAS | B68: ASTU | C68: FORNEC E/OU ASSENT DE TUBO DE FERRO FUNDIDO JUNTA ELASTICA | D68: 0045 | G68: 105279 | H68: ASSENTAMENTO DE CONEXÃO 3 ACESSOS DE FERRO FUNDIDO PARA REDE DE ÁGUA, DN 100, JUNTA ELÁSTICA, INSTALADO EM LOCAL COM NÍVEL ALTO DE INTERFERÊNCIAS (NÃO INCLUI FORNECIMENTO). AF_05/2024 | I68: UN | J68: COEFICIENTE DE REPRESENTATIVIDADE | K68: 24.95 | L68: CAIXA REFERENCIAL
A69: ASSENTAMENTO DE TUBOS E PECAS | B69: ASTU | C69: FORNEC E/OU ASSENT DE TUBO DE FERRO FUNDIDO JUNTA ELASTICA | D69: 0045 | G69: 105280 | H69: ASSENTAMENTO DE CONEXÃO 3 ACESSOS DE FERRO FUNDIDO PARA REDE DE ÁGUA, DN 150, JUNTA ELÁSTICA, INSTALADO EM LOCAL COM NÍVEL ALTO DE INTERFERÊNCIAS (NÃO INCLUI FORNECIMENTO). AF_05/2024 | I69: UN | J69: COEFICIENTE DE REPRESENTATIVIDADE | K69: 32.87 | L69: CAIXA REFERENCIAL
A70: ASSENTAMENTO DE TUBOS E PECAS | B70: ASTU | C70: FORNEC E/OU ASSENT DE TUBO DE FERRO FUNDIDO JUNTA ELASTICA | D70: 0045 | G70: 105281 | H70: ASSENTAMENTO DE CONEXÃO 3 ACESSOS DE FERRO FUNDIDO PARA REDE DE ÁGUA, DN 200, JUNTA ELÁSTICA, INSTALADO EM LOCAL COM NÍVEL ALTO DE INTERFERÊNCIAS (NÃO INCLUI FORNECIMENTO). AF_05/2024 | I70: UN | J70: COEFICIENTE DE REPRESENTATIVIDADE | K70: 40.76 | L70: CAIXA REFERENCIAL
A71: ASSENTAMENTO DE TUBOS E PECAS | B71: ASTU | C71: FORNEC E/OU ASSENT DE TUBO DE FERRO FUNDIDO JUNTA ELASTICA | D71: 0045 | G71: 105282 | H71: ASSENTAMENTO DE CONEXÃO 2 ACESSOS INCLINADOS DE FERRO FUNDIDO PARA REDE DE ÁGUA, DN 100, JUNTA ELÁSTICA, INSTALADO EM LOCAL COM NÍVEL BAIXO DE INTERFERÊNCIAS (NÃO INCLUI FORNECIMENTO). AF_05/2024 | I71: UN | J71: COEFICIENTE DE REPRESENTATIVIDADE | K71: 14.02 | L71: CAIXA REFERENCIAL
A72: ASSENTAMENTO DE TUBOS E PECAS | B72: ASTU | C72: FORNEC E/OU ASSENT DE TUBO DE FERRO FUNDIDO JUNTA ELASTICA | D72: 0045 | G72: 105283 | H72: ASSENTAMENTO DE CONEXÃO 3 ACESSOS DE FERRO FUNDIDO PARA REDE DE ÁGUA, DN 150, JUNTA ELÁSTICA, INSTALADO EM LOCAL COM NÍVEL BAIXO DE INTERFERÊNCIAS (NÃO INCLUI FORNECIMENTO). AF_05/2024 | I72: UN | J72: COEFICIENTE DE REPRESENTATIVIDADE | K72: 25.77 | L72: CAIXA REFERENCIAL
A73: ASSENTAMENTO DE TUBOS E PECAS | B73: ASTU | C73: FORNEC E/OU ASSENT DE TUBO DE FERRO FUNDIDO JUNTA ELASTICA | D73: 0045 | G73: 105284 | H73: ASSENTAMENTO DE CONEXÃO 3 ACESSOS DE FERRO FUNDIDO PARA REDE DE ÁGUA, DN 250, JUNTA ELÁSTICA, INSTALADO EM LOCAL COM NÍVEL ALTO DE INTERFERÊNCIAS (NÃO INCLUI FORNECIMENTO). AF_05/2024 | I73: UN | J73: COEFICIENTE DE REPRESENTATIVIDADE | K73: 48.95 | L73: CAIXA REFERENCIAL
A74: ASSENTAMENTO DE TUBOS E PECAS | B74: ASTU | C74: FORNEC E/OU ASSENT DE TUBO DE FERRO FUNDIDO JUNTA ELASTICA | D74: 0045 | G74: 105297 | H74: ASSENTAMENTO DE CONEXÃO 2 ACESSOS ALINHADOS DE FERRO FUNDIDO PARA REDE DE ÁGUA, DN 80, JUNTA ELÁSTICA, INSTALADO EM LOCAL COM NÍVEL ALTO DE INTERFERÊNCIAS (NÃO INCLUI FORNECIMENTO). AF_05/2024 | I74: UN | J74: COEFICIENTE DE REPRESENTATIVIDADE | K74: 10.86 | L74: CAIXA REFERENCIAL
A75: ASSENTAMENTO DE TUBOS E PECAS | B75: ASTU | C75: FORNEC E/OU ASSENT DE TUBO DE FERRO FUNDIDO JUNTA ELASTICA | D75: 0045 | G75: 105298 | H75: ASSENTAMENTO DE CONEXÃO 2 ACESSOS INCLINADOS DE FERRO FUNDIDO PARA REDE DE ÁGUA, DN 150, JUNTA ELÁSTICA, INSTALADO EM LOCAL COM NÍVEL BAIXO DE INTERFERÊNCIAS (NÃO INCLUI FORNECIMENTO). AF_05/2024 | I75: UN | J75: COEFICIENTE DE REPRESENTATIVIDADE | K75: 18.8 | L75: CAIXA REFERENCIAL
A76: ASSENTAMENTO DE TUBOS E PECAS | B76: ASTU | C76: FORNEC E/OU ASSENT DE TUBO DE FERRO FUNDIDO JUNTA ELASTICA | D76: 0045 | G76: 105299 | H76: ASSENTAMENTO DE CONEXÃO 2 ACESSOS INCLINADOS DE FERRO FUNDIDO PARA REDE DE ÁGUA, DN 200, JUNTA ELÁSTICA, INSTALADO EM LOCAL COM NÍVEL BAIXO DE INTERFERÊNCIAS (NÃO INCLUI FORNECIMENTO). AF_05/2024 | I76: UN | J76: COEFICIENTE DE REPRESENTATIVIDADE | K76: 23.56 | L76: CAIXA REFERENCIAL
A77: ASSENTAMENTO DE TUBOS E PECAS | B77: ASTU | C77: FORNEC E/OU ASSENT DE TUBO DE FERRO FUNDIDO JUNTA ELASTICA | D77: 0045 | G77: 105300 | H77: ASSENTAMENTO DE CONEXÃO 2 ACESSOS INCLINADOS DE FERRO FUNDIDO PARA REDE DE ÁGUA, DN 250, JUNTA ELÁSTICA, INSTALADO EM LOCAL COM NÍVEL BAIXO DE INTERFERÊNCIAS (NÃO INCLUI FORNECIMENTO). AF_05/2024 | I77: UN | J77: COEFICIENTE DE REPRESENTATIVIDADE | K77: 28.49 | L77: CAIXA REFERENCIAL
A78: ASSENTAMENTO DE TUBOS E PECAS | B78: ASTU | C78: FORNEC E/OU ASSENT DE TUBO DE FERRO FUNDIDO JUNTA ELASTICA | D78: 0045 | G78: 105301 | H78: ASSENTAMENTO DE CONEXÃO 2 ACESSOS INCLINADOS DE FERRO FUNDIDO PARA REDE DE ÁGUA, DN 300, JUNTA ELÁSTICA, INSTALADO EM LOCAL COM NÍVEL BAIXO DE INTERFERÊNCIAS (NÃO INCLUI FORNECIMENTO). AF_05/2024 | I78: UN | J78: COEFICIENTE DE REPRESENTATIVIDADE | K78: 33.4 | L78: CAIXA REFERENCIAL
A79: ASSENTAMENTO DE TUBOS E PECAS | B79: ASTU | C79: FORNEC E/OU ASSENT DE TUBO DE FERRO FUNDIDO JUNTA ELASTICA | D79: 0045 | G79: 105302 | H79: ASSENTAMENTO DE CONEXÃO 2 ACESSOS INCLINADOS DE FERRO FUNDIDO PARA REDE DE ÁGUA, DN 350, JUNTA ELÁSTICA, INSTALADO EM LOCAL COM NÍVEL BAIXO DE INTERFERÊNCIAS (NÃO INCLUI FORNECIMENTO). AF_05/2024 | I79: UN | J79: COEFICIENTE DE REPRESENTATIVIDADE | K79: 38.3 | L79: CAIXA REFERENCIAL
A80: ASSENTAMENTO DE TUBOS E PECAS | B80: ASTU | C80: FORNEC E/OU ASSENT DE TUBO DE FERRO FUNDIDO JUNTA ELASTICA | D80: 0045 | G80: 105303 | H80: ASSENTAMENTO DE CONEXÃO 2 ACESSOS INCLINADOS DE FERRO FUNDIDO PARA REDE DE ÁGUA, DN 400, JUNTA ELÁSTICA, INSTALADO EM LOCAL COM NÍVEL BAIXO DE INTERFERÊNCIAS (NÃO INCLUI FORNECIMENTO). AF_05/2024 | I80: UN | J80: COEFICIENTE DE REPRESENTATIVIDADE | K80: 43.2 | L80: CAIXA REFERENCIAL
A81: ASSENTAMENTO DE TUBOS E PECAS | B81: ASTU | C81: FORNEC E/OU ASSENT DE TUBO DE FERRO FUNDIDO JUNTA ELASTICA | D81: 0045 | G81: 105304 | H81: ASSENTAMENTO DE CONEXÃO 2 ACESSOS INCLINADOS DE FERRO FUNDIDO PARA REDE DE ÁGUA, DN 450, JUNTA ELÁSTICA, INSTALADO EM LOCAL COM NÍVEL BAIXO DE INTERFERÊNCIAS (NÃO INCLUI FORNECIMENTO). AF_05/2024 | I81: UN | J81: COEFICIENTE DE REPRESENTATIVIDADE | K81: 48.22 | L81: CAIXA REFERENCIAL
A82: ASSENTAMENTO DE TUBOS E PECAS | B82: ASTU | C82: FORNEC E/OU ASSENT DE TUBO DE FERRO FUNDIDO JUNTA ELASTICA | D82: 0045 | G82: 105305 | H82: ASSENTAMENTO DE CONEXÃO 2 ACESSOS INCLINADOS DE FERRO FUNDIDO PARA REDE DE ÁGUA, DN 500, JUNTA ELÁSTICA, INSTALADO EM LOCAL COM NÍVEL BAIXO DE INTERFERÊNCIAS (NÃO INCLUI FORNECIMENTO). AF_05/2024 | I82: UN | J82: COEFICIENTE DE REPRESENTATIVIDADE | K82: 59.17 | L82: CAIXA REFERENCIAL
A83: ASSENTAMENTO DE TUBOS E PECAS | B83: ASTU | C83: FORNEC E/OU ASSENT DE TUBO DE FERRO FUNDIDO JUNTA ELASTICA | D83: 0045 | G83: 105306 | H83: ASSENTAMENTO DE CONEXÃO 2 ACESSOS INCLINADOS DE FERRO FUNDIDO PARA REDE DE ÁGUA, DN 600, JUNTA ELÁSTICA, INSTALADO EM LOCAL COM NÍVEL BAIXO DE INTERFERÊNCIAS (NÃO INCLUI FORNECIMENTO). AF_05/2024 | I83: UN | J83: COEFICIENTE DE REPRESENTATIVIDADE | K83: 70.1 | L83: CAIXA REFERENCIAL
A84: ASSENTAMENTO DE TUBOS E PECAS | B84: ASTU | C84: FORNEC E/OU ASSENT DE TUBO DE FERRO FUNDIDO JUNTA ELASTICA | D84: 0045 | G84: 105307 | H84: ASSENTAMENTO DE CONEXÃO 2 ACESSOS INCLINADOS DE FERRO FUNDIDO PARA REDE DE ÁGUA, DN 700, JUNTA ELÁSTICA, INSTALADO EM LOCAL COM NÍVEL BAIXO DE INTERFERÊNCIAS (NÃO INCLUI FORNECIMENTO). AF_05/2024 | I84: UN | J84: COEFICIENTE DE REPRESENTATIVIDADE | K84: 80.34 | L84: CAIXA REFERENCIAL
A85: ASSENTAMENTO DE TUBOS E PECAS | B85: ASTU | C85: FORNEC E/OU ASSENT DE TUBO DE FERRO FUNDIDO JUNTA ELASTICA | D85: 0045 | G85: 105317 | H85: ASSENTAMENTO DE CONEXÃO 2 ACESSOS ALINHADOS DE FERRO FUNDIDO PARA REDE DE ÁGUA, DN 300, JUNTA ELÁSTICA, INSTALADO EM LOCAL COM NÍVEL BAIXO DE INTERFERÊNCIAS (NÃO INCLUI FORNECIMENTO). AF_05/2024 | I85: UN | J85: COEFICIENTE DE REPRESENTATIVIDADE | K85: 22.94 | L85: CAIXA REFERENCIAL
A86: ASSENTAMENTO DE TUBOS E PECAS | B86: ASTU | C86: FORNEC E/OU ASSENT DE TUBO DE FERRO FUNDIDO JUNTA ELASTICA | D86: 0045 | G86: 105318 | H86: ASSENTAMENTO DE CONEXÃO 2 ACESSOS ALINHADOS DE FERRO FUNDIDO PARA REDE DE ÁGUA, DN 350, JUNTA ELÁSTICA, INSTALADO EM LOCAL COM NÍVEL BAIXO DE INTERFERÊNCIAS (NÃO INCLUI FORNECIMENTO). AF_05/2024 | I86: UN | J86: COEFICIENTE DE REPRESENTATIVIDADE | K86: 26.32 | L86: CAIXA REFERENCIAL
A87: ASSENTAMENTO DE TUBOS E PECAS | B87: ASTU | C87: FORNEC E/OU ASSENT DE TUBO DE FERRO FUNDIDO JUNTA ELASTICA | D87: 0045 | G87: 105319 | H87: ASSENTAMENTO DE CONEXÃO 3 ACESSOS DE FERRO FUNDIDO PARA REDE DE ÁGUA, DN 200, JUNTA ELÁSTICA, INSTALADO EM LOCAL COM NÍVEL BAIXO DE INTERFERÊNCIAS (NÃO INCLUI FORNECIMENTO). AF_05/2024 | I87: UN | J87: COEFICIENTE DE REPRESENTATIVIDADE | K87: 32.29 | L87: CAIXA REFERENCIAL
A88: ASSENTAMENTO DE TUBOS E PECAS | B88: ASTU | C88: FORNEC E/OU ASSENT DE TUBO DE FERRO FUNDIDO JUNTA ELASTICA | D88: 0045 | G88: 105320 | H88: ASSENTAMENTO DE CONEXÃO 3 ACESSOS DE FERRO FUNDIDO PARA REDE DE ÁGUA, DN 250, JUNTA ELÁSTICA, INSTALADO EM LOCAL COM NÍVEL BAIXO DE INTERFERÊNCIAS (NÃO INCLUI FORNECIMENTO). AF_05/2024 | I88: UN | J88: COEFICIENTE DE REPRESENTATIVIDADE | K88: 39.11 | L88: CAIXA REFERENCIAL
A89: ASSENTAMENTO DE TUBOS E PECAS | B89: ASTU | C89: FORNEC E/OU ASSENT DE TUBO DE FERRO FUNDIDO JUNTA ELASTICA | D89: 0045 | G89: 105321 | H89: ASSENTAMENTO DE CONEXÃO 3 ACESSOS DE FERRO FUNDIDO PARA REDE DE ÁGUA, DN 300, JUNTA ELÁSTICA, INSTALADO EM LOCAL COM NÍVEL BAIXO DE INTERFERÊNCIAS (NÃO INCLUI FORNECIMENTO). AF_05/2024 | I89: UN | J89: COEFICIENTE DE REPRESENTATIVIDADE | K89: 45.91 | L89: CAIXA REFERENCIAL
A90: ASSENTAMENTO DE TUBOS E PECAS | B90: ASTU | C90: FORNEC E/OU ASSENT DE TUBO DE FERRO FUNDIDO JUNTA ELASTICA | D90: 0045 | G90: 105322 | H90: ASSENTAMENTO DE CONEXÃO 3 ACESSOS DE FERRO FUNDIDO PARA REDE DE ÁGUA, DN 350, JUNTA ELÁSTICA, INSTALADO EM LOCAL COM NÍVEL BAIXO DE INTERFERÊNCIAS (NÃO INCLUI FORNECIMENTO). AF_05/2024 | I90: UN | J90: COEFICIENTE DE REPRESENTATIVIDADE | K90: 52.69 | L90: CAIXA REFERENCIAL
A91: ASSENTAMENTO DE TUBOS E PECAS | B91: ASTU | C91: FORNEC E/OU ASSENT DE TUBO DE FERRO FUNDIDO JUNTA ELASTICA | D91: 0045 | G91: 105323 | H91: ASSENTAMENTO DE CONEXÃO 3 ACESSOS DE FERRO FUNDIDO PARA REDE DE ÁGUA, DN 400, JUNTA ELÁSTICA, INSTALADO EM LOCAL COM NÍVEL BAIXO DE INTERFERÊNCIAS (NÃO INCLUI FORNECIMENTO). AF_05/2024 | I91: UN | J91: COEFICIENTE DE REPRESENTATIVIDADE | K91: 59.46 | L91: CAIXA REFERENCIAL
A92: ASSENTAMENTO DE TUBOS E PECAS | B92: ASTU | C92: FORNEC E/OU ASSENT DE TUBO DE FERRO FUNDIDO JUNTA ELASTICA | D92: 0045 | G92: 105324 | H92: ASSENTAMENTO DE CONEXÃO 3 ACESSOS DE FERRO FUNDIDO PARA REDE DE ÁGUA, DN 450, JUNTA ELÁSTICA, INSTALADO EM LOCAL COM NÍVEL BAIXO DE INTERFERÊNCIAS (NÃO INCLUI FORNECIMENTO). AF_05/2024 | I92: UN | J92: COEFICIENTE DE REPRESENTATIVIDADE | K92: 66.5 | L92: CAIXA REFERENCIAL
A93: ASSENTAMENTO DE TUBOS E PECAS | B93: ASTU | C93: FORNEC E/OU ASSENT DE TUBO DE FERRO FUNDIDO JUNTA ELASTICA | D93: 0045 | G93: 105325 | H93: ASSENTAMENTO DE CONEXÃO 3 ACESSOS DE FERRO FUNDIDO PARA REDE DE ÁGUA, DN 500, JUNTA ELÁSTICA, INSTALADO EM LOCAL COM NÍVEL BAIXO DE INTERFERÊNCIAS (NÃO INCLUI FORNECIMENTO). AF_05/2024 | I93: UN | J93: COEFICIENTE DE REPRESENTATIVIDADE | K93: 81.33 | L93: CAIXA REFERENCIAL
A94: ASSENTAMENTO DE TUBOS E PECAS | B94: ASTU | C94: FORNEC E/OU ASSENT DE TUBO DE FERRO FUNDIDO JUNTA ELASTICA | D94: 0045 | G94: 105326 | H94: ASSENTAMENTO DE CONEXÃO 3 ACESSOS DE FERRO FUNDIDO PARA REDE DE ÁGUA, DN 600, JUNTA ELÁSTICA, INSTALADO EM LOCAL COM NÍVEL BAIXO DE INTERFERÊNCIAS (NÃO INCLUI FORNECIMENTO). AF_05/2024 | I94: UN | J94: COEFICIENTE DE REPRESENTATIVIDADE | K94: 96.54 | L94: CAIXA REFERENCIAL
A95: ASSENTAMENTO DE TUBOS E PECAS | B95: ASTU | C95: FORNEC E/OU ASSENT DE TUBO DE FERRO FUNDIDO JUNTA ELASTICA | D95: 0045 | G95: 105340 | H95: ASSENTAMENTO DE CONEXÃO 2 ACESSOS INCLINADOS DE FERRO FUNDIDO PARA REDE DE ÁGUA, DN 800, JUNTA ELÁSTICA, INSTALADO EM LOCAL COM NÍVEL BAIXO DE INTERFERÊNCIAS (NÃO INCLUI FORNECIMENTO). AF_05/2024 | I95: UN | J95: COEFICIENTE DE REPRESENTATIVIDADE | K95: 90.86 | L95: CAIXA REFERENCIAL
A96: ASSENTAMENTO DE TUBOS E PECAS | B96: ASTU | C96: FORNEC E/OU ASSENT DE TUBO DE FERRO FUNDIDO JUNTA ELASTICA | D96: 0045 | G96: 105341 | H96: ASSENTAMENTO DE CONEXÃO 2 ACESSOS INCLINADOS DE FERRO FUNDIDO PARA REDE DE ÁGUA, DN 1000, JUNTA ELÁSTICA, INSTALADO EM LOCAL COM NÍVEL BAIXO DE INTERFERÊNCIAS (NÃO INCLUI FORNECIMENTO). AF_05/2024 | I96: UN | J96: COEFICIENTE DE REPRESENTATIVIDADE | K96: 112.33 | L96: CAIXA REFERENCIAL
A97: ASSENTAMENTO DE TUBOS E PECAS | B97: ASTU | C97: FORNEC E/OU ASSENT DE TUBO DE FERRO FUNDIDO JUNTA ELASTICA | D97: 0045 | G97: 105342 | H97: ASSENTAMENTO DE CONEXÃO 2 ACESSOS INCLINADOS DE FERRO FUNDIDO PARA REDE DE ÁGUA, DN 1200, JUNTA ELÁSTICA, INSTALADO EM LOCAL COM NÍVEL BAIXO DE INTERFERÊNCIAS (NÃO INCLUI FORNECIMENTO). AF_05/2024 | I97: UN | J97: COEFICIENTE DE REPRESENTATIVIDADE | K97: 136.48 | L97: CAIXA REFERENCIAL
A98: ASSENTAMENTO DE TUBOS E PECAS | B98: ASTU | C98: FORNEC E/OU ASSENT DE TUBO DE FERRO FUNDIDO JUNTA ELASTICA | D98: 0045 | G98: 105343 | H98: ASSENTAMENTO DE CONEXÃO 3 ACESSOS DE FERRO FUNDIDO PARA REDE DE ÁGUA, DN 80, JUNTA ELÁSTICA, INSTALADO EM LOCAL COM NÍVEL BAIXO DE INTERFERÊNCIAS (NÃO INCLUI FORNECIMENTO). AF_05/2024 | I98: UN | J98: COEFICIENTE DE REPRESENTATIVIDADE | K98: 16.56 | L98: CAIXA REFERENCIAL
A99: ASSENTAMENTO DE TUBOS E PECAS | B99: ASTU | C99: FORNEC E/OU ASSENT DE TUBO DE FERRO FUNDIDO JUNTA ELASTICA | D99: 0045 | G99: 105344 | H99: ASSENTAMENTO DE CONEXÃO 3 ACESSOS DE FERRO FUNDIDO PARA REDE DE ÁGUA, DN 700, JUNTA ELÁSTICA, INSTALADO EM LOCAL COM NÍVEL BAIXO DE INTERFERÊNCIAS (NÃO INCLUI FORNECIMENTO). AF_05/2024 | I99: UN | J99: COEFICIENTE DE REPRESENTATIVIDADE | K99: 110.4 | L99: CAIXA REFERENCIAL
A100: ASSENTAMENTO DE TUBOS E PECAS | B100: ASTU | C100: FORNEC E/OU ASSENT DE TUBO DE FERRO FUNDIDO JUNTA ELASTICA | D100: 0045 | G100: 105345 | H100: ASSENTAMENTO DE CONEXÃO 3 ACESSOS DE FERRO FUNDIDO PARA REDE DE ÁGUA, DN 900, JUNTA ELÁSTICA, INSTALADO EM LOCAL COM NÍVEL BAIXO DE INTERFERÊNCIAS (NÃO INCLUI FORNECIMENTO). AF_05/2024 | I100: UN | J100: COEFICIENTE DE REPRESENTATIVIDADE | K100: 139.48 | L100: CAIXA REFERENCIAL
A101: ASSENTAMENTO DE TUBOS E PECAS | B101: ASTU | C101: FORNEC E/OU ASSENT DE TUBO DE FERRO FUNDIDO JUNTA ELASTICA | D101: 0045 | G101: 105346 | H101: ASSENTAMENTO DE CONEXÃO 3 ACESSOS DE FERRO FUNDIDO PARA REDE DE ÁGUA, DN 1000, JUNTA ELÁSTICA, INSTALADO EM LOCAL COM NÍVEL BAIXO DE INTERFERÊNCIAS (NÃO INCLUI FORNECIMENTO). AF_05/2024 | I101: UN | J101: COEFICIENTE DE REPRESENTATIVIDADE | K101: 154.42 | L101: CAIXA REFERENCIAL
A102: ASSENTAMENTO DE TUBOS E PECAS | B102: ASTU | C102: FORNEC E/OU ASSENT DE TUBO DE FERRO FUNDIDO JUNTA ELASTICA | D102: 0045 | G102: 105347 | H102: ASSENTAMENTO DE CONEXÃO 3 ACESSOS DE FERRO FUNDIDO PARA REDE DE ÁGUA, DN 1200, JUNTA ELÁSTICA, INSTALADO EM LOCAL COM NÍVEL BAIXO DE INTERFERÊNCIAS (NÃO INCLUI FORNECIMENTO). AF_05/2024 | I102: UN | J102: COEFICIENTE DE REPRESENTATIVIDADE | K102: 189.41 | L102: CAIXA REFERENCIAL
A103: ASSENTAMENTO DE TUBOS E PECAS | B103: ASTU | C103: FORNEC E/OU ASSENT DE TUBO DE FERRO FUNDIDO JUNTA ELASTICA | D103: 0045 | G103: 105348 | H103: ASSENTAMENTO DE CONEXÃO 3 ACESSOS DE FERRO FUNDIDO PARA REDE DE ÁGUA, DN 300, JUNTA ELÁSTICA, INSTALADO EM LOCAL COM NÍVEL ALTO DE INTERFERÊNCIAS (NÃO INCLUI FORNECIMENTO). AF_05/2024 | I103: UN | J103: COEFICIENTE DE REPRESENTATIVIDADE | K103: 57.11 | L103: CAIXA REFERENCIAL
A104: ASSENTAMENTO DE TUBOS E PECAS | B104: ASTU | C104: FORNEC E/OU ASSENT DE TUBO DE FERRO FUNDIDO JUNTA ELASTICA | D104: 0045 | G104: 105349 | H104: ASSENTAMENTO DE CONEXÃO 3 ACESSOS DE FERRO FUNDIDO PARA REDE DE ÁGUA, DN 350, JUNTA ELÁSTICA, INSTALADO EM LOCAL COM NÍVEL ALTO DE INTERFERÊNCIAS (NÃO INCLUI FORNECIMENTO). AF_05/2024 | I104: UN | J104: COEFICIENTE DE REPRESENTATIVIDADE | K104: 65.28 | L104: CAIXA REFERENCIAL
A105: ASSENTAMENTO DE TUBOS E PECAS | B105: ASTU | C105: FORNEC E/OU ASSENT DE TUBO DE FERRO FUNDIDO JUNTA ELASTICA | D105: 0045 | G105: 105350 | H105: ASSENTAMENTO DE CONEXÃO 3 ACESSOS DE FERRO FUNDIDO PARA REDE DE ÁGUA, DN 400, JUNTA ELÁSTICA, INSTALADO EM LOCAL COM NÍVEL ALTO DE INTERFERÊNCIAS (NÃO INCLUI FORNECIMENTO). AF_05/2024 | I105: UN | J105: COEFICIENTE DE REPRESENTATIVIDADE | K105: 73.43 | L105: CAIXA REFERENCIAL
A106: ASSENTAMENTO DE TUBOS E PECAS | B106: ASTU | C106: FORNEC E/OU ASSENT DE TUBO DE FERRO FUNDIDO JUNTA ELASTICA | D106: 0045 | G106: 105351 | H106: ASSENTAMENTO DE CONEXÃO 3 ACESSOS DE FERRO FUNDIDO PARA REDE DE ÁGUA, DN 450, JUNTA ELÁSTICA, INSTALADO EM LOCAL COM NÍVEL ALTO DE INTERFERÊNCIAS (NÃO INCLUI FORNECIMENTO). AF_05/2024 | I106: UN | J106: COEFICIENTE DE REPRESENTATIVIDADE | K106: 81.83 | L106: CAIXA REFERENCIAL
A107: ASSENTAMENTO DE TUBOS E PECAS | B107: ASTU | C107: FORNEC E/OU ASSENT DE TUBO DE FERRO FUNDIDO JUNTA ELASTICA | D107: 0045 | G107: 105352 | H107: ASSENTAMENTO DE CONEXÃO 3 ACESSOS DE FERRO FUNDIDO PARA REDE DE ÁGUA, DN 500, JUNTA ELÁSTICA, INSTALADO EM LOCAL COM NÍVEL ALTO DE INTERFERÊNCIAS (NÃO INCLUI FORNECIMENTO). AF_05/2024 | I107: UN | J107: COEFICIENTE DE REPRESENTATIVIDADE | K107: 101.82 | L107: CAIXA REFERENCIAL
A108: ASSENTAMENTO DE TUBOS E PECAS | B108: ASTU | C108: FORNEC E/OU ASSENT DE TUBO DE FERRO FUNDIDO JUNTA ELASTICA | D108: 0045 | G108: 105353 | H108: ASSENTAMENTO DE CONEXÃO 3 ACESSOS DE FERRO FUNDIDO PARA REDE DE ÁGUA, DN 600, JUNTA ELÁSTICA, INSTALADO EM LOCAL COM NÍVEL ALTO DE INTERFERÊNCIAS (NÃO INCLUI FORNECIMENTO). AF_05/2024 | I108: UN | J108: COEFICIENTE DE REPRESENTATIVIDADE | K108: 120.35 | L108: CAIXA REFERENCIAL
A109: ASSENTAMENTO DE TUBOS E PECAS | B109: ASTU | C109: FORNEC E/OU ASSENT DE TUBO DE FERRO FUNDIDO JUNTA ELASTICA | D109: 0045 | G109: 105354 | H109: ASSENTAMENTO DE CONEXÃO 3 ACESSOS DE FERRO FUNDIDO PARA REDE DE ÁGUA, DN 700, JUNTA ELÁSTICA, INSTALADO EM LOCAL COM NÍVEL ALTO DE INTERFERÊNCIAS (NÃO INCLUI FORNECIMENTO). AF_05/2024 | I109: UN | J109: COEFICIENTE DE REPRESENTATIVIDADE | K109: 137.52 | L109: CAIXA REFERENCIAL
A110: ASSENTAMENTO DE TUBOS E PECAS | B110: ASTU | C110: FORNEC E/OU ASSENT DE TUBO DE FERRO FUNDIDO JUNTA ELASTICA | D110: 0045 | G110: 105355 | H110: ASSENTAMENTO DE CONEXÃO 3 ACESSOS DE FERRO FUNDIDO PARA REDE DE ÁGUA, DN 800, JUNTA ELÁSTICA, INSTALADO EM LOCAL COM NÍVEL ALTO DE INTERFERÊNCIAS (NÃO INCLUI FORNECIMENTO). AF_05/2024 | I110: UN | J110: COEFICIENTE DE REPRESENTATIVIDADE | K110: 155.18 | L110: CAIXA REFERENCIAL
A111: ASSENTAMENTO DE TUBOS E PECAS | B111: ASTU | C111: FORNEC E/OU ASSENT DE TUBO DE FERRO FUNDIDO JUNTA ELASTICA | D111: 0045 | G111: 105356 | H111: ASSENTAMENTO DE CONEXÃO 3 ACESSOS DE FERRO FUNDIDO PARA REDE DE ÁGUA, DN 900, JUNTA ELÁSTICA, INSTALADO EM LOCAL COM NÍVEL ALTO DE INTERFERÊNCIAS (NÃO INCLUI FORNECIMENTO). AF_05/2024 | I111: UN | J111: COEFICIENTE DE REPRESENTATIVIDADE | K111: 173.22 | L111: CAIXA REFERENCIAL
A112: ASSENTAMENTO DE TUBOS E PECAS | B112: ASTU | C112: FORNEC E/OU ASSENT DE TUBO DE FERRO FUNDIDO JUNTA ELASTICA | D112: 0045 | G112: 105357 | H112: ASSENTAMENTO DE CONEXÃO 3 ACESSOS DE FERRO FUNDIDO PARA REDE DE ÁGUA, DN 1000, JUNTA ELÁSTICA, INSTALADO EM LOCAL COM NÍVEL ALTO DE INTERFERÊNCIAS (NÃO INCLUI FORNECIMENTO). AF_05/2024 | I112: UN | J112: COEFICIENTE DE REPRESENTATIVIDADE | K112: 191.49 | L112: CAIXA REFERENCIAL
A113: ASSENTAMENTO DE TUBOS E PECAS | B113: ASTU | C113: FORNEC E/OU ASSENT DE TUBO DE FERRO FUNDIDO JUNTA ELASTICA | D113: 0045 | G113: 105358 | H113: ASSENTAMENTO DE CONEXÃO 3 ACESSOS DE FERRO FUNDIDO PARA REDE DE ÁGUA, DN 1200, JUNTA ELÁSTICA, INSTALADO EM LOCAL COM NÍVEL ALTO DE INTERFERÊNCIAS (NÃO INCLUI FORNECIMENTO). AF_05/2024 | I113: UN | J113: COEFICIENTE DE REPRESENTATIVIDADE | K113: 233.11 | L113: CAIXA REFERENCIAL
A114: ASSENTAMENTO DE TUBOS E PECAS | B114: ASTU | C114: FORNEC E/OU ASSENT DE TUBO DE FERRO FUNDIDO JUNTA ELASTICA | D114: 0045 | G114: 105369 | H114: FORNECIMENTO E ASSENTAMENTO DE TE RANHURADO EM FERRO FUNDIDO, DN 80 (3") PARA REDE DE ÁGUA, INSTALADO EM LOCAL COM NÍVEL ALTO DE INTERFERÊNCIAS (INCLUI FORNECIMENTO). AF_05/2024 | I114: UN | J114: ATRIBUÍDO SÃO PAULO | K114: 68.17 | L114: CAIXA REFERENCIAL
A115: ASSENTAMENTO DE TUBOS E PECAS | B115: ASTU | C115: FORNEC E/OU ASSENT DE TUBO DE FERRO FUNDIDO JUNTA ELASTICA | D115: 0045 | G115: 105377 | H115: FORNECIMENTO E ASSENTAMENTO DE CURVA 45 GRAUS RANHURADA EM FERRO FUNDIDO, DN 80 MM (3") PARA REDE DE ÁGUA, INSTALADO EM LOCAL COM NÍVEL ALTO DE INTERFERÊNCIAS (INCLUI FORNECIMENTO). AF_05/2024 | I115: UN | J115: ATRIBUÍDO SÃO PAULO | K115: 43.65 | L115: CAIXA REFERENCIAL
A116: ASSENTAMENTO DE TUBOS E PECAS | B116: ASTU | C116: FORNEC E/OU ASSENT DE TUBO DE FERRO FUNDIDO JUNTA ELASTICA | D116: 0045 | G116: 105378 | H116: ASSENTAMENTO DE CONEXÃO 2 ACESSOS ALINHADOS DE FERRO FUNDIDO PARA REDE DE ÁGUA, DN 100, JUNTA ELÁSTICA, INSTALADO EM LOCAL COM NÍVEL ALTO DE INTERFERÊNCIAS (NÃO INCLUI FORNECIMENTO). AF_05/2024 | I116: UN | J116: COEFICIENTE DE REPRESENTATIVIDADE | K116: 12.47 | L116: CAIXA REFERENCIAL
A117: ASSENTAMENTO DE TUBOS E PECAS | B117: ASTU | C117: FORNEC E/OU ASSENT DE TUBO DE FERRO FUNDIDO JUNTA ELASTICA | D117: 0045 | G117: 105379 | H117: ASSENTAMENTO DE CONEXÃO 2 ACESSOS ALINHADOS DE FERRO FUNDIDO PARA REDE DE ÁGUA, DN 150, JUNTA ELÁSTICA, INSTALADO EM LOCAL COM NÍVEL ALTO DE INTERFERÊNCIAS (NÃO INCLUI FORNECIMENTO). AF_05/2024 | I117: UN | J117: COEFICIENTE DE REPRESENTATIVIDADE | K117: 16.42 | L117: CAIXA REFERENCIAL
A118: ASSENTAMENTO DE TUBOS E PECAS | B118: ASTU | C118: FORNEC E/OU ASSENT DE TUBO DE FERRO FUNDIDO JUNTA ELASTICA | D118: 0045 | G118: 105380 | H118: ASSENTAMENTO DE CONEXÃO 2 ACESSOS ALINHADOS DE FERRO FUNDIDO PARA REDE DE ÁGUA, DN 1000, JUNTA ELÁSTICA, INSTALADO EM LOCAL COM NÍVEL ALTO DE INTERFERÊNCIAS (NÃO INCLUI FORNECIMENTO). AF_05/2024 | I118: UN | J118: COEFICIENTE DE REPRESENTATIVIDADE | K118: 95.73 | L118: CAIXA REFERENCIAL
A119: ASSENTAMENTO DE TUBOS E PECAS | B119: ASTU | C119: FORNEC E/OU ASSENT DE TUBO DE FERRO FUNDIDO JUNTA ELASTICA | D119: 0045 | G119: 105388 | H119: ASSENTAMENTO DE CONEXÃO 2 ACESSOS ALINHADOS DE FERRO FUNDIDO PARA REDE DE ÁGUA, DN 150, JUNTA ELÁSTICA, INSTALADO EM LOCAL COM NÍVEL BAIXO DE INTERFERÊNCIAS (NÃO INCLUI FORNECIMENTO). AF_05/2024 | I119: UN | J119: COEFICIENTE DE REPRESENTATIVIDADE | K119: 12.87 | L119: CAIXA REFERENCIAL
A120: ASSENTAMENTO DE TUBOS E PECAS | B120: ASTU | C120: FORNEC E/OU ASSENT DE TUBO DE FERRO FUNDIDO JUNTA ELASTICA | D120: 0045 | G120: 105389 | H120: ASSENTAMENTO DE CONEXÃO 2 ACESSOS ALINHADOS DE FERRO FUNDIDO PARA REDE DE ÁGUA, DN 200, JUNTA ELÁSTICA, INSTALADO EM LOCAL COM NÍVEL BAIXO DE INTERFERÊNCIAS (NÃO INCLUI FORNECIMENTO). AF_05/2024 | I120: UN | J120: COEFICIENTE DE REPRESENTATIVIDADE | K120: 16.13 | L120: CAIXA REFERENCIAL
A121: ASSENTAMENTO DE TUBOS E PECAS | B121: ASTU | C121: FORNEC E/OU ASSENT DE TUBO DE FERRO FUNDIDO JUNTA ELASTICA | D121: 0045 | G121: 105390 | H121: ASSENTAMENTO DE CONEXÃO 2 ACESSOS INCLINADOS DE FERRO FUNDIDO PARA REDE DE ÁGUA, DN 900, JUNTA ELÁSTICA, INSTALADO EM LOCAL COM NÍVEL BAIXO DE INTERFERÊNCIAS (NÃO INCLUI FORNECIMENTO). AF_05/2024 | I121: UN | J121: COEFICIENTE DE REPRESENTATIVIDADE | K121: 101.53 | L121: CAIXA REFERENCIAL
A122: ASSENTAMENTO DE TUBOS E PECAS | B122: ASTU | C122: FORNEC E/OU ASSENT DE TUBO DE FERRO FUNDIDO JUNTA ELASTICA | D122: 0045 | G122: 105391 | H122: ASSENTAMENTO DE CONEXÃO 3 ACESSOS DE FERRO FUNDIDO PARA REDE DE ÁGUA, DN 800, JUNTA ELÁSTICA, INSTALADO EM LOCAL COM NÍVEL BAIXO DE INTERFERÊNCIAS (NÃO INCLUI FORNECIMENTO). AF_05/2024 | I122: UN | J122: COEFICIENTE DE REPRESENTATIVIDADE | K122: 124.74 | L122: CAIXA REFERENCIAL
A123: ASSENTAMENTO DE TUBOS E PECAS | B123: ASTU | C123: FORNEC E/OU ASSENT DE TUBO DE FERRO FUNDIDO JUNTA ELASTICA | D123: 0045 | G123: 105392 | H123: ASSENTAMENTO DE CONEXÃO 2 ACESSOS ALINHADOS DE FERRO FUNDIDO PARA REDE DE ÁGUA, DN 200, JUNTA ELÁSTICA, INSTALADO EM LOCAL COM NÍVEL ALTO DE INTERFERÊNCIAS (NÃO INCLUI FORNECIMENTO). AF_05/2024 | I123: UN | J123: COEFICIENTE DE REPRESENTATIVIDADE | K123: 20.36 | L123: CAIXA REFERENCIAL
A124: ASSENTAMENTO DE TUBOS E PECAS | B124: ASTU | C124: FORNEC E/OU ASSENT DE TUBO DE FERRO FUNDIDO JUNTA ELASTICA | D124: 0045 | G124: 105393 | H124: ASSENTAMENTO DE CONEXÃO 2 ACESSOS ALINHADOS DE FERRO FUNDIDO PARA REDE DE ÁGUA, DN 250, JUNTA ELÁSTICA, INSTALADO EM LOCAL COM NÍVEL ALTO DE INTERFERÊNCIAS (NÃO INCLUI FORNECIMENTO). AF_05/2024 | I124: UN | J124: COEFICIENTE DE REPRESENTATIVIDADE | K124: 24.47 | L124: CAIXA REFERENCIAL
A125: ASSENTAMENTO DE TUBOS E PECAS | B125: ASTU | C125: FORNEC E/OU ASSENT DE TUBO DE FERRO FUNDIDO JUNTA ELASTICA | D125: 0045 | G125: 105394 | H125: ASSENTAMENTO DE CONEXÃO 2 ACESSOS ALINHADOS DE FERRO FUNDIDO PARA REDE DE ÁGUA, DN 300, JUNTA ELÁSTICA, INSTALADO EM LOCAL COM NÍVEL ALTO DE INTERFERÊNCIAS (NÃO INCLUI FORNECIMENTO). AF_05/2024 | I125: UN | J125: COEFICIENTE DE REPRESENTATIVIDADE | K125: 28.54 | L125: CAIXA REFERENCIAL
A126: ASSENTAMENTO DE TUBOS E PECAS | B126: ASTU | C126: FORNEC E/OU ASSENT DE TUBO DE FERRO FUNDIDO JUNTA ELASTICA | D126: 0045 | G126: 105395 | H126: ASSENTAMENTO DE CONEXÃO 2 ACESSOS ALINHADOS DE FERRO FUNDIDO PARA REDE DE ÁGUA, DN 350, JUNTA ELÁSTICA, INSTALADO EM LOCAL COM NÍVEL ALTO DE INTERFERÊNCIAS (NÃO INCLUI FORNECIMENTO). AF_05/2024 | I126: UN | J126: COEFICIENTE DE REPRESENTATIVIDADE | K126: 32.62 | L126: CAIXA REFERENCIAL
A127: ASSENTAMENTO DE TUBOS E PECAS | B127: ASTU | C127: FORNEC E/OU ASSENT DE TUBO DE FERRO FUNDIDO JUNTA ELASTICA | D127: 0045 | G127: 105396 | H127: ASSENTAMENTO DE CONEXÃO 2 ACESSOS ALINHADOS DE FERRO FUNDIDO PARA REDE DE ÁGUA, DN 400, JUNTA ELÁSTICA, INSTALADO EM LOCAL COM NÍVEL ALTO DE INTERFERÊNCIAS (NÃO INCLUI FORNECIMENTO). AF_05/2024 | I127: UN | J127: COEFICIENTE DE REPRESENTATIVIDADE | K127: 36.7 | L127: CAIXA REFERENCIAL
A128: ASSENTAMENTO DE TUBOS E PECAS | B128: ASTU | C128: FORNEC E/OU ASSENT DE TUBO DE FERRO FUNDIDO JUNTA ELASTICA | D128: 0045 | G128: 105397 | H128: ASSENTAMENTO DE CONEXÃO 2 ACESSOS ALINHADOS DE FERRO FUNDIDO PARA REDE DE ÁGUA, DN 450, JUNTA ELÁSTICA, INSTALADO EM LOCAL COM NÍVEL ALTO DE INTERFERÊNCIAS (NÃO INCLUI FORNECIMENTO). AF_05/2024 | I128: UN | J128: COEFICIENTE DE REPRESENTATIVIDADE | K128: 40.88 | L128: CAIXA REFERENCIAL
A129: ASSENTAMENTO DE TUBOS E PECAS | B129: ASTU | C129: FORNEC E/OU ASSENT DE TUBO DE FERRO FUNDIDO JUNTA ELASTICA | D129: 0045 | G129: 105398 | H129: ASSENTAMENTO DE CONEXÃO 2 ACESSOS ALINHADOS DE FERRO FUNDIDO PARA REDE DE ÁGUA, DN 500, JUNTA ELÁSTICA, INSTALADO EM LOCAL COM NÍVEL ALTO DE INTERFERÊNCIAS (NÃO INCLUI FORNECIMENTO). AF_05/2024 | I129: UN | J129: COEFICIENTE DE REPRESENTATIVIDADE | K129: 50.9 | L129: CAIXA REFERENCIAL
A130: ASSENTAMENTO DE TUBOS E PECAS | B130: ASTU | C130: FORNEC E/OU ASSENT DE TUBO DE FERRO FUNDIDO JUNTA ELASTICA | D130: 0045 | G130: 105399 | H130: ASSENTAMENTO DE CONEXÃO 2 ACESSOS ALINHADOS DE FERRO FUNDIDO PARA REDE DE ÁGUA, DN 600, JUNTA ELÁSTICA, INSTALADO EM LOCAL COM NÍVEL ALTO DE INTERFERÊNCIAS (NÃO INCLUI FORNECIMENTO). AF_05/2024 | I130: UN | J130: COEFICIENTE DE REPRESENTATIVIDADE | K130: 60.15 | L130: CAIXA REFERENCIAL
A131: ASSENTAMENTO DE TUBOS E PECAS | B131: ASTU | C131: FORNEC E/OU ASSENT DE TUBO DE FERRO FUNDIDO JUNTA ELASTICA | D131: 0045 | G131: 105400 | H131: ASSENTAMENTO DE CONEXÃO 2 ACESSOS ALINHADOS DE FERRO FUNDIDO PARA REDE DE ÁGUA, DN 700, JUNTA ELÁSTICA, INSTALADO EM LOCAL COM NÍVEL ALTO DE INTERFERÊNCIAS (NÃO INCLUI FORNECIMENTO). AF_05/2024 | I131: UN | J131: COEFICIENTE DE REPRESENTATIVIDADE | K131: 68.76 | L131: CAIXA REFERENCIAL
A132: ASSENTAMENTO DE TUBOS E PECAS | B132: ASTU | C132: FORNEC E/OU ASSENT DE TUBO DE FERRO FUNDIDO JUNTA ELASTICA | D132: 0045 | G132: 105401 | H132: ASSENTAMENTO DE CONEXÃO 2 ACESSOS ALINHADOS DE FERRO FUNDIDO PARA REDE DE ÁGUA, DN 800, JUNTA ELÁSTICA, INSTALADO EM LOCAL COM NÍVEL ALTO DE INTERFERÊNCIAS (NÃO INCLUI FORNECIMENTO). AF_05/2024 | I132: UN | J132: COEFICIENTE DE REPRESENTATIVIDADE | K132: 77.59 | L132: CAIXA REFERENCIAL
A133: ASSENTAMENTO DE TUBOS E PECAS | B133: ASTU | C133: FORNEC E/OU ASSENT DE TUBO DE FERRO FUNDIDO JUNTA ELASTICA | D133: 0045 | G133: 105402 | H133: ASSENTAMENTO DE CONEXÃO 2 ACESSOS ALINHADOS DE FERRO FUNDIDO PARA REDE DE ÁGUA, DN 900, JUNTA ELÁSTICA, INSTALADO EM LOCAL COM NÍVEL ALTO DE INTERFERÊNCIAS (NÃO INCLUI FORNECIMENTO). AF_05/2024 | I133: UN | J133: COEFICIENTE DE REPRESENTATIVIDADE | K133: 86.62 | L133: CAIXA REFERENCIAL
A134: ASSENTAMENTO DE TUBOS E PECAS | B134: ASTU | C134: FORNEC E/OU ASSENT DE TUBO DE ACO COM JUNTA SOLDADA | D134: 0046 | G134: 97173 | H134: ASSENTAMENTO DE TUBO DE AÇO CARBONO PARA REDE DE ÁGUA, DN 600 MM (24"), JUNTA SOLDADA, INSTALADO EM LOCAL COM NÍVEL ALTO DE INTERFERÊNCIAS (NÃO INCLUI FORNECIMENTO). AF_05/2024 | I134: M | J134: COEFICIENTE DE REPRESENTATIVIDADE | K134: 38.48 | L134: CAIXA REFERENCIAL
A135: ASSENTAMENTO DE TUBOS E PECAS | B135: ASTU | C135: FORNEC E/OU ASSENT DE TUBO DE ACO COM JUNTA SOLDADA | D135: 0046 | G135: 97174 | H135: ASSENTAMENTO DE TUBO DE AÇO CARBONO PARA REDE DE ÁGUA, DN 700 MM (28"), JUNTA SOLDADA, INSTALADO EM LOCAL COM NÍVEL ALTO DE INTERFERÊNCIAS (NÃO INCLUI FORNECIMENTO). AF_05/2024 | I135: M | J135: COEFICIENTE DE REPRESENTATIVIDADE | K135: 45.88 | L135: CAIXA REFERENCIAL
A136: ASSENTAMENTO DE TUBOS E PECAS | B136: ASTU | C136: FORNEC E/OU ASSENT DE TUBO DE ACO COM JUNTA SOLDADA | D136: 0046 | G136: 97175 | H136: ASSENTAMENTO DE TUBO DE AÇO CARBONO PARA REDE DE ÁGUA, DN 800 MM (32"), JUNTA SOLDADA, INSTALADO EM LOCAL COM NÍVEL ALTO DE INTERFERÊNCIAS (NÃO INCLUI FORNECIMENTO). AF_05/2024 | I136: M | J136: COEFICIENTE DE REPRESENTATIVIDADE | K136: 53.3 | L136: CAIXA REFERENCIAL
A137: ASSENTAMENTO DE TUBOS E PECAS | B137: ASTU | C137: FORNEC E/OU ASSENT DE TUBO DE ACO COM JUNTA SOLDADA | D137: 0046 | G137: 97176 | H137: ASSENTAMENTO DE TUBO DE AÇO CARBONO PARA REDE DE ÁGUA, DN 900 MM (36"), JUNTA SOLDADA, INSTALADO EM LOCAL COM NÍVEL ALTO DE INTERFERÊNCIAS (NÃO INCLUI FORNECIMENTO). AF_05/2024 | I137: M | J137: COEFICIENTE DE REPRESENTATIVIDADE | K137: 60.73 | L137: CAIXA REFERENCIAL
A138: ASSENTAMENTO DE TUBOS E PECAS | B138: ASTU | C138: FORNEC E/OU ASSENT DE TUBO DE ACO COM JUNTA SOLDADA | D138: 0046 | G138: 97177 | H138: ASSENTAMENTO DE TUBO DE AÇO CARBONO PARA REDE DE ÁGUA, DN 1000 MM (40") OU DN 1100 MM (44"), JUNTA SOLDADA, INSTALADO EM LOCAL COM NÍVEL ALTO DE INTERFERÊNCIAS (NÃO INCLUI FORNECIMENTO). AF_05/2024 | I138: M | J138: COEFICIENTE DE REPRESENTATIVIDADE | K138: 68.16 | L138: CAIXA REFERENCIAL
A139: ASSENTAMENTO DE TUBOS E PECAS | B139: ASTU | C139: FORNEC E/OU ASSENT DE TUBO DE ACO COM JUNTA SOLDADA | D139: 0046 | G139: 97178 | H139: ASSENTAMENTO DE TUBO DE AÇO CARBONO PARA REDE DE ÁGUA, DN 1200 MM (48") OU DN 1300 MM (52"), JUNTA SOLDADA, INSTALADO EM LOCAL COM NÍVEL ALTO DE INTERFERÊNCIAS (NÃO INCLUI FORNECIMENTO). AF_05/2024 | I139: M | J139: COEFICIENTE DE REPRESENTATIVIDADE | K139: 83 | L139: CAIXA REFERENCIAL
A140: ASSENTAMENTO DE TUBOS E PECAS | B140: ASTU | C140: FORNEC E/OU ASSENT DE TUBO DE ACO COM JUNTA SOLDADA | D140: 0046 | G140: 97179 | H140: ASSENTAMENTO DE TUBO DE AÇO CARBONO PARA REDE DE ÁGUA, DN 1400 MM (56'') OU DN 1500 MM (60"), JUNTA SOLDADA, INSTALADO EM LOCAL COM NÍVEL ALTO DE INTERFERÊNCIAS (NÃO INCLUI FORNECIMENTO). AF_05/2024 | I140: M | J140: COEFICIENTE DE REPRESENTATIVIDADE | K140: 97.86 | L140: CAIXA REFERENCIAL
A141: ASSENTAMENTO DE TUBOS E PECAS | B141: ASTU | C141: FORNEC E/OU ASSENT DE TUBO DE ACO COM JUNTA SOLDADA | D141: 0046 | G141: 97180 | H141: ASSENTAMENTO DE TUBO DE AÇO CARBONO PARA REDE DE ÁGUA, DN 1600 MM (64") OU DN 1700 MM (68"), JUNTA SOLDADA, INSTALADO EM LOCAL COM NÍVEL ALTO DE INTERFERÊNCIAS (NÃO INCLUI FORNECIMENTO). AF_05/2024 | I141: M | J141: COEFICIENTE DE REPRESENTATIVIDADE | K141: 112.7 | L141: CAIXA REFERENCIAL
A142: ASSENTAMENTO DE TUBOS E PECAS | B142: ASTU | C142: FORNEC E/OU ASSENT DE TUBO DE ACO COM JUNTA SOLDADA | D142: 0046 | G142: 97181 | H142: ASSENTAMENTO DE TUBO DE AÇO CARBONO PARA REDE DE ÁGUA, DN 1800 MM (72") OU DN 1900 MM (76"), JUNTA SOLDADA, INSTALADO EM LOCAL COM NÍVEL ALTO DE INTERFERÊNCIAS (NÃO INCLUI FORNECIMENTO). AF_05/2024 | I142: M | J142: COEFICIENTE DE REPRESENTATIVIDADE | K142: 127.54 | L142: CAIXA REFERENCIAL
A143: ASSENTAMENTO DE TUBOS E PECAS | B143: ASTU | C143: FORNEC E/OU ASSENT DE TUBO DE ACO COM JUNTA SOLDADA | D143: 0046 | G143: 97182 | H143: ASSENTAMENTO DE TUBO DE AÇO CARBONO PARA REDE DE ÁGUA, DN 2000 MM (80") OU DN 2100 MM (84"), JUNTA SOLDADA, INSTALADO EM LOCAL COM NÍVEL ALTO DE INTERFERÊNCIAS (NÃO INCLUI FORNECIMENTO). AF_05/2024 | I143: M | J143: COEFICIENTE DE REPRESENTATIVIDADE | K143: 146.29 | L143: CAIXA REFERENCIAL
A144: ASSENTAMENTO DE TUBOS E PECAS | B144: ASTU | C144: FORNEC E/OU ASSENT DE TUBO DE ACO COM JUNTA SOLDADA | D144: 0046 | G144: 97183 | H144: ASSENTAMENTO DE TUBO DE AÇO CARBONO PARA REDE DE ÁGUA, DN 600 MM (24"), JUNTA SOLDADA, INSTALADO EM LOCAL COM NÍVEL BAIXO DE INTERFERÊNCIAS (NÃO INCLUI FORNECIMENTO). AF_05/2024 | I144: M | J144: COEFICIENTE DE REPRESENTATIVIDADE | K144: 33.76 | L144: CAIXA REFERENCIAL
A145: ASSENTAMENTO DE TUBOS E PECAS | B145: ASTU | C145: FORNEC E/OU ASSENT DE TUBO DE ACO COM JUNTA SOLDADA | D145: 0046 | G145: 97184 | H145: ASSENTAMENTO DE TUBO DE AÇO CARBONO PARA REDE DE ÁGUA, DN 700 MM (28"), JUNTA SOLDADA, INSTALADO EM LOCAL COM NÍVEL BAIXO DE INTERFERÊNCIAS (NÃO INCLUI FORNECIMENTO). AF_05/2024 | I145: M | J145: COEFICIENTE DE REPRESENTATIVIDADE | K145: 40.37 | L145: CAIXA REFERENCIAL
A146: ASSENTAMENTO DE TUBOS E PECAS | B146: ASTU | C146: FORNEC E/OU ASSENT DE TUBO DE ACO COM JUNTA SOLDADA | D146: 0046 | G146: 97185 | H146: ASSENTAMENTO DE TUBO DE AÇO CARBONO PARA REDE DE ÁGUA, DN 800 MM (32"), JUNTA SOLDADA, INSTALADO EM LOCAL COM NÍVEL BAIXO DE INTERFERÊNCIAS (NÃO INCLUI FORNECIMENTO). AF_05/2024 | I146: M | J146: COEFICIENTE DE REPRESENTATIVIDADE | K146: 46.97 | L146: CAIXA REFERENCIAL
A147: ASSENTAMENTO DE TUBOS E PECAS | B147: ASTU | C147: FORNEC E/OU ASSENT DE TUBO DE ACO COM JUNTA SOLDADA | D147: 0046 | G147: 97186 | H147: ASSENTAMENTO DE TUBO DE AÇO CARBONO PARA REDE DE ÁGUA, DN 900 MM (36"), JUNTA SOLDADA, INSTALADO EM LOCAL COM NÍVEL BAIXO DE INTERFERÊNCIAS (NÃO INCLUI FORNECIMENTO). AF_05/2024 | I147: M | J147: COEFICIENTE DE REPRESENTATIVIDADE | K147: 53.59 | L147: CAIXA REFERENCIAL
A148: ASSENTAMENTO DE TUBOS E PECAS | B148: ASTU | C148: FORNEC E/OU ASSENT DE TUBO DE ACO COM JUNTA SOLDADA | D148: 0046 | G148: 97187 | H148: ASSENTAMENTO DE TUBO DE AÇO CARBONO PARA REDE DE ÁGUA, DN 1000 MM (40") OU DN 1100 MM (44"), JUNTA SOLDADA, INSTALADO EM LOCAL COM NÍVEL BAIXO DE INTERFERÊNCIAS (NÃO INCLUI FORNECIMENTO). AF_05/2024 | I148: M | J148: COEFICIENTE DE REPRESENTATIVIDADE | K148: 60.21 | L148: CAIXA REFERENCIAL
A149: ASSENTAMENTO DE TUBOS E PECAS | B149: ASTU | C149: FORNEC E/OU ASSENT DE TUBO DE ACO COM JUNTA SOLDADA | D149: 0046 | G149: 97188 | H149: ASSENTAMENTO DE TUBO DE AÇO CARBONO PARA REDE DE ÁGUA, DN 1200 MM (48") OU DN 1300 MM (52"), JUNTA SOLDADA, INSTALADO EM LOCAL COM NÍVEL BAIXO DE INTERFERÊNCIAS (NÃO INCLUI FORNECIMENTO). AF_05/2024 | I149: M | J149: COEFICIENTE DE REPRESENTATIVIDADE | K149: 73.46 | L149: CAIXA REFERENCIAL
A150: ASSENTAMENTO DE TUBOS E PECAS | B150: ASTU | C150: FORNEC E/OU ASSENT DE TUBO DE ACO COM JUNTA SOLDADA | D150: 0046 | G150: 97189 | H150: ASSENTAMENTO DE TUBO DE AÇO CARBONO PARA REDE DE ÁGUA, DN 1400 MM (56'') OU DN 1500 MM (60"), JUNTA SOLDADA, INSTALADO EM LOCAL COM NÍVEL BAIXO DE INTERFERÊNCIAS (NÃO INCLUI FORNECIMENTO). AF_05/2024 | I150: M | J150: COEFICIENTE DE REPRESENTATIVIDADE | K150: 86.68 | L150: CAIXA REFERENCIAL
A151: ASSENTAMENTO DE TUBOS E PECAS | B151: ASTU | C151: FORNEC E/OU ASSENT DE TUBO DE ACO COM JUNTA SOLDADA | D151: 0046 | G151: 97190 | H151: ASSENTAMENTO DE TUBO DE AÇO CARBONO PARA REDE DE ÁGUA, DN 1600 MM (64") OU DN 1700 MM (68"), JUNTA SOLDADA, INSTALADO EM LOCAL COM NÍVEL BAIXO DE INTERFERÊNCIAS (NÃO INCLUI FORNECIMENTO). AF_05/2024 | I151: M | J151: COEFICIENTE DE REPRESENTATIVIDADE | K151: 99.91 | L151: CAIXA REFERENCIAL
A152: ASSENTAMENTO DE TUBOS E PECAS | B152: ASTU | C152: FORNEC E/OU ASSENT DE TUBO DE ACO COM JUNTA SOLDADA | D152: 0046 | G152: 97191 | H152: ASSENTAMENTO DE TUBO DE AÇO CARBONO PARA REDE DE ÁGUA, DN 1800 MM (72") OU DN 1900 MM (76"), JUNTA SOLDADA, INSTALADO EM LOCAL COM NÍVEL BAIXO DE INTERFERÊNCIAS (NÃO INCLUI FORNECIMENTO). AF_05/2024 | I152: M | J152: COEFICIENTE DE REPRESENTATIVIDADE | K152: 113.13 | L152: CAIXA REFERENCIAL
A153: ASSENTAMENTO DE TUBOS E PECAS | B153: ASTU | C153: FORNEC E/OU ASSENT DE TUBO DE ACO COM JUNTA SOLDADA | D153: 0046 | G153: 97192 | H153: ASSENTAMENTO DE TUBO DE AÇO CARBONO PARA REDE DE ÁGUA, DN 2000 MM (80") OU DN 2100 MM (84"), JUNTA SOLDADA, INSTALADO EM LOCAL COM NÍVEL BAIXO DE INTERFERÊNCIAS (NÃO INCLUI FORNECIMENTO). AF_05/2024 | I153: M | J153: COEFICIENTE DE REPRESENTATIVIDADE | K153: 129.41 | L153: CAIXA REFERENCIAL
A154: ASSENTAMENTO DE TUBOS E PECAS | B154: ASTU | C154: FORNEC E/OU ASSENT DE TUBO DE PVC COM JUNTA ELASTICA | D154: 0048 | G154: 90694 | H154: TUBO DE PVC PARA REDE COLETORA DE ESGOTO DE PAREDE MACIÇA, DN 100 MM, JUNTA ELÁSTICA - FORNECIMENTO E ASSENTAMENTO. AF_01/2021 | I154: M | J154: COEFICIENTE DE REPRESENTATIVIDADE | K154: 35.8 | L154: CAIXA REFERENCIAL
A155: ASSENTAMENTO DE TUBOS E PECAS | B155: ASTU | C155: FORNEC E/OU ASSENT DE TUBO DE PVC COM JUNTA ELASTICA | D155: 0048 | G155: 90695 | H155: TUBO DE PVC PARA REDE COLETORA DE ESGOTO DE PAREDE MACIÇA, DN 150 MM, JUNTA ELÁSTICA - FORNECIMENTO E ASSENTAMENTO. AF_01/2021 | I155: M | J155: COEFICIENTE DE REPRESENTATIVIDADE | K155: 67.55 | L155: CAIXA REFERENCIAL
A156: ASSENTAMENTO DE TUBOS E PECAS | B156: ASTU | C156: FORNEC E/OU ASSENT DE TUBO DE PVC COM JUNTA ELASTICA | D156: 0048 | G156: 90696 | H156: TUBO DE PVC PARA REDE COLETORA DE ESGOTO DE PAREDE MACIÇA, DN 200 MM, JUNTA ELÁSTICA - FORNECIMENTO E ASSENTAMENTO. AF_01/2021 | I156: M | J156: COEFICIENTE DE REPRESENTATIVIDADE | K156: 112.44 | L156: CAIXA REFERENCIAL
A157: ASSENTAMENTO DE TUBOS E PECAS | B157: ASTU | C157: FORNEC E/OU ASSENT DE TUBO DE PVC COM JUNTA ELASTICA | D157: 0048 | G157: 90697 | H157: TUBO DE PVC PARA REDE COLETORA DE ESGOTO DE PAREDE MACIÇA, DN 250 MM, JUNTA ELÁSTICA - FORNECIMENTO E ASSENTAMENTO. AF_01/2021 | I157: M | J157: COEFICIENTE DE REPRESENTATIVIDADE | K157: 174.05 | L157: CAIXA REFERENCIAL
A158: ASSENTAMENTO DE TUBOS E PECAS | B158: ASTU | C158: FORNEC E/OU ASSENT DE TUBO DE PVC COM JUNTA ELASTICA | D158: 0048 | G158: 90698 | H158: TUBO DE PVC PARA REDE COLETORA DE ESGOTO DE PAREDE MACIÇA, DN 300 MM, JUNTA ELÁSTICA, FORNECIMENTO E ASSENTAMENTO. AF_01/2021 | I158: M | J158: COEFICIENTE DE REPRESENTATIVIDADE | K158: 265.58 | L158: CAIXA REFERENCIAL
A159: ASSENTAMENTO DE TUBOS E PECAS | B159: ASTU | C159: FORNEC E/OU ASSENT DE TUBO DE PVC COM JUNTA ELASTICA | D159: 0048 | G159: 90699 | H159: TUBO DE PVC PARA REDE COLETORA DE ESGOTO DE PAREDE MACIÇA, DN 350 MM, JUNTA ELÁSTICA - FORNECIMENTO E ASSENTAMENTO. AF_01/2021 | I159: M | J159: COEFICIENTE DE REPRESENTATIVIDADE | K159: 373.45 | L159: CAIXA REFERENCIAL
A160: ASSENTAMENTO DE TUBOS E PECAS | B160: ASTU | C160: FORNEC E/OU ASSENT DE TUBO DE PVC COM JUNTA ELASTICA | D160: 0048 | G160: 90700 | H160: TUBO DE PVC PARA REDE COLETORA DE ESGOTO DE PAREDE MACIÇA, DN 400 MM, JUNTA ELÁSTICA FORNECIMENTO E ASSENTAMENTO. AF_01/2021 | I160: M | J160: COEFICIENTE DE REPRESENTATIVIDADE | K160: 437.19 | L160: CAIXA REFERENCIAL
A161: ASSENTAMENTO DE TUBOS E PECAS | B161: ASTU | C161: FORNEC E/OU ASSENT DE TUBO DE PVC COM JUNTA ELASTICA | D161: 0048 | G161: 90701 | H161: TUBO DE PVC CORRUGADO DE DUPLA PAREDE PARA REDE COLETORA DE ESGOTO, DN 150 MM, JUNTA ELÁSTICA - FORNECIMENTO E ASSENTAMENTO. AF_01/2021 | I161: M | J161: COEFICIENTE DE REPRESENTATIVIDADE | K161: 54.36 | L161: CAIXA REFERENCIAL
A162: ASSENTAMENTO DE TUBOS E PECAS | B162: ASTU | C162: FORNEC E/OU ASSENT DE TUBO DE PVC COM JUNTA ELASTICA | D162: 0048 | G162: 90702 | H162: TUBO DE PVC CORRUGADO DE DUPLA PAREDE PARA REDE COLETORA DE ESGOTO, DN 200 MM, JUNTA ELÁSTICA - FORNECIMENTO E ASSENTAMENTO. AF_01/2021 | I162: M | J162: COEFICIENTE DE REPRESENTATIVIDADE | K162: 89.38 | L162: CAIXA REFERENCIAL
A163: ASSENTAMENTO DE TUBOS E PECAS | B163: ASTU | C163: FORNEC E/OU ASSENT DE TUBO DE PVC COM JUNTA ELASTICA | D163: 0048 | G163: 90703 | H163: TUBO DE PVC CORRUGADO DE DUPLA PAREDE PARA REDE COLETORA DE ESGOTO, DN 250 MM, JUNTA ELÁSTICA - FORNECIMENTO E ASSENTAMENTO. AF_01/2021 | I163: M | J163: COEFICIENTE DE REPRESENTATIVIDADE | K163: 141.04 | L163: CAIXA REFERENCIAL
A164: ASSENTAMENTO DE TUBOS E PECAS | B164: ASTU | C164: FORNEC E/OU ASSENT DE TUBO DE PVC COM JUNTA ELASTICA | D164: 0048 | G164: 90704 | H164: TUBO DE PVC CORRUGADO DE DUPLA PAREDE PARA REDE COLETORA DE ESGOTO, DN 300 MM, JUNTA ELÁSTICA - FORNECIMENTO E ASSENTAMENTO. AF_01/2021 | I164: M | J164: COEFICIENTE DE REPRESENTATIVIDADE | K164: 212.1 | L164: CAIXA REFERENCIAL
A165: ASSENTAMENTO DE TUBOS E PECAS | B165: ASTU | C165: FORNEC E/OU ASSENT DE TUBO DE PVC COM JUNTA ELASTICA | D165: 0048 | G165: 90705 | H165: TUBO DE PVC CORRUGADO DE DUPLA PAREDE PARA REDE COLETORA DE ESGOTO, DN 350 MM, JUNTA ELÁSTICA - FORNECIMENTO E ASSENTAMENTO. AF_01/2021 | I165: M | J165: COEFICIENTE DE REPRESENTATIVIDADE | K165: 271.91 | L165: CAIXA REFERENCIAL
A166: ASSENTAMENTO DE TUBOS E PECAS | B166: ASTU | C166: FORNEC E/OU ASSENT DE TUBO DE PVC COM JUNTA ELASTICA | D166: 0048 | G166: 90706 | H166: TUBO DE PVC CORRUGADO DE DUPLA PAREDE PARA REDE COLETORA DE ESGOTO, DN 400 MM, JUNTA ELÁSTICA - FORNECIMENTO E ASSENTAMENTO. AF_01/2021 | I166: M | J166: COEFICIENTE DE REPRESENTATIVIDADE | K166: 361.81 | L166: CAIXA REFERENCIAL
A167: ASSENTAMENTO DE TUBOS E PECAS | B167: ASTU | C167: FORNEC E/OU ASSENT DE TUBO DE PVC COM JUNTA ELASTICA | D167: 0048 | G167: 90708 | H167: TUBO DE PEAD CORRUGADO DE DUPLA PAREDE PARA REDE COLETORA DE ESGOTO, DN 600 MM, JUNTA ELÁSTICA INTEGRADA - FORNECIMENTO E ASSENTAMENTO. AF_01/2021 | I167: M | J167: ATRIBUÍDO SÃO PAULO | K167: 843.07 | L167: CAIXA REFERENCIAL
A168: ASSENTAMENTO DE TUBOS E PECAS | B168: ASTU | C168: FORNEC E/OU ASSENT DE TUBO DE PVC COM JUNTA ELASTICA | D168: 0048 | G168: 90724 | H168: JUNTA ARGAMASSADA ENTRE TUBO DN 100 MM E O POÇO DE VISITA/ CAIXA DE CONCRETO OU ALVENARIA EM REDES DE ESGOTO. AF_01/2021 | I168: UN | J168: COEFICIENTE DE REPRESENTATIVIDADE | K168: 23.28 | L168: CAIXA REFERENCIAL
A169: ASSENTAMENTO DE TUBOS E PECAS | B169: ASTU | C169: FORNEC E/OU ASSENT DE TUBO DE PVC COM JUNTA ELASTICA | D169: 0048 | G169: 90725 | H169: JUNTA ARGAMASSADA ENTRE TUBO DN 150 MM E O POÇO DE VISITA/ CAIXA DE CONCRETO OU ALVENARIA EM REDES DE ESGOTO. AF_01/2021 | I169: UN | J169: COEFICIENTE DE REPRESENTATIVIDADE | K169: 28.65 | L169: CAIXA REFERENCIAL
A170: ASSENTAMENTO DE TUBOS E PECAS | B170: ASTU | C170: FORNEC E/OU ASSENT DE TUBO DE PVC COM JUNTA ELASTICA | D170: 0048 | G170: 90726 | H170: JUNTA ARGAMASSADA ENTRE TUBO DN 200 MM E O POÇO/ CAIXA DE CONCRETO OU ALVENARIA EM REDES DE ESGOTO. AF_01/2021 | I170: UN | J170: COEFICIENTE DE REPRESENTATIVIDADE | K170: 34.1 | L170: CAIXA REFERENCIAL
A171: ASSENTAMENTO DE TUBOS E PECAS | B171: ASTU | C171: FORNEC E/OU ASSENT DE TUBO DE PVC COM JUNTA ELASTICA | D171: 0048 | G171: 90727 | H171: JUNTA ARGAMASSADA ENTRE TUBO DN 250 MM E O POÇO DE VISITA/ CAIXA DE CONCRETO OU ALVENARIA EM REDES DE ESGOTO. AF_01/2021 | I171: UN | J171: COEFICIENTE DE REPRESENTATIVIDADE | K171: 39.47 | L171: CAIXA REFERENCIAL
A172: ASSENTAMENTO DE TUBOS E PECAS | B172: ASTU | C172: FORNEC E/OU ASSENT DE TUBO DE PVC COM JUNTA ELASTICA | D172: 0048 | G172: 90728 | H172: JUNTA ARGAMASSADA ENTRE TUBO DN 300 MM E O POÇO DE VISITA/ CAIXA DE CONCRETO OU ALVENARIA EM REDES DE ESGOTO. AF_01/2021 | I172: UN | J172: COEFICIENTE DE REPRESENTATIVIDADE | K172: 44.85 | L172: CAIXA REFERENCIAL
A173: ASSENTAMENTO DE TUBOS E PECAS | B173: ASTU | C173: FORNEC E/OU ASSENT DE TUBO DE PVC COM JUNTA ELASTICA | D173: 0048 | G173: 90729 | H173: JUNTA ARGAMASSADA ENTRE TUBO DN 350 MM E O POÇO DE VISITA/ CAIXA DE CONCRETO OU ALVENARIA EM REDES DE ESGOTO. AF_01/2021 | I173: UN | J173: COEFICIENTE DE REPRESENTATIVIDADE | K173: 50.22 | L173: CAIXA REFERENCIAL
A174: ASSENTAMENTO DE TUBOS E PECAS | B174: ASTU | C174: FORNEC E/OU ASSENT DE TUBO DE PVC COM JUNTA ELASTICA | D174: 0048 | G174: 90730 | H174: JUNTA ARGAMASSADA ENTRE TUBO DN 400 MM E O POÇO DE VISITA/ CAIXA DE CONCRETO OU ALVENARIA EM REDES DE ESGOTO. AF_01/2021 | I174: UN | J174: COEFICIENTE DE REPRESENTATIVIDADE | K174: 55.6 | L174: CAIXA REFERENCIAL
A175: ASSENTAMENTO DE TUBOS E PECAS | B175: ASTU | C175: FORNEC E/OU ASSENT DE TUBO DE PVC COM JUNTA ELASTICA | D175: 0048 | G175: 90731 | H175: JUNTA ARGAMASSADA ENTRE TUBO DN 450 MM E O POÇO DE VISITA/ CAIXA DE CONCRETO OU ALVENARIA EM REDES DE ESGOTO. AF_01/2021 | I175: UN | J175: COEFICIENTE DE REPRESENTATIVIDADE | K175: 60.97 | L175: CAIXA REFERENCIAL
A176: ASSENTAMENTO DE TUBOS E PECAS | B176: ASTU | C176: FORNEC E/OU ASSENT DE TUBO DE PVC COM JUNTA ELASTICA | D176: 0048 | G176: 90732 | H176: JUNTA ARGAMASSADA ENTRE TUBO DN 600 MM E O POÇO DE VISITA/ CAIXA DE CONCRETO OU ALVENARIA EM REDES DE ESGOTO. AF_01/2021 | I176: UN | J176: COEFICIENTE DE REPRESENTATIVIDADE | K176: 77.1 | L176: CAIXA REFERENCIAL
A177: ASSENTAMENTO DE TUBOS E PECAS | B177: ASTU | C177: FORNEC E/OU ASSENT DE TUBO DE PVC COM JUNTA ELASTICA | D177: 0048 | G177: 90733 | H177: ASSENTAMENTO DE TUBO DE PVC PARA REDE COLETORA DE ESGOTO DE PAREDE MACIÇA, DN 100 MM, JUNTA ELÁSTICA (NÃO INCLUI FORNECIMENTO). AF_01/2021 | I177: M | J177: COEFICIENTE DE REPRESENTATIVIDADE | K177: 3.27 | L177: CAIXA REFERENCIAL
A178: ASSENTAMENTO DE TUBOS E PECAS | B178: ASTU | C178: FORNEC E/OU ASSENT DE TUBO DE PVC COM JUNTA ELASTICA | D178: 0048 | G178: 90734 | H178: ASSENTAMENTO DE TUBO DE PVC PARA REDE COLETORA DE ESGOTO DE PAREDE MACIÇA, DN 150 MM, JUNTA ELÁSTICA, (NÃO INCLUI FORNECIMENTO). AF_01/2021 | I178: M | J178: COEFICIENTE DE REPRESENTATIVIDADE | K178: 3.87 | L178: CAIXA REFERENCIAL
A179: ASSENTAMENTO DE TUBOS E PECAS | B179: ASTU | C179: FORNEC E/OU ASSENT DE TUBO DE PVC COM JUNTA ELASTICA | D179: 0048 | G179: 90735 | H179: ASSENTAMENTO DE TUBO DE PVC PARA REDE COLETORA DE ESGOTO DE PAREDE MACIÇA, DN 200 MM, JUNTA ELÁSTICA (NÃO INCLUI FORNECIMENTO). AF_01/2021 | I179: M | J179: COEFICIENTE DE REPRESENTATIVIDADE | K179: 4.47 | L179: CAIXA REFERENCIAL
A180: ASSENTAMENTO DE TUBOS E PECAS | B180: ASTU | C180: FORNEC E/OU ASSENT DE TUBO DE PVC COM JUNTA ELASTICA | D180: 0048 | G180: 90736 | H180: ASSENTAMENTO DE TUBO DE PVC PARA REDE COLETORA DE ESGOTO DE PAREDE MACIÇA, DN 250 MM, JUNTA ELÁSTICA (NÃO INCLUI FORNECIMENTO). AF_01/2021 | I180: M | J180: COEFICIENTE DE REPRESENTATIVIDADE | K180: 5.08 | L180: CAIXA REFERENCIAL
A181: ASSENTAMENTO DE TUBOS E PECAS | B181: ASTU | C181: FORNEC E/OU ASSENT DE TUBO DE PVC COM JUNTA ELASTICA | D181: 0048 | G181: 90737 | H181: ASSENTAMENTO DE TUBO DE PVC PARA REDE COLETORA DE ESGOTO DE PAREDE MACIÇA, DN 300 MM, JUNTA ELÁSTICA (NÃO INCLUI FORNECIMENTO). AF_01/2021 | I181: M | J181: COEFICIENTE DE REPRESENTATIVIDADE | K181: 5.68 | L181: CAIXA REFERENCIAL
A182: ASSENTAMENTO DE TUBOS E PECAS | B182: ASTU | C182: FORNEC E/OU ASSENT DE TUBO DE PVC COM JUNTA ELASTICA | D182: 0048 | G182: 90738 | H182: ASSENTAMENTO DE TUBO DE PVC PARA REDE COLETORA DE ESGOTO DE PAREDE MACIÇA, DN 350 MM, JUNTA ELÁSTICA (NÃO INCLUI FORNECIMENTO). AF_01/2021 | I182: M | J182: COEFICIENTE DE REPRESENTATIVIDADE | K182: 6.29 | L182: CAIXA REFERENCIAL
A183: ASSENTAMENTO DE TUBOS E PECAS | B183: ASTU | C183: FORNEC E/OU ASSENT DE TUBO DE PVC COM JUNTA ELASTICA | D183: 0048 | G183: 90739 | H183: ASSENTAMENTO DE TUBO DE PVC PARA REDE COLETORA DE ESGOTO DE PAREDE MACIÇA, DN 400 MM, JUNTA ELÁSTICA (NÃO INCLUI FORNECIMENTO). AF_01/2021 | I183: M | J183: COEFICIENTE DE REPRESENTATIVIDADE | K183: 9.61 | L183: CAIXA REFERENCIAL
A184: ASSENTAMENTO DE TUBOS E PECAS | B184: ASTU | C184: FORNEC E/OU ASSENT DE TUBO DE PVC COM JUNTA ELASTICA | D184: 0048 | G184: 90740 | H184: ASSENTAMENTO DE TUBO DE PVC CORRUGADO DE DUPLA PAREDE PARA REDE COLETORA DE ESGOTO, DN 150 MM, JUNTA ELÁSTICA (NÃO INCLUI FORNECIMENTO). AF_01/2021 | I184: M | J184: COEFICIENTE DE REPRESENTATIVIDADE | K184: 4.32 | L184: CAIXA REFERENCIAL
A185: ASSENTAMENTO DE TUBOS E PECAS | B185: ASTU | C185: FORNEC E/OU ASSENT DE TUBO DE PVC COM JUNTA ELASTICA | D185: 0048 | G185: 90741 | H185: ASSENTAMENTO DE TUBO DE PVC CORRUGADO DE DUPLA PAREDE PARA REDE COLETORA DE ESGOTO, DN 200 MM, JUNTA ELÁSTICA (NÃO INCLUI FORNECIMENTO). AF_01/2021 | I185: M | J185: COEFICIENTE DE REPRESENTATIVIDADE | K185: 4.92 | L185: CAIXA REFERENCIAL
A186: ASSENTAMENTO DE TUBOS E PECAS | B186: ASTU | C186: FORNEC E/OU ASSENT DE TUBO DE PVC COM JUNTA ELASTICA | D186: 0048 | G186: 90742 | H186: ASSENTAMENTO DE TUBO DE PVC CORRUGADO DE DUPLA PAREDE PARA REDE COLETORA DE ESGOTO, DN 250 MM, JUNTA ELÁSTICA (NÃO INCLUI FORNECIMENTO). AF_01/2021 | I186: M | J186: COEFICIENTE DE REPRESENTATIVIDADE | K186: 5.52 | L186: CAIXA REFERENCIAL
A187: ASSENTAMENTO DE TUBOS E PECAS | B187: ASTU | C187: FORNEC E/OU ASSENT DE TUBO DE PVC COM JUNTA ELASTICA | D187: 0048 | G187: 90743 | H187: ASSENTAMENTO DE TUBO DE PVC CORRUGADO DE DUPLA PAREDE PARA REDE COLETORA DE ESGOTO, DN 300 MM, JUNTA ELÁSTICA (NÃO INCLUI FORNECIMENTO). AF_01/2021 | I187: M | J187: COEFICIENTE DE REPRESENTATIVIDADE | K187: 6.12 | L187: CAIXA REFERENCIAL
A188: ASSENTAMENTO DE TUBOS E PECAS | B188: ASTU | C188: FORNEC E/OU ASSENT DE TUBO DE PVC COM JUNTA ELASTICA | D188: 0048 | G188: 90744 | H188: ASSENTAMENTO DE TUBO DE PVC CORRUGADO DE DUPLA PAREDE PARA REDE COLETORA DE ESGOTO, DN 350 MM, JUNTA ELÁSTICA (NÃO INCLUI FORNECIMENTO). AF_01/2021 | I188: M | J188: COEFICIENTE DE REPRESENTATIVIDADE | K188: 6.74 | L188: CAIXA REFERENCIAL
A189: ASSENTAMENTO DE TUBOS E PECAS | B189: ASTU | C189: FORNEC E/OU ASSENT DE TUBO DE PVC COM JUNTA ELASTICA | D189: 0048 | G189: 90745 | H189: ASSENTAMENTO DE TUBO DE PVC CORRUGADO DE DUPLA PAREDE PARA REDE COLETORA DE ESGOTO, DN 400 MM, JUNTA ELÁSTICA (NÃO INCLUI FORNECIMENTO). AF_01/2021 | I189: M | J189: COEFICIENTE DE REPRESENTATIVIDADE | K189: 10.73 | L189: CAIXA REFERENCIAL
A190: ASSENTAMENTO DE TUBOS E PECAS | B190: ASTU | C190: FORNEC E/OU ASSENT DE TUBO DE PVC COM JUNTA ELASTICA | D190: 0048 | G190: 90746 | H190: ASSENTAMENTO DE TUBO DE PEAD CORRUGADO DE DUPLA PAREDE PARA REDE COLETORA DE ESGOTO, DN 450 MM, JUNTA ELÁSTICA INTEGRADA (NÃO INCLUI FORNECIMENTO). AF_01/2021 | I190: M | J190: COEFICIENTE DE REPRESENTATIVIDADE | K190: 3.53 | L190: CAIXA REFERENCIAL
A191: ASSENTAMENTO DE TUBOS E PECAS | B191: ASTU | C191: FORNEC E/OU ASSENT DE TUBO DE PVC COM JUNTA ELASTICA | D191: 0048 | G191: 90747 | H191: ASSENTAMENTO DE TUBO DE PEAD CORRUGADO DE DUPLA PAREDE PARA REDE COLETORA DE ESGOTO, DN 600 MM, JUNTA ELÁSTICA INTEGRADA (NÃO INCLUI FORNECIMENTO). AF_01/2021 | I191: M | J191: COEFICIENTE DE REPRESENTATIVIDADE | K191: 17.38 | L191: CAIXA REFERENCIAL
A192: ASSENTAMENTO DE TUBOS E PECAS | B192: ASTU | C192: FORNEC E/OU ASSENT DE TUBO DE PVC COM JUNTA ELASTICA | D192: 0048 | G192: 94869 | H192: TUBO DE PEAD CORRUGADO DE DUPLA PAREDE PARA REDE COLETORA DE ESGOTO, DN 250 MM, JUNTA ELÁSTICA INTEGRADA - FORNECIMENTO E ASSENTAMENTO. AF_01/2021 | I192: M | J192: ATRIBUÍDO SÃO PAULO | K192: 148.61 | L192: CAIXA REFERENCIAL
A193: ASSENTAMENTO DE TUBOS E PECAS | B193: ASTU | C193: FORNEC E/OU ASSENT DE TUBO DE PVC COM JUNTA ELASTICA | D193: 0048 | G193: 94870 | H193: ASSENTAMENTO DE TUBO DE PEAD CORRUGADO DE DUPLA PAREDE PARA REDE COLETORA DE ESGOTO, DN 250 MM, JUNTA ELÁSTICA INTEGRADA (NÃO INCLUI FORNECIMENTO). AF_01/2021 | I193: M | J193: COEFICIENTE DE REPRESENTATIVIDADE | K193: 1.79 | L193: CAIXA REFERENCIAL
A194: ASSENTAMENTO DE TUBOS E PECAS | B194: ASTU | C194: FORNEC E/OU ASSENT DE TUBO DE PVC COM JUNTA ELASTICA | D194: 0048 | G194: 94871 | H194: TUBO DE PEAD CORRUGADO DE DUPLA PAREDE PARA REDE COLETORA DE ESGOTO, DN 300 MM, JUNTA ELÁSTICA INTEGRADA - FORNECIMENTO E ASSENTAMENTO. AF_01/2021 | I194: M | J194: ATRIBUÍDO SÃO PAULO | K194: 232.55 | L194: CAIXA REFERENCIAL
A195: ASSENTAMENTO DE TUBOS E PECAS | B195: ASTU | C195: FORNEC E/OU ASSENT DE TUBO DE PVC COM JUNTA ELASTICA | D195: 0048 | G195: 94872 | H195: ASSENTAMENTO DE TUBO DE PEAD CORRUGADO DE DUPLA PAREDE PARA REDE COLETORA DE ESGOTO, DN 300 MM, JUNTA ELÁSTICA INTEGRADA (NÃO INCLUI FORNECIMENTO). AF_01/2021 | I195: M | J195: COEFICIENTE DE REPRESENTATIVIDADE | K195: 2.53 | L195: CAIXA REFERENCIAL
A196: ASSENTAMENTO DE TUBOS E PECAS | B196: ASTU | C196: FORNEC E/OU ASSENT DE TUBO DE PVC COM JUNTA ELASTICA | D196: 0048 | G196: 94875 | H196: TUBO DE PEAD CORRUGADO DE DUPLA PAREDE PARA REDE COLETORA DE ESGOTO, DN 800 MM, JUNTA ELÁSTICA INTEGRADA - FORNECIMENTO E ASSENTAMENTO. AF_01/2021 | I196: M | J196: ATRIBUÍDO SÃO PAULO | K196: 1369.13 | L196: CAIXA REFERENCIAL
A197: ASSENTAMENTO DE TUBOS E PECAS | B197: ASTU | C197: FORNEC E/OU ASSENT DE TUBO DE PVC COM JUNTA ELASTICA | D197: 0048 | G197: 94876 | H197: ASSENTAMENTO DE TUBO DE PEAD CORRUGADO DE DUPLA PAREDE PARA REDE COLETORA DE ESGOTO, DN 800 MM, JUNTA ELÁSTICA INTEGRADA (NÃO INCLUI FORNECIMENTO). AF_01/2021 | I197: M | J197: COEFICIENTE DE REPRESENTATIVIDADE | K197: 28.87 | L197: CAIXA REFERENCIAL
A198: ASSENTAMENTO DE TUBOS E PECAS | B198: ASTU | C198: FORNEC E/OU ASSENT DE TUBO DE PVC COM JUNTA ELASTICA | D198: 0048 | G198: 94878 | H198: ASSENTAMENTO DE TUBO DE PEAD CORRUGADO DE DUPLA PAREDE PARA REDE COLETORA DE ESGOTO, DN 900 MM, JUNTA ELÁSTICA INTEGRADA (NÃO INCLUI FORNECIMENTO). AF_01/2021 | I198: M | J198: COEFICIENTE DE REPRESENTATIVIDADE | K198: 33.44 | L198: CAIXA REFERENCIAL
A199: ASSENTAMENTO DE TUBOS E PECAS | B199: ASTU | C199: FORNEC E/OU ASSENT DE TUBO DE PVC COM JUNTA ELASTICA | D199: 0048 | G199: 94879 | H199: TUBO DE PEAD CORRUGADO DE DUPLA PAREDE PARA REDE COLETORA DE ESGOTO, DN 1000 MM, JUNTA ELÁSTICA INTEGRADA - FORNECIMENTO E ASSENTAMENTO. AF_01/2021 | I199: M | J199: ATRIBUÍDO SÃO PAULO | K199: 2107.57 | L199: CAIXA REFERENCIAL
A200: ASSENTAMENTO DE TUBOS E PECAS | B200: ASTU | C200: FORNEC E/OU ASSENT DE TUBO DE PVC COM JUNTA ELASTICA | D200: 0048 | G200: 94880 | H200: ASSENTAMENTO DE TUBO DE PEAD CORRUGADO DE DUPLA PAREDE PARA REDE COLETORA DE ESGOTO, DN 1000 MM, JUNTA ELÁSTICA INTEGRADA (NÃO INCLUI FORNECIMENTO). AF_01/2021 | I200: M | J200: COEFICIENTE DE REPRESENTATIVIDADE | K200: 42.93 | L200: CAIXA REFERENCIAL
A201: ASSENTAMENTO DE TUBOS E PECAS | B201: ASTU | C201: FORNEC E/OU ASSENT DE TUBO DE PVC COM JUNTA ELASTICA | D201: 0048 | G201: 94881 | H201: TUBO DE PEAD CORRUGADO DE DUPLA PAREDE PARA REDE COLETORA DE ESGOTO, DN 1200 MM, JUNTA ELÁSTICA INTEGRADA - FORNECIMENTO E ASSENTAMENTO. AF_01/2021 | I201: M | J201: ATRIBUÍDO SÃO PAULO | K201: 2903.43 | L201: CAIXA REFERENCIAL
A202: ASSENTAMENTO DE TUBOS E PECAS | B202: ASTU | C202: FORNEC E/OU ASSENT DE TUBO DE PVC COM JUNTA ELASTICA | D202: 0048 | G202: 94882 | H202: ASSENTAMENTO DE TUBO DE PEAD CORRUGADO DE DUPLA PAREDE PARA REDE COLETORA DE ESGOTO, DN 1200 MM, JUNTA ELÁSTICA INTEGRADA (NÃO INCLUI FORNECIMENTO). AF_01/2021 | I202: M | J202: COEFICIENTE DE REPRESENTATIVIDADE | K202: 49.97 | L202: CAIXA REFERENCIAL
... 7443 more rows

Sheet ins sinapi nao des (hidden)
A1: PRECOS DE INSUMOS - BANCO NACIONAL
A3: MES DE COLETA: 08/2024
A4: LOCALIDADE: 1250 - RECIFE
A5: ENCARGOS SOCIAIS (%) HORISTA 113,98 MENSALISTA 70,00
A7: CODIGO | B7: DESCRICAO DO INSUMO | C7: UNIDADE DE MEDIDA | D7: ORIGEM DO PRECO | E7: PRECO MEDIANO R$
A8: 38605 | B8: ABERTURA PARA ENCAIXE DE CUBA OU LAVATORIO EM BANCADA DE MARMORE/ GRANITO OU OUTRO TIPO DE PEDRA NATURAL | C8: UN | D8: CR | E8: 159.92
A9: 11270 | B9: ABRACADEIRA DE LATAO PARA FIXACAO DE CABO PARA-RAIO, DIMENSOES 32 X 24 X 24 MM | C9: UN | D9: CR | E9: 4.34
A10: 412 | B10: ABRACADEIRA DE NYLON PARA AMARRACAO DE CABOS, COMPRIMENTO DE *230* X *7,6* MM | C10: UN | D10: CR | E10: 1.18
A11: 414 | B11: ABRACADEIRA DE NYLON PARA AMARRACAO DE CABOS, COMPRIMENTO DE 100 X 2,5 MM | C11: UN | D11: CR | E11: 0.07
A12: 410 | B12: ABRACADEIRA DE NYLON PARA AMARRACAO DE CABOS, COMPRIMENTO DE 150 X *3,6* MM | C12: UN | D12: CR | E12: 0.18
A13: 411 | B13: ABRACADEIRA DE NYLON PARA AMARRACAO DE CABOS, COMPRIMENTO DE 200 X *4,6* MM | C13: UN | D13: C | E13: 0.23
A14: 408 | B14: ABRACADEIRA DE NYLON PARA AMARRACAO DE CABOS, COMPRIMENTO DE 390 X *4,6* MM | C14: UN | D14: CR | E14: 1.14
A15: 39131 | B15: ABRACADEIRA EM ACO PARA AMARRACAO DE ELETRODUTOS, TIPO D, COM 1 1/2" E CUNHA DE FIXACAO | C15: UN | D15: CR | E15: 5.95
A16: 394 | B16: ABRACADEIRA EM ACO PARA AMARRACAO DE ELETRODUTOS, TIPO D, COM 1 1/2" E PARAFUSO DE FIXACAO | C16: UN | D16: CR | E16: 6.03
A17: 39130 | B17: ABRACADEIRA EM ACO PARA AMARRACAO DE ELETRODUTOS, TIPO D, COM 1 1/4" E CUNHA DE FIXACAO | C17: UN | D17: CR | E17: 5.43
A18: 395 | B18: ABRACADEIRA EM ACO PARA AMARRACAO DE ELETRODUTOS, TIPO D, COM 1 1/4" E PARAFUSO DE FIXACAO | C18: UN | D18: CR | E18: 5.8
A19: 39127 | B19: ABRACADEIRA EM ACO PARA AMARRACAO DE ELETRODUTOS, TIPO D, COM 1/2" E CUNHA DE FIXACAO | C19: UN | D19: CR | E19: 2.86
A20: 392 | B20: ABRACADEIRA EM ACO PARA AMARRACAO DE ELETRODUTOS, TIPO D, COM 1/2" E PARAFUSO DE FIXACAO | C20: UN | D20: CR | E20: 2.94
A21: 39129 | B21: ABRACADEIRA EM ACO PARA AMARRACAO DE ELETRODUTOS, TIPO D, COM 1" E CUNHA DE FIXACAO | C21: UN | D21: CR | E21: 3.35
A22: 393 | B22: ABRACADEIRA EM ACO PARA AMARRACAO DE ELETRODUTOS, TIPO D, COM 1" E PARAFUSO DE FIXACAO | C22: UN | D22: C | E22: 3.5
A23: 39133 | B23: ABRACADEIRA EM ACO PARA AMARRACAO DE ELETRODUTOS, TIPO D, COM 2 1/2" E CUNHA DE FIXACAO | C23: UN | D23: CR | E23: 7.81
A24: 397 | B24: ABRACADEIRA EM ACO PARA AMARRACAO DE ELETRODUTOS, TIPO D, COM 2 1/2" E PARAFUSO DE FIXACAO | C24: UN | D24: CR | E24: 8.63
A25: 39132 | B25: ABRACADEIRA EM ACO PARA AMARRACAO DE ELETRODUTOS, TIPO D, COM 2" E CUNHA DE FIXACAO | C25: UN | D25: CR | E25: 6.25
A26: 396 | B26: ABRACADEIRA EM ACO PARA AMARRACAO DE ELETRODUTOS, TIPO D, COM 2" E PARAFUSO DE FIXACAO | C26: UN | D26: CR | E26: 6.7
A27: 39135 | B27: ABRACADEIRA EM ACO PARA AMARRACAO DE ELETRODUTOS, TIPO D, COM 3 1/2" E CUNHA DE FIXACAO | C27: UN | D27: CR | E27: 12.51
A28: 39128 | B28: ABRACADEIRA EM ACO PARA AMARRACAO DE ELETRODUTOS, TIPO D, COM 3/4" E CUNHA DE FIXACAO | C28: UN | D28: CR | E28: 3.12
A29: 400 | B29: ABRACADEIRA EM ACO PARA AMARRACAO DE ELETRODUTOS, TIPO D, COM 3/4" E PARAFUSO DE FIXACAO | C29: UN | D29: CR | E29: 3.05
A30: 39125 | B30: ABRACADEIRA EM ACO PARA AMARRACAO DE ELETRODUTOS, TIPO D, COM 3/8" E PARAFUSO DE FIXACAO | C30: UN | D30: CR | E30: 3.12
A31: 39134 | B31: ABRACADEIRA EM ACO PARA AMARRACAO DE ELETRODUTOS, TIPO D, COM 3" E CUNHA DE FIXACAO | C31: UN | D31: CR | E31: 10.42
A32: 398 | B32: ABRACADEIRA EM ACO PARA AMARRACAO DE ELETRODUTOS, TIPO D, COM 3" E PARAFUSO DE FIXACAO | C32: UN | D32: CR | E32: 9.6
A33: 39126 | B33: ABRACADEIRA EM ACO PARA AMARRACAO DE ELETRODUTOS, TIPO D, COM 4" E CUNHA DE FIXACAO | C33: UN | D33: CR | E33: 14.07
A34: 399 | B34: ABRACADEIRA EM ACO PARA AMARRACAO DE ELETRODUTOS, TIPO D, COM 4" E PARAFUSO DE FIXACAO | C34: UN | D34: CR | E34: 12.39
A35: 39158 | B35: ABRACADEIRA EM ACO PARA AMARRACAO DE ELETRODUTOS, TIPO ECONOMICA (GOTA), COM 8" | C35: UN | D35: CR | E35: 33.28
A36: 39141 | B36: ABRACADEIRA EM ACO PARA AMARRACAO DE ELETRODUTOS, TIPO U SIMPLES, COM 1 1/2" | C36: UN | D36: CR | E36: 2.42
A37: 39140 | B37: ABRACADEIRA EM ACO PARA AMARRACAO DE ELETRODUTOS, TIPO U SIMPLES, COM 1 1/4" | C37: UN | D37: CR | E37: 2.19
A38: 39137 | B38: ABRACADEIRA EM ACO PARA AMARRACAO DE ELETRODUTOS, TIPO U SIMPLES, COM 1/2" | C38: UN | D38: CR | E38: 1.26
A39: 39139 | B39: ABRACADEIRA EM ACO PARA AMARRACAO DE ELETRODUTOS, TIPO U SIMPLES, COM 1" | C39: UN | D39: CR | E39: 1.82
A40: 39143 | B40: ABRACADEIRA EM ACO PARA AMARRACAO DE ELETRODUTOS, TIPO U SIMPLES, COM 2 1/2" | C40: UN | D40: CR | E40: 4.98
A41: 39142 | B41: ABRACADEIRA EM ACO PARA AMARRACAO DE ELETRODUTOS, TIPO U SIMPLES, COM 2" | C41: UN | D41: CR | E41: 3.57
A42: 39138 | B42: ABRACADEIRA EM ACO PARA AMARRACAO DE ELETRODUTOS, TIPO U SIMPLES, COM 3/4" | C42: UN | D42: CR | E42: 1.34
A43: 39136 | B43: ABRACADEIRA EM ACO PARA AMARRACAO DE ELETRODUTOS, TIPO U SIMPLES, COM 3/8" | C43: UN | D43: CR | E43: 0.89
A44: 39144 | B44: ABRACADEIRA EM ACO PARA AMARRACAO DE ELETRODUTOS, TIPO U SIMPLES, COM 3" | C44: UN | D44: CR | E44: 5.8
A45: 39145 | B45: ABRACADEIRA EM ACO PARA AMARRACAO DE ELETRODUTOS, TIPO U SIMPLES, COM 4" | C45: UN | D45: CR | E45: 9.56
A46: 12615 | B46: ABRACADEIRA PVC, PARA CALHA PLUVIAL, DIAMETRO ENTRE *80 E 100* MM, PARA DRENAGEM PLUVIAL PREDIAL | C46: UN | D46: CR | E46: 9.59
A47: 11927 | B47: ABRACADEIRA, GALVANIZADA/ZINCADA, ROSCA SEM FIM, PARAFUSO INOX, LARGURA FITA *12,6 A *14 MM, D = 2" A 2 1/2" | C47: UN | D47: CR | E47: 12.96
A48: 11928 | B48: ABRACADEIRA, GALVANIZADA/ZINCADA, ROSCA SEM FIM, PARAFUSO INOX, LARGURA FITA *12,6 A *14 MM, D = 3" A 3 3/4" | C48: UN | D48: CR | E48: 14.85
A49: 11929 | B49: ABRACADEIRA, GALVANIZADA/ZINCADA, ROSCA SEM FIM, PARAFUSO INOX, LARGURA FITA *12,6 A *14 MM, D = 4" A 4 3/4" | C49: UN | D49: CR | E49: 22.97
A50: 36801 | B50: ACABAMENTO DE METAL CROMADO PARA REGISTRO PEQUENO, DE PAREDE, 1/2" OU 3/4" | C50: UN | D50: CR | E50: 36.49
A51: 36246 | B51: ACABAMENTO SIMPLES/CONVENCIONAL PARA FORRO PVC, TIPO "U" OU "C", COR BRANCA, COMPRIMENTO 6 M | C51: M | D51: CR | E51: 4.06
A52: 37600 | B52: ACESSORIO DE LIGACAO NAO ELETRICO PARA CARGAS EXPLOSIVAS, TUBO DE 6 M | C52: UN | D52: AS | E52: 104.86
A53: 37599 | B53: ACESSORIO INICIADOR NAO ELETRICO, TUBO DE 6 M, TEMPO DE RETARDO DE *160* MS | C53: UN | D53: AS | E53: 97.6
A54: 1 | B54: ACETILENO (RECARGA DE GAS ACETILENO PARA CILINDRO DE CONJUNTO OXICORTE GRANDE) NAO INCLUI TROCA/MANUTENCAO DO CILINDRO | C54: KG | D54: AS | E54: 95
A55: 3 | B55: ACIDO CLORIDRICO / ACIDO MURIATICO, DILUICAO 10% A 12% PARA USO EM LIMPEZA | C55: L | D55: CR | E55: 24.13
A56: 43054 | B56: ACO CA-25, 10,0 MM, OU 12,5 MM, OU 16,0 MM, OU 20,0 MM, OU 25,0 MM, VERGALHAO | C56: KG | D56: CR | E56: 8.28
A57: 42402 | B57: ACO CA-25, 16,0 MM, BARRA DE TRANSFERENCIA | C57: KG | D57: CR | E57: 7.92
A58: 42403 | B58: ACO CA-25, 20,0 MM, BARRA DE TRANSFERENCIA | C58: KG | D58: CR | E58: 10.16
A59: 42404 | B59: ACO CA-25, 25,0 MM, BARRA DE TRANSFERENCIA | C59: KG | D59: CR | E59: 10.1
A60: 42405 | B60: ACO CA-25, 32,0 MM, BARRA DE TRANSFERENCIA | C60: KG | D60: CR | E60: 10.76
A61: 34341 | B61: ACO CA-25, 32,0 MM, VERGALHAO | C61: KG | D61: CR | E61: 9.34
A62: 43053 | B62: ACO CA-25, 6,3 MM OU 8,0 MM, VERGALHAO | C62: KG | D62: CR | E62: 7.4
A63: 43058 | B63: ACO CA-50, 10,0 MM, OU 12,5 MM, OU 16,0 MM, OU 20,0 MM, DOBRADO E CORTADO | C63: KG | D63: CR | E63: 7.67
A64: 34 | B64: ACO CA-50, 10,0 MM, VERGALHAO | C64: KG | D64: CR | E64: 7.71
A65: 43055 | B65: ACO CA-50, 12,5 MM OU 16,0 MM, VERGALHAO | C65: KG | D65: C | E65: 6.68
A66: 43056 | B66: ACO CA-50, 20,0 MM OU 25,0 MM, VERGALHAO | C66: KG | D66: CR | E66: 7.7
A67: 43057 | B67: ACO CA-50, 32,0 MM, VERGALHAO | C67: KG | D67: CR | E67: 8.46
A68: 34449 | B68: ACO CA-50, 6,3 MM, DOBRADO E CORTADO | C68: KG | D68: CR | E68: 9.05
A69: 32 | B69: ACO CA-50, 6,3 MM, VERGALHAO | C69: KG | D69: CR | E69: 8.13
A70: 33 | B70: ACO CA-50, 8,0 MM, VERGALHAO | C70: KG | D70: CR | E70: 8.18
A71: 43061 | B71: ACO CA-60, 4,2 MM OU 5,0 MM, DOBRADO E CORTADO | C71: KG | D71: CR | E71: 7.64
A72: 43059 | B72: ACO CA-60, 4,2 MM, OU 5,0 MM, OU 6,0 MM, OU 7,0 MM, VERGALHAO | C72: KG | D72: CR | E72: 7.3
A73: 43062 | B73: ACO CA-60, 6,0 MM OU 7,0 MM, DOBRADO E CORTADO | C73: KG | D73: CR | E73: 8.09
A74: 43060 | B74: ACO CA-60, 8,0 MM OU 9,5 MM, VERGALHAO | C74: KG | D74: CR | E74: 6.36
A75: 40410 | B75: ACOPLAMENTO RIGIDO EM FERRO FUNDIDO PARA SISTEMA DE TUBULACAO RANHURADA, DN 50 MM (2") | C75: UN | D75: AS | E75: 19.19
A76: 40411 | B76: ACOPLAMENTO RIGIDO EM FERRO FUNDIDO PARA SISTEMA DE TUBULACAO RANHURADA, DN 65 MM (2 1/2") | C76: UN | D76: AS | E76: 20.82
A77: 40412 | B77: ACOPLAMENTO RIGIDO EM FERRO FUNDIDO PARA SISTEMA DE TUBULACAO RANHURADA, DN 80 MM (3") | C77: UN | D77: AS | E77: 23.37
A78: 44254 | B78: ADAPTADOR CPVC, ROSCAVEL, COM FLANGES E ANEL DE VEDACAO, 15 MM, CAIXA D'AGUA PARA AGUA QUENTE | C78: UN | D78: CR | E78: 24.09
A79: 44255 | B79: ADAPTADOR CPVC, ROSCAVEL, COM FLANGES E ANEL DE VEDACAO, 22 MM, CAIXA D'AGUA PARA AGUA QUENTE | C79: UN | D79: CR | E79: 26.7
A80: 44256 | B80: ADAPTADOR CPVC, ROSCAVEL, COM FLANGES E ANEL DE VEDACAO, 28 MM, CAIXA D'AGUA PARA AGUA QUENTE | C80: UN | D80: CR | E80: 30.16
A81: 44257 | B81: ADAPTADOR CPVC, ROSCAVEL, COM FLANGES E ANEL DE VEDACAO, 35 MM, CAIXA D'AGUA PARA AGUA QUENTE | C81: UN | D81: CR | E81: 47.72
A82: 44258 | B82: ADAPTADOR CPVC, ROSCAVEL, COM FLANGES E ANEL DE VEDACAO, 42 MM, CAIXA D'AGUA PARA AGUA QUENTE | C82: UN | D82: CR | E82: 54.53
A83: 44259 | B83: ADAPTADOR CPVC, ROSCAVEL, COM FLANGES E ANEL DE VEDACAO, 54 MM, CAIXA D'AGUA PARA AGUA QUENTE | C83: UN | D83: CR | E83: 74.85
A84: 37997 | B84: ADAPTADOR CPVC, SOLDAVEL, 15 MM, PARA AGUA QUENTE | C84: UN | D84: CR | E84: 14.36
A85: 37998 | B85: ADAPTADOR CPVC, SOLDAVEL, 22 MM, PARA AGUA QUENTE | C85: UN | D85: CR | E85: 19.21
A86: 55 | B86: ADAPTADOR DE COMPRESSAO EM POLIPROPILENO (PP), PARA TUBO EM PEAD, 20 MM X 1/2", PARA LIGACAO PREDIAL DE AGUA (NTS 179) | C86: UN | D86: AS | E86: 4.17
A87: 61 | B87: ADAPTADOR DE COMPRESSAO EM POLIPROPILENO (PP), PARA TUBO EM PEAD, 20 MM X 3/4", PARA LIGACAO PREDIAL DE AGUA (NTS 179) | C87: UN | D87: AS | E87: 3.94
A88: 62 | B88: ADAPTADOR DE COMPRESSAO EM POLIPROPILENO (PP), PARA TUBO EM PEAD, 32 MM X 1", PARA LIGACAO PREDIAL DE AGUA (NTS 179) | C88: UN | D88: AS | E88: 8.17
A89: 10899 | B89: ADAPTADOR EM LATAO, ENGATE RAPIDO 2 1/2" X ROSCA INTERNA 5 FIOS 2 1/2", PARA INSTALACAO PREDIAL DE COMBATE A INCENDIO | C89: UN | D89: CR | E89: 109.52
A90: 10900 | B90: ADAPTADOR EM LATAO, ENGATE RAPIDO1 1/2" X ROSCA INTERNA 5 FIOS 2 1/2", PARA INSTALACAO PREDIAL DE COMBATE A INCENDIO | C90: UN | D90: CR | E90: 85.71
A91: 47 | B91: ADAPTADOR PVC PBA, BOLSA/ROSCA, JE, DN 100 / DE 110 MM | C91: UN | D91: AS | E91: 60.45
A92: 48 | B92: ADAPTADOR PVC PBA, BOLSA/ROSCA, JE, DN 50 / DE 60 MM | C92: UN | D92: AS | E92: 15.77
A93: 46 | B93: ADAPTADOR PVC PBA, BOLSA/ROSCA, JE, DN 75 / DE 85 MM | C93: UN | D93: AS | E93: 35.35
A94: 52 | B94: ADAPTADOR PVC PBA, PONTA/ROSCA, JE, DN 50 / DE 60 MM | C94: UN | D94: AS | E94: 11.98
A95: 43 | B95: ADAPTADOR PVC PBA, PONTA/ROSCA, JE, DN 75 / DE 85 MM | C95: UN | D95: AS | E95: 40.43
A96: 103 | B96: ADAPTADOR PVC SOLDAVEL CURTO COM BOLSA E ROSCA, 110 MM X 4", PARA AGUA FRIA | C96: UN | D96: CR | E96: 36.45
A97: 107 | B97: ADAPTADOR PVC SOLDAVEL CURTO COM BOLSA E ROSCA, 20 MM X 1/2", PARA AGUA FRIA | C97: UN | D97: CR | E97: 0.68
A98: 65 | B98: ADAPTADOR PVC SOLDAVEL CURTO COM BOLSA E ROSCA, 25 MM X 3/4", PARA AGUA FRIA | C98: UN | D98: CR | E98: 0.75
A99: 108 | B99: ADAPTADOR PVC SOLDAVEL CURTO COM BOLSA E ROSCA, 32 MM X 1", PARA AGUA FRIA | C99: UN | D99: CR | E99: 1.51
A100: 110 | B100: ADAPTADOR PVC SOLDAVEL CURTO COM BOLSA E ROSCA, 40 MM X 1 1/2", PARA AGUA FRIA | C100: UN | D100: CR | E100: 5.24
A101: 109 | B101: ADAPTADOR PVC SOLDAVEL CURTO COM BOLSA E ROSCA, 40 MM X 1 1/4", PARA AGUA FRIA | C101: UN | D101: CR | E101: 3.12
A102: 111 | B102: ADAPTADOR PVC SOLDAVEL CURTO COM BOLSA E ROSCA, 50 MM X 1 1/4", PARA AGUA FRIA | C102: UN | D102: CR | E102: 7.09
A103: 112 | B103: ADAPTADOR PVC SOLDAVEL CURTO COM BOLSA E ROSCA, 50 MM X1 1/2", PARA AGUA FRIA | C103: UN | D103: CR | E103: 3.76
A104: 113 | B104: ADAPTADOR PVC SOLDAVEL CURTO COM BOLSA E ROSCA, 60 MM X 2", PARA AGUA FRIA | C104: UN | D104: CR | E104: 9.41
A105: 104 | B105: ADAPTADOR PVC SOLDAVEL CURTO COM BOLSA E ROSCA, 75 MM X 2 1/2", PARA AGUA FRIA | C105: UN | D105: CR | E105: 16.38
A106: 102 | B106: ADAPTADOR PVC SOLDAVEL CURTO COM BOLSA E ROSCA, 85 MM X 3", PARA AGUA FRIA | C106: UN | D106: CR | E106: 22.59
A107: 95 | B107: ADAPTADOR PVC SOLDAVEL, COM FLANGE E ANEL DE VEDACAO, 20 MM X 1/2", PARA CAIXA D'AGUA | C107: UN | D107: CR | E107: 9.54
A108: 96 | B108: ADAPTADOR PVC SOLDAVEL, COM FLANGE E ANEL DE VEDACAO, 25 MM X 3/4", PARA CAIXA D'AGUA | C108: UN | D108: CR | E108: 10.38
A109: 97 | B109: ADAPTADOR PVC SOLDAVEL, COM FLANGE E ANEL DE VEDACAO, 32 MM X 1", PARA CAIXA D'AGUA | C109: UN | D109: CR | E109: 15.62
A110: 98 | B110: ADAPTADOR PVC SOLDAVEL, COM FLANGE E ANEL DE VEDACAO, 40 MM X 1 1/4", PARA CAIXA D'AGUA | C110: UN | D110: CR | E110: 23.38
A111: 99 | B111: ADAPTADOR PVC SOLDAVEL, COM FLANGE E ANEL DE VEDACAO, 50 MM X 1 1/2", PARA CAIXA D'AGUA | C111: UN | D111: CR | E111: 22.1
A112: 60 | B112: ADAPTADOR PVC, COM REGISTRO, PARA PEAD, 20 MM X 3/4", PARA LIGACAO PREDIAL DE AGUA | C112: UN | D112: AS | E112: 5.41
A113: 72 | B113: ADAPTADOR PVC, ROSCAVEL, COM FLANGES E ANEL DE VEDACAO, 1 1/2", PARA CAIXA D'AGUA | C113: UN | D113: CR | E113: 42.38
A114: 67 | B114: ADAPTADOR PVC, ROSCAVEL, COM FLANGES E ANEL DE VEDACAO, 1/2", PARA CAIXA D'AGUA | C114: UN | D114: CR | E114: 13.7
A115: 71 | B115: ADAPTADOR PVC, ROSCAVEL, COM FLANGES E ANEL DE VEDACAO, 1", PARA CAIXA D'AGUA | C115: UN | D115: CR | E115: 26.18
A116: 73 | B116: ADAPTADOR PVC, ROSCAVEL, COM FLANGES E ANEL DE VEDACAO, 3/4", PARA CAIXA D'AGUA | C116: UN | D116: CR | E116: 13.11
A117: 100 | B117: ADAPTADOR PVC, SOLDAVEL, COM FLANGES E ANEL DE VEDACAO, 60 MM X 2", PARA CAIXA D'AGUA | C117: UN | D117: CR | E117: 38.61
A118: 75 | B118: ADAPTADOR PVC, SOLDAVEL, COM FLANGES LIVRES, 110 MM X 4", PARA CAIXA D'AGUA | C118: UN | D118: CR | E118: 225.12
A119: 83 | B119: ADAPTADOR PVC, SOLDAVEL, COM FLANGES LIVRES, 75 MM X 2 1/2", PARA CAIXA D'AGUA | C119: UN | D119: CR | E119: 179.98
A120: 74 | B120: ADAPTADOR PVC, SOLDAVEL, COM FLANGES LIVRES, 85 MM X 3", PARA CAIXA D'AGUA | C120: UN | D120: CR | E120: 257.32
A121: 106 | B121: ADAPTADOR PVC, SOLDAVEL, LONGO, COM FLANGE LIVRE, 110 MM X 4", PARA CAIXA D'AGUA | C121: UN | D121: CR | E121: 325.39
A122: 88 | B122: ADAPTADOR PVC, SOLDAVEL, LONGO, COM FLANGE LIVRE, 32 MM X 1", PARA CAIXA D'AGUA | C122: UN | D122: CR | E122: 9.14
A123: 82 | B123: ADAPTADOR PVC, SOLDAVEL, LONGO, COM FLANGE LIVRE, 75 MM X 2 1/2", PARA CAIXA D'AGUA | C123: UN | D123: CR | E123: 171.23
A124: 105 | B124: ADAPTADOR PVC, SOLDAVEL, LONGO, COM FLANGE LIVRE, 85 MM X 3", PARA CAIXA D'AGUA | C124: UN | D124: CR | E124: 242.63
A125: 39719 | B125: ADESIVO / COLA DE CONTATO LIQUIDO, A BASE DE RESINAS, PARA COLAGEM DE ESPUMA PARA ISOLAMENTO TERMICO FLEXIVEL | C125: L | D125: CR | E125: 155.12
A126: 3410 | B126: ADESIVO / COLA PARA EPS (ISOPOR) E OUTROS MATERIAIS | C126: KG | D126: CR | E126: 34.89
A127: 4791 | B127: ADESIVO ACRILICO DE BASE AQUOSA / COLA DE CONTATO | C127: KG | D127: CR | E127: 55.06
A128: 157 | B128: ADESIVO ESTRUTURAL A BASE DE RESINA EPOXI PARA INJECAO EM TRINCAS, BICOMPONENTE, BAIXA VISCOSIDADE | C128: KG | D128: CR | E128: 168.4
A129: 156 | B129: ADESIVO ESTRUTURAL A BASE DE RESINA EPOXI, BICOMPONENTE, FLUIDO | C129: KG | D129: CR | E129: 59.96
A130: 131 | B130: ADESIVO ESTRUTURAL A BASE DE RESINA EPOXI, BICOMPONENTE, PASTOSO (TIXOTROPICO) | C130: KG | D130: CR | E130: 51.27
A131: 21114 | B131: ADESIVO PARA TUBOS CPVC, *75* G | C131: UN | D131: CR | E131: 30.58
A132: 119 | B132: ADESIVO PLASTICO PARA PVC, BISNAGA COM 75 GR | C132: UN | D132: C | E132: 7.75
A133: 122 | B133: ADESIVO PLASTICO PARA PVC, FRASCO COM *850* GR | C133: UN | D133: CR | E133: 59.63
A134: 20080 | B134: ADESIVO PLASTICO PARA PVC, FRASCO COM 175 GR | C134: UN | D134: CR | E134: 19.46
A135: 124 | B135: ADITIVO ACELERADOR DE PEGA E ENDURECIMENTO PARA ARGAMASSAS E CONCRETOS, LIQUIDO E ISENTO DE CLORETOS | C135: L | D135: CR | E135: 19.77
A136: 7334 | B136: ADITIVO ADESIVO LIQUIDO PARA ARGAMASSAS DE REVESTIMENTOS CIMENTICIOS | C136: L | D136: CR | E136: 16.58
A137: 45146 | B137: ADITIVO IMPERMEABILIZANTE CRISTALIZANTE PARA CONCRETO | C137: KG | D137: CR | E137: 37.92
A138: 123 | B138: ADITIVO IMPERMEABILIZANTE DE PEGA NORMAL PARA ARGAMASSAS E CONCRETOS SEM ARMACAO, LIQUIDO E ISENTO DE CLORETOS | C138: L | D138: C | E138: 8.09
A139: 127 | B139: ADITIVO IMPERMEABILIZANTE DE PEGA ULTRARRAPIDA, LIQUIDO E ISENTO DE CLORETOS | C139: L | D139: CR | E139: 19.31
A140: 133 | B140: ADITIVO LIQUIDO INCORPORADOR DE AR PARA CONCRETO E ARGAMASSA, LIQUIDO E ISENTO DE CLORETOS | C140: L | D140: CR | E140: 8.02
A141: 43617 | B141: ADITIVO PLASTIFICANTE E ESTABILIZADOR PARA ARGAMASSAS DE ASSENTAMENTO E REBOCO, LIQUIDO E ISENTO DE CLORETOS | C141: L | D141: CR | E141: 8.96
A142: 132 | B142: ADITIVO PLASTIFICANTE RETARDADOR DE PEGA E REDUTOR DE AGUA PARA CONCRETO, LIQUIDO E ISENTO DE CLORETOS | C142: L | D142: CR | E142: 8.31
A143: 43618 | B143: ADITIVO SUPERPLASTIFICANTE DE PEGA NORMAL PARA CONCRETO, LIQUIDO E ISENTO DE CLORETOS | C143: KG | D143: CR | E143: 20.93
A144: 37476 | B144: ADUELA/ GALERIA PRE-MOLDADA DE CONCRETO ARMADO, SECAO QUADRADA INTERNA DE 1,50 X 1,50 M (L X A), MISULA DE 20 X 20 CM, C = 1,00 M, ESPESSURA MIN = 15 CM, TB-45 E FCK DO CONCRETO = 30 MPA | C144: UN | D144: CR | E144: 3128.06
A145: 37478 | B145: ADUELA/ GALERIA PRE-MOLDADA DE CONCRETO ARMADO, SECAO RETANGULAR INTERNA DE 2,00 X 2,00 M (L X A), MISULA DE 20 X 20 CM, C = 1,00 M, ESPESSURA MIN = 15 CM, TB-45 E FCK DO CONCRETO = 30 MPA | C145: UN | D145: CR | E145: 3917.98
A146: 37477 | B146: ADUELA/ GALERIA PRE-MOLDADA DE CONCRETO ARMADO, SECAO RETANGULAR INTERNA DE 2,50 X 2,50 M (L X A), MISULA DE 20 X 20 CM, C = 1,00 M, ESPESSURA MIN = 15 CM, TB-45 E FCK DO CONCRETO = 30 MPA | C146: UN | D146: CR | E146: 5308.23
A147: 37479 | B147: ADUELA/ GALERIA PRE-MOLDADA DE CONCRETO ARMADO, SECAO RETANGULAR INTERNA DE 3,00 X 3,00 M (L X A), MISULA DE 20 X 20 CM, C = 1.00 M, ESPESSURA MIN = 20 CM, TB-45 E FCK DO CONCRETO = 30 MPA | C147: UN | D147: CR | E147: 6295.63
A148: 4319 | B148: AFASTADOR PARA TELHA DE FIBROCIMENTO CANALETE 90 OU KALHETAO | C148: UN | D148: CR | E148: 1.44
A149: 42409 | B149: AGENTE DE CURA, PROTETOR DA EVAPORACAO DA AGUA DE HIDRATACAO DO CONCRETO | C149: KG | D149: CR | E149: 13.18
A150: 40553 | B150: AGREGADO RECICLADO, TIPO RACHAO RECICLADO CINZA, CLASSE A | C150: M3 | D150: AS | E150: 60
A151: 6114 | B151: AJUDANTE DE ARMADOR (HORISTA) | C151: H | D151: CR | E151: 16.75
A152: 40912 | B152: AJUDANTE DE ARMADOR (MENSALISTA) | C152: MES | D152: CR | E152: 2929.3
A153: 247 | B153: AJUDANTE DE ELETRICISTA (HORISTA) | C153: H | D153: CR | E153: 16.75
A154: 40919 | B154: AJUDANTE DE ELETRICISTA (MENSALISTA) | C154: MES | D154: CR | E154: 2929.3
A155: 44499 | B155: AJUDANTE DE ESTRUTURAS METALICAS (HORISTA) | C155: H | D155: CR | E155: 16.75
A156: 40984 | B156: AJUDANTE DE ESTRUTURAS METALICAS (MENSALISTA) | C156: MES | D156: CR | E156: 2929.3
A157: 248 | B157: AJUDANTE DE OPERACAO EM GERAL (HORISTA) | C157: H | D157: CR | E157: 16.9
A158: 41086 | B158: AJUDANTE DE OPERACAO EM GERAL (MENSALISTA) | C158: MES | D158: CR | E158: 2955.26
A159: 34466 | B159: AJUDANTE DE PINTOR (HORISTA) | C159: H | D159: CR | E159: 16.75
A160: 41083 | B160: AJUDANTE DE PINTOR (MENSALISTA) | C160: MES | D160: CR | E160: 2929.3
A161: 252 | B161: AJUDANTE DE SERRALHEIRO (HORISTA) | C161: H | D161: CR | E161: 16.75
A162: 40909 | B162: AJUDANTE DE SERRALHEIRO (MENSALISTA) | C162: MES | D162: CR | E162: 2929.3
A163: 242 | B163: AJUDANTE ESPECIALIZADO (HORISTA) | C163: H | D163: CR | E163: 16.9
A164: 41085 | B164: AJUDANTE ESPECIALIZADO (MENSALISTA) | C164: MES | D164: CR | E164: 2955.26
A165: 427 | B165: ALCA PREFORMADA DE CONTRA POSTE, EM ACO GALVANIZADO, PARA CABO 3/16", COMPRIMENTO *860* MM | C165: UN | D165: AS | E165: 6.55
A166: 417 | B166: ALCA PREFORMADA DE DISTRIBUICAO, EM ACO GALVANIZADO, PARA CABO DE ALUMINIO DIAMETRO 16 A 25 MM | C166: UN | D166: AS | E166: 3.08
A167: 11273 | B167: ALCA PREFORMADA DE DISTRIBUICAO, EM ACO GALVANIZADO, PARA CONDUTORES DE ALUMINIO AWG 1/0 (CAA 6/1 OU CA 7 FIOS) | C167: UN | D167: AS | E167: 9.58
A168: 11272 | B168: ALCA PREFORMADA DE DISTRIBUICAO, EM ACO GALVANIZADO, PARA CONDUTORES DE ALUMINIO AWG 2 (CAA 6/1 OU CA 7 FIOS) | C168: UN | D168: AS | E168: 5.78
A169: 11275 | B169: ALCA PREFORMADA DE SERVICO, EM ACO GALVANIZADO, PARA CONDUTORES DE ALUMINIO AWG 4 (CAA 6/1) | C169: UN | D169: AS | E169: 2.32
A170: 11274 | B170: ALCA PREFORMADA DE SERVICO, EM ACO GALVANIZADO, PARA CONDUTORES DE ALUMINIO AWG 6 (CAA 6/1) | C170: UN | D170: AS | E170: 1.77
A171: 38470 | B171: ALICATE DE CORTE DIAGONAL 6" COM ISOLAMENTO | C171: UN | D171: C | E171: 39.99
A172: 38547 | B172: ALICATE DE CRIMPAR RJ11, RJ12 E RJ45 | C172: UN | D172: CR | E172: 109.12
A173: 38469 | B173: ALICATE DE PRESSAO PARA SOLDA DE CHAPA 18" | C173: UN | D173: CR | E173: 117.34
A174: 38467 | B174: ALICATE DE PRESSAO 11" PARA SOLDA, TIPO C | C174: UN | D174: CR | E174: 66.02
A175: 38468 | B175: ALICATE DE PRESSAO 11" PARA SOLDA, TIPO U | C175: UN | D175: CR | E175: 72.65
A176: 38471 | B176: ALICATE PARA ANEIS DE PISTAO, CAPACIDADE 50 A 100 MM | C176: UN | D176: CR | E176: 94.35
A177: 37370 | B177: ALIMENTACAO - HORISTA (COLETADO CAIXA - ENCARGOS COMPLEMENTARES) | C177: H | D177: C | E177: 1.02
A178: 40862 | B178: ALIMENTACAO - MENSALISTA (COLETADO CAIXA - ENCARGOS COMPLEMENTARES) | C178: MES | D178: C | E178: 192.94
A179: 10658 | B179: ALISADORA DE CONCRETO COM MOTOR A GASOLINA DE 5,5 HP, PESO COM MOTOR DE 78 KG, 4 PAS | C179: UN | D179: AS | E179: 7709
A180: 253 | B180: ALMOXARIFE (HORISTA) | C180: H | D180: C | E180: 20.99
A181: 40809 | B181: ALMOXARIFE (MENSALISTA) | C181: MES | D181: CR | E181: 3668.94
A182: 42428 | B182: ALONGADOR COM TRES ALTURAS, EM TUBO DE ACO CARBONO, PINTURA NO PROCESSO ELETROSTATICO - EQUIPAMENTO DE GINASTICA PARA ACADEMIA AO AR LIVRE / ACADEMIA DA TERCEIRA IDADE - ATI | C182: UN | D182: AS | E182: 2271
A183: 301 | B183: ANEL BORRACHA PARA TUBO ESGOTO PREDIAL, DN 100 MM (NBR 5688) | C183: UN | D183: C | E183: 4
A184: 296 | B184: ANEL BORRACHA PARA TUBO ESGOTO PREDIAL, DN 50 MM (NBR 5688) | C184: UN | D184: CR | E184: 2.26
A185: 297 | B185: ANEL BORRACHA PARA TUBO ESGOTO PREDIAL, DN 75 MM (NBR 5688) | C185: UN | D185: CR | E185: 3.32
A186: 299 | B186: ANEL BORRACHA, DN 100 MM, PARA TUBO SERIE REFORCADA ESGOTO PREDIAL | C186: UN | D186: CR | E186: 4.69
A187: 300 | B187: ANEL BORRACHA, DN 150 MM, PARA TUBO SERIE REFORCADA ESGOTO PREDIAL | C187: UN | D187: CR | E187: 16.24
A188: 20085 | B188: ANEL BORRACHA, DN 50 MM, PARA TUBO SERIE REFORCADA ESGOTO PREDIAL | C188: UN | D188: CR | E188: 2.97
A189: 298 | B189: ANEL BORRACHA, DN 75 MM, PARA TUBO SERIE REFORCADA ESGOTO PREDIAL | C189: UN | D189: CR | E189: 3.61
A190: 311 | B190: ANEL BORRACHA, PARA TUBO PVC DEFOFO, DN 100 MM (NBR 7665) | C190: UN | D190: CR | E190: 13.39
A191: 318 | B191: ANEL BORRACHA, PARA TUBO PVC DEFOFO, DN 150 MM (NBR 7665) | C191: UN | D191: CR | E191: 26.97
A192: 319 | B192: ANEL BORRACHA, PARA TUBO PVC DEFOFO, DN 200 MM (NBR 7665) | C192: UN | D192: CR | E192: 42.28
A193: 303 | B193: ANEL BORRACHA, PARA TUBO PVC, REDE COLETOR ESGOTO, DN 100 MM (NBR 7362) | C193: UN | D193: CR | E193: 4.43
A194: 305 | B194: ANEL BORRACHA, PARA TUBO PVC, REDE COLETOR ESGOTO, DN 150 MM (NBR 7362) | C194: UN | D194: CR | E194: 13.94
A195: 306 | B195: ANEL BORRACHA, PARA TUBO PVC, REDE COLETOR ESGOTO, DN 200 MM (NBR 7362) | C195: UN | D195: CR | E195: 21.14
A196: 307 | B196: ANEL BORRACHA, PARA TUBO PVC, REDE COLETOR ESGOTO, DN 250 MM (NBR 7362) | C196: UN | D196: CR | E196: 53.41
A197: 309 | B197: ANEL BORRACHA, PARA TUBO PVC, REDE COLETOR ESGOTO, DN 350 MM (NBR 7362) | C197: UN | D197: CR | E197: 87.49
A198: 310 | B198: ANEL BORRACHA, PARA TUBO PVC, REDE COLETOR ESGOTO, DN 400 MM (NBR 7362) | C198: UN | D198: CR | E198: 121.26
A199: 328 | B199: ANEL BORRACHA, PARA TUBO/CONEXAO PVC PBA, DN 100 MM, PARA REDE AGUA | C199: UN | D199: CR | E199: 10.6
A200: 325 | B200: ANEL BORRACHA, PARA TUBO/CONEXAO PVC PBA, DN 50 MM, PARA REDE AGUA | C200: UN | D200: CR | E200: 3.13
A201: 20326 | B201: ANEL BORRACHA, PARA TUBO/CONEXAO PVC PBA, DN 60 MM, PARA REDE AGUA | C201: UN | D201: CR | E201: 5.72
A202: 329 | B202: ANEL BORRACHA, PARA TUBO/CONEXAO PVC PBA, DN 75 MM, PARA REDE AGUA | C202: UN | D202: CR | E202: 8.86
... 4622 more rows
